Capital or Revenue,Directorate,SERCOP High Level Category,SERCOP Detailed Category,Transaction Number,Date,Service Area,Expenses Type,Amount,Supplier Name
Revenue,Adult Services,Adult Social Care,Learning Disab Supp (to be reallocated),5105647019,07.07.2020,31 Carter Avenue,Minor Works,60,A & M APPLIANCE CARE
Revenue,Adult Services,Adult Social Care,Central Codes (to be reallocated),5105647354,10.07.2020,Gouldings Resource Centre,Consumable Cleaning Materials,130,A & M APPLIANCE CARE
Revenue,Adult Services,Adult Social Care,Central Codes (to be reallocated),5105649319,31.07.2020,Gouldings Resource Centre,Consumable Cleaning Materials,210,A & M APPLIANCE CARE
Revenue,Adult Services,Adult Social Care,Learning Disab Supp (to be reallocated),5105647352,14.07.2020,Plean Dene,Operational Equipment,80,A & M APPLIANCE CARE
Revenue,Adult Services,Adult Social Care,Learning Disab Supp (to be reallocated),5105648172,24.07.2020,Plean Dene,Consumable Cleaning Materials,110,A & M APPLIANCE CARE
Revenue,Adult Services,Adult Social Care,Central Codes (to be reallocated),5105648170,21.07.2020,Adelaide Resource Centre,Consumable Cleaning Materials,216,A & M APPLIANCE CARE
Revenue,Adult Services,Adult Social Care,Central Codes (to be reallocated),5105647411,10.07.2020,Adelaide Resource Centre,Consumable Cleaning Materials,200,A & M APPLIANCE CARE
Revenue,Neighbourhoods,Cultural and Related Services,Open Spaces,5105648692,24.07.2020,Tree Felling / Replacement,Payment to Private Contractors,"1,850.00",A GUSTAR T/A IVY TREE CARE
Revenue,Neighbourhoods,Cultural and Related Services,Open Spaces,5105648693,24.07.2020,Tree Felling / Replacement,Payment to Private Contractors,"3,400.00",A GUSTAR T/A IVY TREE CARE
Revenue,Childrens Services,Children's & Education Services,Other Education and Community Budget,5105649004,29.07.2020,Home to School SEN Transport (LA),Taxis - Contract Hire,341,AMAR EXCLUSIVES
Revenue,Regeneration,Central Services,Support Services,5105647500,14.07.2020,17 Fairlee Road,Grounds Maintenance,75,C & J GROUND MAINTENANCE
Revenue,Regeneration,Housing Services,Other Council Property,5105647499,14.07.2020,Shared Ownership,Grounds Maintenance,75,C & J GROUND MAINTENANCE
Revenue,Regeneration,Central Services,Support Services,5105648006,17.07.2020,"Westridge, Ryde",Grounds Maintenance,765,C & J GROUND MAINTENANCE
Revenue,Regeneration,Planning services,Business Support,5105647498,14.07.2020,Somerton Industrial Park,Grounds Maintenance,100,C & J GROUND MAINTENANCE
Revenue,Regeneration,Planning services,Business Support,5105647497,14.07.2020,Dodnor Industrial Estate,Grounds Maintenance,75,C & J GROUND MAINTENANCE
Revenue,Neighbourhoods,Environmental & Regulatory Services,"Cemetery, Cremation & Mortuary Services",5105647061,07.07.2020,Cemeteries Administration,Grounds Maintenance,176.2,C & J GROUND MAINTENANCE
Revenue,Childrens Services,Children's & Education Services,Other Education and Community Budget,5105647946,17.07.2020,Home to College Post 16 Transport,Taxis - Contract Hire,299,MICK'S TAXI
Revenue,Childrens Services,Children's & Education Services,Other Education and Community Budget,5105647949,17.07.2020,Home to School Mainstream Transport,Taxis - Contract Hire,968,MICK'S TAXI
Revenue,Childrens Services,Children's & Education Services,Other Education and Community Budget,5105648086,21.07.2020,Home to School SEN Transport (LA),Taxis - Contract Hire,"1,310.00",CLARES CABS
Revenue,Regeneration,Central Services,Support Services,5105646557,01.07.2020,Westridge Travellers Site,Legal Fees - Other Parties,"1,750.00",CORNERSTONE BARRISTERS
Revenue,Public Health,Central Services,Central Services to the Public,5105648777,24.07.2020,PH Covid-19 Track & Trace,Advertising & Publicity,600,REDACTED PERSONAL DATA
Revenue,Resources,Central Services,Support Services,5105647969,17.07.2020,Litigation Costs,Legal Fees - Other Parties,400,COLLEGE CHAMBERS BARRISTERS
Revenue,Adult Services,Adult Social Care,Social Care Activities,5105647618,15.07.2020,DoLS/MCA,Professional Services,197.72,DR ALEXIS BOWERS LTD
Revenue,Childrens Services,Adult Social Care,Social Care Activities,5105648718,24.07.2020,Adult Social Care - Workforce Development,Training,300,EDGE TRAINING & CONS LTD
Revenue,Childrens Services,Adult Social Care,Social Care Activities,5105648729,24.07.2020,Adult Social Care - Workforce Development,Training,300,EDGE TRAINING & CONS LTD
Revenue,Childrens Services,Adult Social Care,Social Care Activities,5105646350,08.07.2020,Adult Social Care - Workforce Development,Training,600,EDGE TRAINING & CONS LTD
Revenue,Childrens Services,Children's & Education Services,Other Education and Community Budget,5105647976,17.07.2020,Home to School SEN Transport (LA),Taxis - Contract Hire,440,HAYLES TAXIS
Revenue,Childrens Services,Children's & Education Services,Other Education and Community Budget,5105647974,17.07.2020,Home to School SEN Transport (LA),Taxis - Contract Hire,440,HAYLES TAXIS
Revenue,Childrens Services,Children's & Education Services,Other Education and Community Budget,5105647975,17.07.2020,Home to College Post 16 Transport,Taxis - Contract Hire,120,HAYLES TAXIS
Revenue,Childrens Services,Children's & Education Services,Other Education and Community Budget,5105647972,17.07.2020,Home to College Post 16 Transport,Taxis - Contract Hire,275,HAYLES TAXIS
Revenue,Neighbourhoods,Central Services,Central Services to the Public,5105648064,21.07.2020,Reopening High Streets Safely,Professional Services,"14,400.00",ISLAND HIGHWAY & TRANSPORT
Revenue,Neighbourhoods,Central Services,Central Services to the Public,5105648064,21.07.2020,Reopening High Streets Safely,Professional Services,"2,070.00",ISLAND HIGHWAY & TRANSPORT
Revenue,Resources,Central Services,Support Services,5105648038,24.07.2020,ICT Contracts,Computer Maintenance,330,REDACTED PERSONAL DATA
Revenue,Neighbourhoods,Environmental & Regulatory Services,"Cemetery, Cremation & Mortuary Services",5105647948,17.07.2020,Cemeteries-Ventnor,Property Services - Day to day Maintenance,200,LINSCH CONSULTANTS
Revenue,Regeneration,Central Services,Support Services,5105647944,17.07.2020,Non-operational buildings,Property Services - Day to day Maintenance,225,LINSCH CONSULTANTS
Revenue,Regeneration,Central Services,Support Services,5105647943,17.07.2020,"Guildhall,Newport",Property Services - Day to day Maintenance,200,LINSCH CONSULTANTS
Revenue,Regeneration,Central Services,Support Services,5105647945,17.07.2020,Properties  - Other Properties,Property Services - Day to day Maintenance,150,LINSCH CONSULTANTS
Revenue,Regeneration,Central Services,Support Services,5105647942,17.07.2020,Properties  - Other Properties,Grounds Maintenance,150,LINSCH CONSULTANTS
Revenue,Neighbourhoods,Cultural and Related Services,Open Spaces,5105647947,17.07.2020,Victoria Recreation Ground,Property Services - Day to day Maintenance,200,LINSCH CONSULTANTS
Revenue,Childrens Services,Children's & Education Services,Other Education and Community Budget,5105648747,24.07.2020,Non-Delegated Building Maintenance,Payment to Private Contractors,175,LINSCH CONSULTANTS
Revenue,Adult Services,Adult Social Care,Social Care Activities,5105647483,14.07.2020,LSAB Conferences,Professional Services,"2,025.00",MAKING CONNECTIONS (IW) LTD
Revenue,Childrens Services,Children's & Education Services,Other Education and Community Budget,5105648196,21.07.2020,Home to School SEN Transport (LA),Taxis - Contract Hire,"1,419.60",MR TAXIS
Capital,Place,Capital,Capital,5105647495,15.07.2020,Rights Of Way Capital Programme,Payment to Contractors - Capital,"4,840.00",REDACTED PERSONAL DATA
Revenue,Resources,Central Services,Support Services,5105648034,21.07.2020,Legal Services Section,Sundry Office Expenses,59.97,OD CONSULTANCY LTD
Revenue,Resources,Central Services,Support Services,5105646814,03.07.2020,Legal Services Section,Sundry Office Expenses,59.97,OD CONSULTANCY LTD
Revenue,Adult Services,Housing Services,Homelessness,5105648333,22.07.2020,Private Rented Sector Leasing Scheme,Accommodation Costs - Leaseholder Payments,695.89,REDACTED PERSONAL DATA
Revenue,Adult Services,Housing Services,Homelessness,5105648333,22.07.2020,Private Rented Sector Leasing Scheme,Accommodation Costs - Leaseholder Payments,695.89,REDACTED PERSONAL DATA
Revenue,Adult Services,Housing Services,Homelessness,5105648333,22.07.2020,Private Rented Sector Leasing Scheme,Accommodation Costs - Leaseholder Payments,695.89,REDACTED PERSONAL DATA
Revenue,Adult Services,Housing Services,Homelessness,5105648333,22.07.2020,Private Rented Sector Leasing Scheme,Accommodation Costs - Leaseholder Payments,695.89,REDACTED PERSONAL DATA
Revenue,Adult Services,Housing Services,Homelessness,5105648333,22.07.2020,Private Rented Sector Leasing Scheme,Accommodation Costs - Leaseholder Payments,695.89,REDACTED PERSONAL DATA
Revenue,Adult Services,Adult Social Care,Commissioning & Service Delivery,5105648299,22.07.2020,Deferred Payment Fees,Professional Services,150,PRINCIPAL SURVEYORS LTD
Revenue,Adult Services,Adult Social Care,Commissioning & Service Delivery,5105646832,03.07.2020,Deferred Payment Fees,Professional Services,150,PRINCIPAL SURVEYORS LTD
Revenue,Regeneration,Central Services,Support Services,5105647412,10.07.2020,Strategic Assets Team,Professional Services,150,PRINCIPAL SURVEYORS LTD
Revenue,Regeneration,Planning services,Economic Development,5105648079,22.07.2020,Branstone - Business Centre,Professional Services,75,PRINCIPAL SURVEYORS LTD
Revenue,Regeneration,Central Services,Support Services,5105648222,22.07.2020,"Guildhall,Newport",Property Services - Planned Maintenance,195,R G PROPERTY SERVICES
Revenue,Childrens Services,Children's & Education Services,Management & Support Services,5105648938,29.07.2020,Special Discretionary Grants,Charges from Independent Providers,"3,600.00",REDACTED PERSONAL DATA
Revenue,Neighbourhoods,Highways and Transport Services,"Airports, Harbours & Toll Facilities",5105647454,14.07.2020,Ryde Harbour,Payment to Private Contractors,765,SOUTH COAST FLAG POLES
Revenue,Childrens Services,Children's & Education Services,Family Support Services,5105648003,17.07.2020,Short Breaks,Charges from Independent Providers,239,THE CROSSLEY COMPANY (IOW) LTD
Revenue,Childrens Services,Children's & Education Services,Family Support Services,5105647116,08.07.2020,Short Breaks,Charges from Independent Providers,239,THE CROSSLEY COMPANY (IOW) LTD
Revenue,Adult Services,Adult Social Care,Social Support - Social Isolation/Other,5105649284,31.07.2020,Social Isolation/Other Other ST Support,Professional Services,875,THE ROBOS SPECIALIST CLEANING
Revenue,Adult Services,Adult Social Care,Social Support - Social Isolation/Other,5105649237,31.07.2020,Social Isolation/Other Other ST Support,Professional Services,150,THE ROBOS SPECIALIST CLEANING
Revenue,Childrens Services,Children's & Education Services,Family Support Services,5105649326,31.07.2020,Short Breaks,Charges from Independent Providers,359.2,THE VECTIS RADIO 4PS TRAINING
Revenue,Childrens Services,Children's & Education Services,Family Support Services,5105649327,31.07.2020,Short Breaks,Charges from Independent Providers,287.36,THE VECTIS RADIO 4PS TRAINING
Revenue,Childrens Services,Children's & Education Services,Other Education and Community Budget,5105647998,17.07.2020,Home to School SEN Transport (LA),Taxis - Contract Hire,193.2,THOMPSON TAXI
Revenue,Childrens Services,Children's & Education Services,Other Education and Community Budget,5105647999,17.07.2020,Home to School SEN Transport (LA),Taxis - Contract Hire,116.64,THOMPSON TAXI
Revenue,Childrens Services,Children's & Education Services,Other Education and Community Budget,5105647988,17.07.2020,Home to School SEN Transport (LA),Taxis - Contract Hire,"1,167.60",THOMPSON TAXI
Revenue,Childrens Services,Children's & Education Services,Other Education and Community Budget,5105647990,17.07.2020,Home to School SEN Transport (LA),Taxis - Contract Hire,491.04,THOMPSON TAXI
Revenue,Childrens Services,Children's & Education Services,Other Education and Community Budget,5105647993,17.07.2020,Home to School SEN Transport (LA),Taxis - Contract Hire,"2,002.00",THOMPSON TAXI
Revenue,Childrens Services,Children's & Education Services,Other Education and Community Budget,5105647995,17.07.2020,Home to School SEN Transport (LA),Taxis - Contract Hire,356.4,THOMPSON TAXI
Revenue,Childrens Services,Children's & Education Services,Other Education and Community Budget,5105647343,10.07.2020,Home to School SEN Transport (LA),Taxis - Contract Hire,"-1,320.00",THOMPSON TAXI
Revenue,Childrens Services,Children's & Education Services,Other Education and Community Budget,5105647344,10.07.2020,Home to School SEN Transport (LA),Taxis - Contract Hire,-840,THOMPSON TAXI
Revenue,Childrens Services,Children's & Education Services,Other Education and Community Budget,5105647341,10.07.2020,Home to School SEN Transport (LA),Taxis - Contract Hire,-432,THOMPSON TAXI
Revenue,Childrens Services,Children's & Education Services,Other Education and Community Budget,5105643176,10.07.2020,Home to School SEN Transport (LA),Taxis - Contract Hire,840,THOMPSON TAXI
Revenue,Childrens Services,Children's & Education Services,Other Education and Community Budget,5105643179,10.07.2020,Home to School SEN Transport (LA),Taxis - Contract Hire,"1,320.00",THOMPSON TAXI
Revenue,Childrens Services,Children's & Education Services,Other Education and Community Budget,5105643158,10.07.2020,Home to School SEN Transport (LA),Taxis - Contract Hire,432,THOMPSON TAXI
Revenue,Childrens Services,Children's & Education Services,Other Education and Community Budget,5105648000,17.07.2020,Home to School Mainstream Transport,Taxis - Contract Hire,682,THOMPSON TAXI
Revenue,Childrens Services,Children's & Education Services,Other Education and Community Budget,5105647985,17.07.2020,Home to School Mainstream Transport,Taxis - Contract Hire,162,THOMPSON TAXI
Revenue,Childrens Services,Children's & Education Services,Other Education and Community Budget,5105647342,10.07.2020,Home to School Mainstream Transport,Taxis - Contract Hire,-600,THOMPSON TAXI
Revenue,Childrens Services,Children's & Education Services,Other Education and Community Budget,5105643173,10.07.2020,Home to School Mainstream Transport,Taxis - Contract Hire,600,THOMPSON TAXI
Revenue,Childrens Services,Children's & Education Services,Other Education and Community Budget,5105648223,21.07.2020,Home to School SEN Transport (LA),Taxis - Contract Hire,352,TJ CAR SERVICES LTD
Revenue,Childrens Services,Children's & Education Services,Other Education and Community Budget,5105648223,21.07.2020,Home to School SEN Transport (LA),Taxis - Contract Hire,220,TJ CAR SERVICES LTD
Revenue,Childrens Services,Children's & Education Services,Other Education and Community Budget,5105648223,21.07.2020,Home to College Post 16 Transport,Taxis - Contract Hire,480,TJ CAR SERVICES LTD
Revenue,Childrens Services,Children's & Education Services,Other Education and Community Budget,5105648223,21.07.2020,Home to College Post 16 Transport,Taxis - Contract Hire,105,TJ CAR SERVICES LTD
Revenue,Childrens Services,Children's & Education Services,Other Education and Community Budget,5105648223,21.07.2020,Home to College Post 16 Transport,Taxis - Contract Hire,247,TJ CAR SERVICES LTD
Revenue,Childrens Services,Children's & Education Services,Other Education and Community Budget,5105648223,21.07.2020,Home to College Post 16 Transport,Taxis - Contract Hire,322,TJ CAR SERVICES LTD
Revenue,Adult Services,Adult Social Care,Social Support - Social Isolation/Other,5105643322,01.07.2020,Social Isolation/Other Other ST Support,Professional Services,590,TOP MOPS LIMITED
Revenue,Adult Services,Adult Social Care,Social Support - Social Isolation/Other,5105643323,01.07.2020,Social Isolation/Other Other ST Support,Professional Services,"1,635.00",TOP MOPS LIMITED
Revenue,Adult Services,Adult Social Care,Social Support - Social Isolation/Other,5105643324,07.07.2020,Social Isolation/Other Other ST Support,Professional Services,255,TOP MOPS LIMITED
Revenue,Neighbourhoods,Environmental & Regulatory Services,Regulatory Services,5105648322,24.07.2020,Public Conveniences - General,Property Services - Day to day Maintenance,111.96,TOP MOPS LIMITED
Revenue,Childrens Services,Children's & Education Services,Special Schools & Alternative Provision,5105647978,17.07.2020,Island Learning Centre,Cleaning Contracts,204.9,TOP MOPS LIMITED
Revenue,Childrens Services,Children's & Education Services,Special Schools & Alternative Provision,5105647978,17.07.2020,Island Learning Centre,Cleaning Contracts,204.9,TOP MOPS LIMITED
Revenue,Childrens Services,Children's & Education Services,Special Schools & Alternative Provision,5105647978,17.07.2020,Island Learning Centre,Cleaning Contracts,204.9,TOP MOPS LIMITED
Revenue,Childrens Services,Children's & Education Services,Special Schools & Alternative Provision,5105647443,14.07.2020,Island Learning Centre,Consumable Cleaning Materials,259.44,TOP MOPS LIMITED
Revenue,Childrens Services,Children's & Education Services,Special Schools & Alternative Provision,5105648793,24.07.2020,Island Learning Centre,Cleaning Contracts,"1,834.00",TOP MOPS LIMITED
Revenue,Childrens Services,Children's & Education Services,Special Schools & Alternative Provision,5105648794,24.07.2020,Island Learning Centre,Cleaning Contracts,819.6,TOP MOPS LIMITED
Revenue,Childrens Services,Children's & Education Services,Special Schools & Alternative Provision,5105647978,17.07.2020,Island Learning Centre,Cleaning Contracts,177.58,TOP MOPS LIMITED
Revenue,Childrens Services,Children's & Education Services,Special Schools & Alternative Provision,5105648065,21.07.2020,Island Learning Centre,Cleaning Contracts,366.8,TOP MOPS LIMITED
Revenue,Childrens Services,Children's & Education Services,Special Schools & Alternative Provision,5105648065,21.07.2020,Island Learning Centre,Cleaning Contracts,458.5,TOP MOPS LIMITED
Revenue,Childrens Services,Children's & Education Services,Special Schools & Alternative Provision,5105648065,21.07.2020,Island Learning Centre,Cleaning Contracts,458.5,TOP MOPS LIMITED
Revenue,Childrens Services,Children's & Education Services,Special Schools & Alternative Provision,5105648065,21.07.2020,Island Learning Centre,Cleaning Contracts,275.1,TOP MOPS LIMITED
Revenue,Childrens Services,Children's & Education Services,Other Education and Community Budget,5105647357,10.07.2020,Barton Primary Sshool Disposal,Security of Buildings,222,VECTIS GROUP SECURITY LTD
Revenue,Regeneration,Central Services,Support Services,5105648964,29.07.2020,Non-operational buildings,Security of Buildings,75,VECTIS GROUP SECURITY LTD
Revenue,Regeneration,Central Services,Support Services,5105648457,29.07.2020,Non-operational buildings,Security of Buildings,60,VECTIS GROUP SECURITY LTD
Revenue,Neighbourhoods,Cultural and Related Services,Recreation and Sport,5105648074,21.07.2020,Medina Leisure Centre,Payment to Private Contractors,12,VECTIS GROUP SECURITY LTD
Revenue,Regeneration,Central Services,Support Services,5105646413,01.07.2020,The Laurels,Minor Works,75,VECTIS GROUP SECURITY LTD
Revenue,Regeneration,Central Services,Support Services,5105648882,29.07.2020,The Laurels,Minor Works,60,VECTIS GROUP SECURITY LTD
Revenue,Regeneration,Central Services,Support Services,5105648874,31.07.2020,"Westridge, Ryde",Security of Buildings,92,VECTIS GROUP SECURITY LTD
Revenue,Regeneration,Central Services,Support Services,5105648953,31.07.2020,"Westridge, Ryde",Security of Buildings,112,VECTIS GROUP SECURITY LTD
Revenue,Childrens Services,Children's & Education Services,Special Schools & Alternative Provision,5105648164,21.07.2020,Island Learning Centre,Security of Buildings,12,VECTIS GROUP SECURITY LTD
Revenue,Childrens Services,Children's & Education Services,Special Schools & Alternative Provision,5105648164,21.07.2020,Island Learning Centre,Security of Buildings,15,VECTIS GROUP SECURITY LTD
Revenue,Neighbourhoods,Cultural and Related Services,Recreation and Sport,5105648455,24.07.2020,Westridge Squash Courts,Maintenance of Operational Equipment,12,VECTIS GROUP SECURITY LTD
Revenue,Childrens Services,Children's & Education Services,Other Education and Community Budget,5105647413,10.07.2020,Broadlea PS Berry Hill site (was 55909),Security of Buildings,30,VECTIS GROUP SECURITY LTD
Revenue,Childrens Services,Children's & Education Services,Other Education and Community Budget,5105647693,17.07.2020,Home to School SEN Transport (LA),Taxis - Contract Hire,"1,700.00",W W CARS OF SEAVIEW
Revenue,Childrens Services,Children's & Education Services,Other Education and Community Budget,5105647688,17.07.2020,Home to School SEN Transport (LA),Taxis - Contract Hire,680,W W CARS OF SEAVIEW
Revenue,Childrens Services,Children's & Education Services,Other Education and Community Budget,5105647692,17.07.2020,Home to College Post 16 Transport,Taxis - Contract Hire,360,W W CARS OF SEAVIEW
Revenue,Adult Services,Adult Social Care,Central Codes (to be reallocated),5105648451,24.07.2020,Gouldings Resource Centre,Property Services - Day to day Maintenance,115,WIGHT HEATING LTD
Revenue,Adult Services,Adult Social Care,Central Codes (to be reallocated),5105647142,10.07.2020,Gouldings Resource Centre,Property Services - Day to day Maintenance,549.21,WIGHT HEATING LTD
Revenue,Fire & Rescue,Fire & Rescue Services,Fire fighting and Rescue Operations,5105647125,08.07.2020,Business Support  - Fire,Property Services - Planned Maintenance,75,WIGHT HEATING LTD
Revenue,Childrens Services,Children's & Education Services,Children Looked After,5105647124,08.07.2020,Beaulieu House,Minor Works,151.78,WIGHT HEATING LTD
Revenue,Childrens Services,Children's & Education Services,Children Looked After,5105647143,10.07.2020,Beaulieu House,Property Services - Day to day Maintenance,252.26,WIGHT HEATING LTD
Revenue,Childrens Services,Children's & Education Services,Sure Start Children's Centres,5105647715,17.07.2020,Family Centres Maintenance,Minor Works,115,WIGHT HEATING LTD
Revenue,Childrens Services,Children's & Education Services,Sure Start Children's Centres,5105647719,17.07.2020,Family Centres Maintenance,Minor Works,"1,232.52",WIGHT HEATING LTD
Revenue,Childrens Services,Children's & Education Services,Special Schools & Alternative Provision,5105647410,10.07.2020,Island Learning Centre,Catering Equipment,52.01,2468 LTD
Revenue,Childrens Services,Children's & Education Services,Special Schools & Alternative Provision,5105647410,10.07.2020,Island Learning Centre,Catering Equipment,3.24,2468 LTD
Revenue,Adult Services,Housing Services,Homelessness,5105648346,22.07.2020,Private Rented Sector Leasing Scheme,Accommodation Costs - Leaseholder Payments,866.67,2K PROPERTY
Revenue,Resources,Central Services,Support Services,5105646826,02.07.2020,Litigation Costs,Legal Fees - Other Parties,"-3,000.00",3PB THE CHAMBERS OF IAN LAWRIE QC
Revenue,Resources,Central Services,Support Services,5105646559,02.07.2020,Litigation Costs,Legal Fees - Other Parties,-480,3PB THE CHAMBERS OF IAN LAWRIE QC
Revenue,Resources,Central Services,Support Services,5105646560,02.07.2020,Litigation Costs,Legal Fees - Other Parties,-600,3PB THE CHAMBERS OF IAN LAWRIE QC
Revenue,Resources,Central Services,Support Services,5105646562,02.07.2020,Litigation Costs,Legal Fees - Other Parties,"-8,400.00",3PB THE CHAMBERS OF IAN LAWRIE QC
Revenue,Childrens Services,Children's & Education Services,Children Looked After,5105649069,31.07.2020,Special Guardianship Order Costs,Support Children,207.73,REDACTED PERSONAL DATA
Revenue,Childrens Services,Children's & Education Services,Children Looked After,5105647171,10.07.2020,Special Guardianship Order Costs,Support Children,207.73,REDACTED PERSONAL DATA
Revenue,Childrens Services,Children's & Education Services,Children Looked After,5105646645,03.07.2020,Special Guardianship Order Costs,Support Children,207.73,REDACTED PERSONAL DATA
Revenue,Childrens Services,Children's & Education Services,Children Looked After,5105647764,17.07.2020,Special Guardianship Order Costs,Support Children,207.73,REDACTED PERSONAL DATA
Revenue,Childrens Services,Children's & Education Services,Children Looked After,5105648522,24.07.2020,Special Guardianship Order Costs,Support Children,207.73,REDACTED PERSONAL DATA
Revenue,Childrens Services,Children's & Education Services,Children Looked After,5105647171,10.07.2020,In-house Fostering,Boarding Out Allowances,286.47,REDACTED PERSONAL DATA
Revenue,Childrens Services,Children's & Education Services,Children Looked After,5105647171,10.07.2020,In-house Fostering,Boarding Out Allowances,244.47,REDACTED PERSONAL DATA
Revenue,Childrens Services,Children's & Education Services,Children Looked After,5105646645,03.07.2020,In-house Fostering,Boarding Out Allowances,286.47,REDACTED PERSONAL DATA
Revenue,Childrens Services,Children's & Education Services,Children Looked After,5105646645,03.07.2020,In-house Fostering,Boarding Out Allowances,244.47,REDACTED PERSONAL DATA
Revenue,Childrens Services,Children's & Education Services,Children Looked After,5105647764,17.07.2020,In-house Fostering,Boarding Out Allowances,286.47,REDACTED PERSONAL DATA
Revenue,Childrens Services,Children's & Education Services,Children Looked After,5105647764,17.07.2020,In-house Fostering,Boarding Out Allowances,244.47,REDACTED PERSONAL DATA
Revenue,Childrens Services,Children's & Education Services,Children Looked After,5105648522,24.07.2020,In-house Fostering,Boarding Out Allowances,286.47,REDACTED PERSONAL DATA
Revenue,Childrens Services,Children's & Education Services,Children Looked After,5105648522,24.07.2020,In-house Fostering,Boarding Out Allowances,244.47,REDACTED PERSONAL DATA
Revenue,Childrens Services,Children's & Education Services,Children Looked After,5105649069,31.07.2020,In-house Fostering,Boarding Out Allowances,286.47,REDACTED PERSONAL DATA
Revenue,Childrens Services,Children's & Education Services,Children Looked After,5105649069,31.07.2020,In-house Fostering,Boarding Out Allowances,244.47,REDACTED PERSONAL DATA
Revenue,Adult Services,Housing Services,Homelessness,5105648343,22.07.2020,Private Rented Sector Leasing Scheme,Accommodation Costs - Leaseholder Payments,510.25,REDACTED PERSONAL DATA
Revenue,Adult Services,Housing Services,Homelessness,5105648343,22.07.2020,Private Rented Sector Leasing Scheme,Accommodation Costs - Leaseholder Payments,510.25,REDACTED PERSONAL DATA
Revenue,Adult Services,Housing Services,Homelessness,5105648343,22.07.2020,Private Rented Sector Leasing Scheme,Accommodation Costs - Leaseholder Payments,510.25,REDACTED PERSONAL DATA
Revenue,Adult Services,Housing Services,Homelessness,5105648343,22.07.2020,Private Rented Sector Leasing Scheme,Accommodation Costs - Leaseholder Payments,510.25,REDACTED PERSONAL DATA
Revenue,Adult Services,Housing Services,Homelessness,5105648343,22.07.2020,Private Rented Sector Leasing Scheme,Accommodation Costs - Leaseholder Payments,510.25,REDACTED PERSONAL DATA
Revenue,Adult Services,Housing Services,Homelessness,5105648343,22.07.2020,Private Rented Sector Leasing Scheme,Accommodation Costs - Leaseholder Payments,510.25,REDACTED PERSONAL DATA
Revenue,Adult Services,Housing Services,Homelessness,5105648343,22.07.2020,Private Rented Sector Leasing Scheme,Accommodation Costs - Leaseholder Payments,510.25,REDACTED PERSONAL DATA
Revenue,Childrens Services,Children's & Education Services,Children Looked After,5105646633,03.07.2020,Adoption Costs,Support Children,225.83,REDACTED PERSONAL DATA
Revenue,Childrens Services,Children's & Education Services,Children Looked After,5105647159,10.07.2020,Adoption Costs,Support Children,225.83,REDACTED PERSONAL DATA
Revenue,Childrens Services,Children's & Education Services,Children Looked After,5105649058,31.07.2020,Adoption Costs,Support Children,225.83,REDACTED PERSONAL DATA
Revenue,Childrens Services,Children's & Education Services,Children Looked After,5105648510,24.07.2020,Adoption Costs,Support Children,225.83,REDACTED PERSONAL DATA
Revenue,Childrens Services,Children's & Education Services,Children Looked After,5105647752,17.07.2020,Adoption Costs,Support Children,225.83,REDACTED PERSONAL DATA
Revenue,Childrens Services,Children's & Education Services,Children Looked After,5105647189,10.07.2020,In-house Fostering,Boarding Out Allowances,521.22,REDACTED PERSONAL DATA
Revenue,Childrens Services,Children's & Education Services,Children Looked After,5105646664,03.07.2020,In-house Fostering,Boarding Out Allowances,521.22,REDACTED PERSONAL DATA
Revenue,Childrens Services,Children's & Education Services,Children Looked After,5105647782,17.07.2020,In-house Fostering,Boarding Out Allowances,521.22,REDACTED PERSONAL DATA
Revenue,Childrens Services,Children's & Education Services,Children Looked After,5105648540,24.07.2020,In-house Fostering,Boarding Out Allowances,521.22,REDACTED PERSONAL DATA
Revenue,Childrens Services,Children's & Education Services,Children Looked After,5105649087,31.07.2020,In-house Fostering,Boarding Out Allowances,521.22,REDACTED PERSONAL DATA
Revenue,Childrens Services,Children's & Education Services,Safeguarding Children/Young Peoples Svs,5105649006,29.07.2020,Court Work & Consultancy Services,Professional Services,80,AA GLOBAL LANGUAGE SERVICES LTD
Revenue,Adult Services,Adult Social Care,Support - Memory /Cognition-older people (65+),5105646958,07.07.2020,Memory & Cognition Residential 65+,Charges from Independent Providers,"3,200.12",ABBERDALE LIMITED
Revenue,Adult Services,Adult Social Care,Learning Disab Supp (to be reallocated),5105647465,15.07.2020,"41 Newport Road, Cowes",Charges from Independent Providers,"5,684.00",TRACSCARE WELLCARE LIFESTYLES
Revenue,Adult Services,Adult Social Care,Learning Disab Supp (to be reallocated),5105647465,15.07.2020,"41 Newport Road, Cowes",Charges from Independent Providers,"2,190.72",TRACSCARE WELLCARE LIFESTYLES
Revenue,Adult Services,Adult Social Care,Learning Disab Supp (to be reallocated),5105647465,15.07.2020,"17 Newport Road, Ventnor",Charges from Independent Providers,"4,553.00",TRACSCARE WELLCARE LIFESTYLES
Revenue,Adult Services,Adult Social Care,Learning Disab Supp (to be reallocated),5105647465,15.07.2020,"17 Newport Road, Ventnor",Charges from Independent Providers,"2,190.72",TRACSCARE WELLCARE LIFESTYLES
Revenue,Adult Services,Adult Social Care,Learning Disab Supp (to be reallocated),5105647465,15.07.2020,Westhorpe Supported Living,Charges from Independent Providers,"5,684.00",TRACSCARE WELLCARE LIFESTYLES
Revenue,Adult Services,Adult Social Care,Learning Disab Supp (to be reallocated),5105647465,15.07.2020,Westhorpe Supported Living,Charges from Independent Providers,"4,060.00",TRACSCARE WELLCARE LIFESTYLES
Revenue,Adult Services,Adult Social Care,Learning Disab Supp (to be reallocated),5105647465,15.07.2020,Westhorpe Supported Living,Charges from Independent Providers,"2,030.00",TRACSCARE WELLCARE LIFESTYLES
Revenue,Adult Services,Adult Social Care,Learning Disab Supp (to be reallocated),5105647465,15.07.2020,"Greengates, Ryde",Charges from Independent Providers,"5,684.00",TRACSCARE WELLCARE LIFESTYLES
Revenue,Adult Services,Adult Social Care,Learning Disab Supp (to be reallocated),5105647465,15.07.2020,"Greengates, Ryde",Charges from Independent Providers,"2,190.72",TRACSCARE WELLCARE LIFESTYLES
Revenue,Adult Services,Adult Social Care,Long Term Support,5105647465,15.07.2020,Seagulls,Charges from Independent Providers,"26,945.12",TRACSCARE WELLCARE LIFESTYLES
Revenue,Adult Services,Adult Social Care,Learning Disab Supp (to be reallocated),5105647465,15.07.2020,"Heath Road, Lake",Charges from Independent Providers,"4,553.00",TRACSCARE WELLCARE LIFESTYLES
Revenue,Adult Services,Adult Social Care,Learning Disab Supp (to be reallocated),5105647465,15.07.2020,"Heath Road, Lake",Charges from Independent Providers,"2,190.72",TRACSCARE WELLCARE LIFESTYLES
Revenue,Adult Services,Adult Social Care,Learning Disab Supp (to be reallocated),5105647465,15.07.2020,"Winton Street, Ryde",Charges from Independent Providers,"5,684.00",TRACSCARE WELLCARE LIFESTYLES
Revenue,Adult Services,Adult Social Care,Learning Disab Supp (to be reallocated),5105647465,15.07.2020,"Winton Street, Ryde",Charges from Independent Providers,"2,190.72",TRACSCARE WELLCARE LIFESTYLES
Revenue,Adult Services,Adult Social Care,Long Term Support,5105647465,15.07.2020,40 Venner Avenue,Charges from Independent Providers,"28,129.64",TRACSCARE WELLCARE LIFESTYLES
Revenue,Fire & Rescue,Fire & Rescue Services,Fire fighting and Rescue Operations,5105648909,29.07.2020,Fire Technical Support,Vehicle Maintenance Costs,489.59,ADAMS MOREY LTD
Revenue,Fire & Rescue,Fire & Rescue Services,Fire fighting and Rescue Operations,5105649274,31.07.2020,Fire Technical Support,Vehicle Maintenance Costs,18.4,ADAMS MOREY LTD
Revenue,Fire & Rescue,Fire & Rescue Services,Fire fighting and Rescue Operations,5105648769,24.07.2020,Fire Technical Support,Vehicle Maintenance Costs,179.3,ADAMS MOREY LTD
Revenue,Fire & Rescue,Fire & Rescue Services,Fire fighting and Rescue Operations,5105648764,24.07.2020,Fire Technical Support,Vehicle Maintenance Costs,5.95,ADAMS MOREY LTD
Revenue,Fire & Rescue,Fire & Rescue Services,Fire fighting and Rescue Operations,5105648765,24.07.2020,Fire Technical Support,Vehicle Maintenance Costs,10.15,ADAMS MOREY LTD
Revenue,Fire & Rescue,Fire & Rescue Services,Fire fighting and Rescue Operations,5105648766,24.07.2020,Fire Technical Support,Vehicle Maintenance Costs,16.05,ADAMS MOREY LTD
Revenue,Fire & Rescue,Fire & Rescue Services,Fire fighting and Rescue Operations,5105648767,24.07.2020,Fire Technical Support,Vehicle Maintenance Costs,20.7,ADAMS MOREY LTD
Revenue,Fire & Rescue,Fire & Rescue Services,Fire fighting and Rescue Operations,5105648768,24.07.2020,Fire Technical Support,Vehicle Maintenance Costs,85.5,ADAMS MOREY LTD
Revenue,Childrens Services,Children's & Education Services,Special Schools & Alternative Provision,5105647351,10.07.2020,Island Learning Centre,Agency staff,"1,590.00",A-DAY CONSULTANTS LTD
Revenue,Childrens Services,Children's & Education Services,Special Schools & Alternative Provision,5105646817,03.07.2020,Island Learning Centre,Agency staff,"1,440.00",A-DAY CONSULTANTS LTD
Revenue,Childrens Services,Children's & Education Services,Special Schools & Alternative Provision,5105647574,14.07.2020,Island Learning Centre,Agency staff,"1,185.00",A-DAY CONSULTANTS LTD
Revenue,Childrens Services,Children's & Education Services,Special Schools & Alternative Provision,5105648434,24.07.2020,Island Learning Centre,Agency staff,"1,146.00",A-DAY CONSULTANTS LTD
Revenue,Childrens Services,Children's & Education Services,Special Schools & Alternative Provision,5105648801,24.07.2020,Island Learning Centre,Agency staff,441,A-DAY CONSULTANTS LTD
Revenue,Childrens Services,Children's & Education Services,Other Education and Community Budget,5105645768,03.07.2020,Home to School SEN Transport (LA),Taxis - Contract Hire,796.8,REDACTED PERSONAL DATA
Revenue,Childrens Services,Children's & Education Services,Other Education and Community Budget,5105645772,03.07.2020,Home to School SEN Transport (LA),Taxis - Contract Hire,448.2,REDACTED PERSONAL DATA
Revenue,Childrens Services,Children's & Education Services,Other Education and Community Budget,5105645773,03.07.2020,Home to School SEN Transport (LA),Taxis - Contract Hire,373.5,REDACTED PERSONAL DATA
Revenue,Childrens Services,Children's & Education Services,Other Education and Community Budget,5105645774,03.07.2020,Home to School SEN Transport (LA),Taxis - Contract Hire,622.5,REDACTED PERSONAL DATA
Revenue,Childrens Services,Children's & Education Services,Other Education and Community Budget,5105645776,03.07.2020,Home to School SEN Transport (LA),Taxis - Contract Hire,996,REDACTED PERSONAL DATA
Revenue,Childrens Services,Children's & Education Services,Other Education and Community Budget,5105645777,10.07.2020,Home to School SEN Transport (LA),Taxis - Contract Hire,622.5,REDACTED PERSONAL DATA
Revenue,Childrens Services,Children's & Education Services,Other Education and Community Budget,5105645645,03.07.2020,Home to School SEN Transport (LA),Taxis - Contract Hire,522.9,REDACTED PERSONAL DATA
Revenue,Childrens Services,Children's & Education Services,Other Education and Community Budget,5105645646,03.07.2020,Home to School SEN Transport (LA),Taxis - Contract Hire,332,REDACTED PERSONAL DATA
Revenue,Childrens Services,Children's & Education Services,Other Education and Community Budget,5105645647,03.07.2020,Home to School SEN Transport (LA),Taxis - Contract Hire,498,REDACTED PERSONAL DATA
Revenue,Childrens Services,Children's & Education Services,Other Education and Community Budget,5105645648,15.07.2020,Home to School SEN Transport (LA),Taxis - Contract Hire,498,REDACTED PERSONAL DATA
Revenue,Resources,Children's & Education Services,Other Education and Community Budget,5105648022,21.07.2020,Specialist Cross-Council Training,Training,"1,250.00",AIREY CONSULTANCY SERVICES LTD
Revenue,Regeneration,Central Services,Support Services,5105648690,24.07.2020,"Mariners Way, Cowes",Property Services - Planned Maintenance,90,AIRTEK SERVICES IOW LTD
Revenue,Regeneration,Central Services,Support Services,5105647501,21.07.2020,"County Hall,Newport",Property Services - Planned Maintenance,"1,070.00",AIRTEK SERVICES IOW LTD
Revenue,Regeneration,Central Services,Support Services,5105647658,21.07.2020,"Civic Centre,Sandown",Property Services - Planned Maintenance,80,AIRTEK SERVICES IOW LTD
Revenue,Adult Services,Adult Social Care,Learning Disability Suppt-adults (18-64),5105646956,07.07.2020,Learning Disability Residential 18-64,Charges from Independent Providers,"8,743.00",AITCH CARE HOMES (LONDON) LTD
Revenue,Childrens Services,Children's & Education Services,Other Education and Community Budget,5105648245,21.07.2020,Home to School SEN Transport (LA),Taxis - Contract Hire,440,AKAR TAXIS
Revenue,Adult Services,Adult Social Care,Assistive Equipment & Technology,5105648700,24.07.2020,Community Equipment Store,Operational Equipment,951.55,AKW MEDI-CARE LTD
Revenue,Neighbourhoods,Environmental & Regulatory Services,"Cemetery, Cremation & Mortuary Services",5105647376,10.07.2020,Crematorium,Operational Equipment,43.33,ALBANY FARM & G MACHINERY LTD
Revenue,Resources,Adult Social Care,Physical Support (to be reallocated),5105646871,10.07.2020,Blue Badge Admin Team Shared Services,Printing Costs,729.88,ALLIED PUBLICITY SERVICES LTD
Revenue,Resources,Adult Social Care,Physical Support (to be reallocated),5105647583,14.07.2020,Blue Badge Admin Team Shared Services,Printing Costs,555.12,ALLIED PUBLICITY SERVICES LTD
Revenue,Resources,Highways and Transport Services,Public Transport,5105648051,21.07.2020,Transport Fleet Administration,Vehicle Fuel Costs,"8,651.66",ALLSTAR BUSINESS SOLUTIONS LTD
Revenue,Childrens Services,Children's & Education Services,Other Education and Community Budget,5105648903,29.07.2020,Home to School SEN Transport (LA),Taxis - Contract Hire,60,ALPHA (IOW) LTD
Revenue,Childrens Services,Children's & Education Services,Other Education and Community Budget,5105648903,29.07.2020,Home to School SEN Transport (LA),Taxis - Contract Hire,320,ALPHA (IOW) LTD
Revenue,Childrens Services,Children's & Education Services,Other Education and Community Budget,5105648903,29.07.2020,Home to School SEN Transport (LA),Taxis - Contract Hire,316,ALPHA (IOW) LTD
Revenue,Childrens Services,Children's & Education Services,Other Education and Community Budget,5105648903,29.07.2020,Home to School SEN Transport (LA),Taxis - Contract Hire,560,ALPHA (IOW) LTD
Revenue,Childrens Services,Children's & Education Services,Other Education and Community Budget,5105648903,29.07.2020,Home to School SEN Transport (LA),Taxis - Contract Hire,48,ALPHA (IOW) LTD
Revenue,Childrens Services,Children's & Education Services,Other Education and Community Budget,5105648903,29.07.2020,Home to School SEN Transport (LA),Taxis - Contract Hire,200,ALPHA (IOW) LTD
Revenue,Childrens Services,Children's & Education Services,Other Education and Community Budget,5105648903,29.07.2020,Home to School SEN Transport (LA),Taxis - Contract Hire,288,ALPHA (IOW) LTD
Revenue,Childrens Services,Children's & Education Services,Other Education and Community Budget,5105648903,29.07.2020,Home to School SEN Transport (LA),Taxis - Contract Hire,300,ALPHA (IOW) LTD
Revenue,Childrens Services,Children's & Education Services,Other Education and Community Budget,5105648903,29.07.2020,Home to School SEN Transport (LA),Taxis - Contract Hire,460,ALPHA (IOW) LTD
Revenue,Childrens Services,Children's & Education Services,Other Education and Community Budget,5105648903,29.07.2020,Home to School SEN Transport (LA),Taxis - Contract Hire,40,ALPHA (IOW) LTD
Revenue,Childrens Services,Children's & Education Services,Other Education and Community Budget,5105648903,29.07.2020,Home to School SEN Transport (LA),Taxis - Contract Hire,80,ALPHA (IOW) LTD
Revenue,Childrens Services,Children's & Education Services,Other Education and Community Budget,5105648903,29.07.2020,Home to School SEN Transport (LA),Taxis - Contract Hire,12,ALPHA (IOW) LTD
Revenue,Childrens Services,Children's & Education Services,Other Education and Community Budget,5105648903,29.07.2020,Home to School SEN Transport (LA),Taxis - Contract Hire,480,ALPHA (IOW) LTD
Revenue,Childrens Services,Children's & Education Services,Other Education and Community Budget,5105648309,22.07.2020,Home to School SEN Transport (LA),Taxis - Contract Hire,260,ALPHA (IOW) LTD
Revenue,Childrens Services,Children's & Education Services,Other Education and Community Budget,5105648309,22.07.2020,Home to School SEN Transport (LA),Taxis - Contract Hire,320,ALPHA (IOW) LTD
Revenue,Childrens Services,Children's & Education Services,Other Education and Community Budget,5105648309,22.07.2020,Home to School SEN Transport (LA),Taxis - Contract Hire,316,ALPHA (IOW) LTD
Revenue,Childrens Services,Children's & Education Services,Other Education and Community Budget,5105648309,22.07.2020,Home to School SEN Transport (LA),Taxis - Contract Hire,560,ALPHA (IOW) LTD
Revenue,Childrens Services,Children's & Education Services,Other Education and Community Budget,5105648309,22.07.2020,Home to School SEN Transport (LA),Taxis - Contract Hire,48,ALPHA (IOW) LTD
Revenue,Childrens Services,Children's & Education Services,Other Education and Community Budget,5105648309,22.07.2020,Home to School SEN Transport (LA),Taxis - Contract Hire,480,ALPHA (IOW) LTD
Revenue,Childrens Services,Children's & Education Services,Other Education and Community Budget,5105648309,22.07.2020,Home to School SEN Transport (LA),Taxis - Contract Hire,200,ALPHA (IOW) LTD
Revenue,Childrens Services,Children's & Education Services,Other Education and Community Budget,5105648309,22.07.2020,Home to School SEN Transport (LA),Taxis - Contract Hire,288,ALPHA (IOW) LTD
Revenue,Childrens Services,Children's & Education Services,Other Education and Community Budget,5105648309,22.07.2020,Home to School SEN Transport (LA),Taxis - Contract Hire,300,ALPHA (IOW) LTD
Revenue,Childrens Services,Children's & Education Services,Other Education and Community Budget,5105648309,22.07.2020,Home to School SEN Transport (LA),Taxis - Contract Hire,460,ALPHA (IOW) LTD
Revenue,Childrens Services,Children's & Education Services,Other Education and Community Budget,5105648309,22.07.2020,Home to School SEN Transport (LA),Taxis - Contract Hire,40,ALPHA (IOW) LTD
Revenue,Childrens Services,Children's & Education Services,Other Education and Community Budget,5105648309,22.07.2020,Home to School SEN Transport (LA),Taxis - Contract Hire,80,ALPHA (IOW) LTD
Revenue,Childrens Services,Children's & Education Services,Other Education and Community Budget,5105648309,22.07.2020,Home to School SEN Transport (LA),Taxis - Contract Hire,12,ALPHA (IOW) LTD
Revenue,Childrens Services,Children's & Education Services,Other Education and Community Budget,5105646336,31.07.2020,Home to School SEN Transport (LA),Taxis - Contract Hire,310,ALPHA (IOW) LTD
Revenue,Childrens Services,Children's & Education Services,Other Education and Community Budget,5105646336,31.07.2020,Home to School SEN Transport (LA),Taxis - Contract Hire,400,ALPHA (IOW) LTD
Revenue,Childrens Services,Children's & Education Services,Other Education and Community Budget,5105646578,03.07.2020,Home to School SEN Transport (LA),Taxis - Contract Hire,460,ALPHA (IOW) LTD
Revenue,Childrens Services,Children's & Education Services,Other Education and Community Budget,5105646578,03.07.2020,Home to School SEN Transport (LA),Taxis - Contract Hire,208,ALPHA (IOW) LTD
Revenue,Childrens Services,Children's & Education Services,Other Education and Community Budget,5105646578,03.07.2020,Home to School SEN Transport (LA),Taxis - Contract Hire,40,ALPHA (IOW) LTD
Revenue,Childrens Services,Children's & Education Services,Other Education and Community Budget,5105646578,03.07.2020,Home to School SEN Transport (LA),Taxis - Contract Hire,80,ALPHA (IOW) LTD
Revenue,Childrens Services,Children's & Education Services,Other Education and Community Budget,5105646578,03.07.2020,Home to School SEN Transport (LA),Taxis - Contract Hire,12,ALPHA (IOW) LTD
Revenue,Childrens Services,Children's & Education Services,Other Education and Community Budget,5105646578,03.07.2020,Home to School SEN Transport (LA),Taxis - Contract Hire,480,ALPHA (IOW) LTD
Revenue,Childrens Services,Children's & Education Services,Other Education and Community Budget,5105646578,03.07.2020,Home to School SEN Transport (LA),Taxis - Contract Hire,200,ALPHA (IOW) LTD
Revenue,Childrens Services,Children's & Education Services,Other Education and Community Budget,5105646578,03.07.2020,Home to School SEN Transport (LA),Taxis - Contract Hire,240,ALPHA (IOW) LTD
Revenue,Childrens Services,Children's & Education Services,Other Education and Community Budget,5105646578,03.07.2020,Home to School SEN Transport (LA),Taxis - Contract Hire,360,ALPHA (IOW) LTD
Revenue,Childrens Services,Children's & Education Services,Other Education and Community Budget,5105646578,03.07.2020,Home to School SEN Transport (LA),Taxis - Contract Hire,300,ALPHA (IOW) LTD
Revenue,Childrens Services,Children's & Education Services,Other Education and Community Budget,5105646578,03.07.2020,Home to School SEN Transport (LA),Taxis - Contract Hire,260,ALPHA (IOW) LTD
Revenue,Childrens Services,Children's & Education Services,Other Education and Community Budget,5105646578,03.07.2020,Home to School SEN Transport (LA),Taxis - Contract Hire,320,ALPHA (IOW) LTD
Revenue,Childrens Services,Children's & Education Services,Other Education and Community Budget,5105646578,03.07.2020,Home to School SEN Transport (LA),Taxis - Contract Hire,316,ALPHA (IOW) LTD
Revenue,Childrens Services,Children's & Education Services,Other Education and Community Budget,5105646578,03.07.2020,Home to School SEN Transport (LA),Taxis - Contract Hire,560,ALPHA (IOW) LTD
Revenue,Childrens Services,Children's & Education Services,Other Education and Community Budget,5105647386,17.07.2020,Home to School SEN Transport (LA),Taxis - Contract Hire,350,ALPHA (IOW) LTD
Revenue,Childrens Services,Children's & Education Services,Other Education and Community Budget,5105647386,17.07.2020,Home to School SEN Transport (LA),Taxis - Contract Hire,200,ALPHA (IOW) LTD
Revenue,Childrens Services,Children's & Education Services,Other Education and Community Budget,5105647386,17.07.2020,Home to School SEN Transport (LA),Taxis - Contract Hire,230,ALPHA (IOW) LTD
Revenue,Childrens Services,Children's & Education Services,Other Education and Community Budget,5105647386,17.07.2020,Home to School SEN Transport (LA),Taxis - Contract Hire,140,ALPHA (IOW) LTD
Revenue,Childrens Services,Children's & Education Services,Other Education and Community Budget,5105647386,17.07.2020,Home to School SEN Transport (LA),Taxis - Contract Hire,260,ALPHA (IOW) LTD
Revenue,Childrens Services,Children's & Education Services,Other Education and Community Budget,5105647386,17.07.2020,Home to School SEN Transport (LA),Taxis - Contract Hire,310,ALPHA (IOW) LTD
Revenue,Childrens Services,Children's & Education Services,Other Education and Community Budget,5105647386,17.07.2020,Home to School SEN Transport (LA),Taxis - Contract Hire,500,ALPHA (IOW) LTD
Revenue,Childrens Services,Children's & Education Services,Other Education and Community Budget,5105647386,17.07.2020,Home to School SEN Transport (LA),Taxis - Contract Hire,450,ALPHA (IOW) LTD
Revenue,Childrens Services,Children's & Education Services,Other Education and Community Budget,5105647386,17.07.2020,Home to School SEN Transport (LA),Taxis - Contract Hire,280,ALPHA (IOW) LTD
Revenue,Childrens Services,Children's & Education Services,Other Education and Community Budget,5105647386,17.07.2020,Home to School SEN Transport (LA),Taxis - Contract Hire,120,ALPHA (IOW) LTD
Revenue,Childrens Services,Children's & Education Services,Other Education and Community Budget,5105647709,17.07.2020,Home to School SEN Transport (LA),Taxis - Contract Hire,200,ALPHA (IOW) LTD
Revenue,Childrens Services,Children's & Education Services,Other Education and Community Budget,5105647709,17.07.2020,Home to School SEN Transport (LA),Taxis - Contract Hire,140,ALPHA (IOW) LTD
Revenue,Childrens Services,Children's & Education Services,Other Education and Community Budget,5105647709,17.07.2020,Home to School SEN Transport (LA),Taxis - Contract Hire,260,ALPHA (IOW) LTD
Revenue,Childrens Services,Children's & Education Services,Other Education and Community Budget,5105647709,17.07.2020,Home to School SEN Transport (LA),Taxis - Contract Hire,310,ALPHA (IOW) LTD
Revenue,Childrens Services,Children's & Education Services,Other Education and Community Budget,5105647709,17.07.2020,Home to School SEN Transport (LA),Taxis - Contract Hire,525,ALPHA (IOW) LTD
Revenue,Childrens Services,Children's & Education Services,Other Education and Community Budget,5105647709,17.07.2020,Home to School SEN Transport (LA),Taxis - Contract Hire,350,ALPHA (IOW) LTD
Revenue,Childrens Services,Children's & Education Services,Other Education and Community Budget,5105647709,17.07.2020,Home to School SEN Transport (LA),Taxis - Contract Hire,300,ALPHA (IOW) LTD
Revenue,Childrens Services,Children's & Education Services,Other Education and Community Budget,5105647709,17.07.2020,Home to School SEN Transport (LA),Taxis - Contract Hire,300,ALPHA (IOW) LTD
Revenue,Childrens Services,Children's & Education Services,Other Education and Community Budget,5105647709,17.07.2020,Home to School SEN Transport (LA),Taxis - Contract Hire,450,ALPHA (IOW) LTD
Revenue,Childrens Services,Children's & Education Services,Other Education and Community Budget,5105647709,17.07.2020,Home to School SEN Transport (LA),Taxis - Contract Hire,280,ALPHA (IOW) LTD
Revenue,Childrens Services,Children's & Education Services,Other Education and Community Budget,5105647709,17.07.2020,Home to School SEN Transport (LA),Taxis - Contract Hire,120,ALPHA (IOW) LTD
Revenue,Childrens Services,Children's & Education Services,Other Education and Community Budget,5105647708,31.07.2020,Home to School SEN Transport (LA),Taxis - Contract Hire,260,ALPHA (IOW) LTD
Revenue,Childrens Services,Children's & Education Services,Other Education and Community Budget,5105647708,31.07.2020,Home to School SEN Transport (LA),Taxis - Contract Hire,320,ALPHA (IOW) LTD
Revenue,Childrens Services,Children's & Education Services,Other Education and Community Budget,5105647708,31.07.2020,Home to School SEN Transport (LA),Taxis - Contract Hire,316,ALPHA (IOW) LTD
Revenue,Childrens Services,Children's & Education Services,Other Education and Community Budget,5105647708,31.07.2020,Home to School SEN Transport (LA),Taxis - Contract Hire,560,ALPHA (IOW) LTD
Revenue,Childrens Services,Children's & Education Services,Other Education and Community Budget,5105647708,31.07.2020,Home to School SEN Transport (LA),Taxis - Contract Hire,24,ALPHA (IOW) LTD
Revenue,Childrens Services,Children's & Education Services,Other Education and Community Budget,5105647708,31.07.2020,Home to School SEN Transport (LA),Taxis - Contract Hire,480,ALPHA (IOW) LTD
Revenue,Childrens Services,Children's & Education Services,Other Education and Community Budget,5105647708,31.07.2020,Home to School SEN Transport (LA),Taxis - Contract Hire,200,ALPHA (IOW) LTD
Revenue,Childrens Services,Children's & Education Services,Other Education and Community Budget,5105647708,31.07.2020,Home to School SEN Transport (LA),Taxis - Contract Hire,360,ALPHA (IOW) LTD
Revenue,Childrens Services,Children's & Education Services,Other Education and Community Budget,5105647708,31.07.2020,Home to School SEN Transport (LA),Taxis - Contract Hire,300,ALPHA (IOW) LTD
Revenue,Childrens Services,Children's & Education Services,Other Education and Community Budget,5105647708,31.07.2020,Home to School SEN Transport (LA),Taxis - Contract Hire,460,ALPHA (IOW) LTD
Revenue,Childrens Services,Children's & Education Services,Other Education and Community Budget,5105647708,31.07.2020,Home to School SEN Transport (LA),Taxis - Contract Hire,40,ALPHA (IOW) LTD
Revenue,Childrens Services,Children's & Education Services,Other Education and Community Budget,5105647708,31.07.2020,Home to School SEN Transport (LA),Taxis - Contract Hire,80,ALPHA (IOW) LTD
Revenue,Childrens Services,Children's & Education Services,Other Education and Community Budget,5105647708,31.07.2020,Home to School SEN Transport (LA),Taxis - Contract Hire,12,ALPHA (IOW) LTD
Revenue,Childrens Services,Children's & Education Services,Other Education and Community Budget,5105646336,31.07.2020,Home to School SEN Transport (LA),Taxis - Contract Hire,450,ALPHA (IOW) LTD
Revenue,Childrens Services,Children's & Education Services,Other Education and Community Budget,5105646336,31.07.2020,Home to School SEN Transport (LA),Taxis - Contract Hire,350,ALPHA (IOW) LTD
Revenue,Childrens Services,Children's & Education Services,Other Education and Community Budget,5105646336,31.07.2020,Home to School SEN Transport (LA),Taxis - Contract Hire,200,ALPHA (IOW) LTD
Revenue,Childrens Services,Children's & Education Services,Other Education and Community Budget,5105646336,31.07.2020,Home to School SEN Transport (LA),Taxis - Contract Hire,280,ALPHA (IOW) LTD
Revenue,Childrens Services,Children's & Education Services,Other Education and Community Budget,5105646336,31.07.2020,Home to School SEN Transport (LA),Taxis - Contract Hire,120,ALPHA (IOW) LTD
Revenue,Childrens Services,Children's & Education Services,Other Education and Community Budget,5105645342,17.07.2020,Home to School SEN Transport (LA),Taxis - Contract Hire,450,ALPHA (IOW) LTD
Revenue,Childrens Services,Children's & Education Services,Other Education and Community Budget,5105645342,17.07.2020,Home to School SEN Transport (LA),Taxis - Contract Hire,280,ALPHA (IOW) LTD
Revenue,Childrens Services,Children's & Education Services,Other Education and Community Budget,5105645342,17.07.2020,Home to School SEN Transport (LA),Taxis - Contract Hire,350,ALPHA (IOW) LTD
Revenue,Childrens Services,Children's & Education Services,Other Education and Community Budget,5105645342,17.07.2020,Home to School SEN Transport (LA),Taxis - Contract Hire,200,ALPHA (IOW) LTD
Revenue,Childrens Services,Children's & Education Services,Other Education and Community Budget,5105645342,17.07.2020,Home to School SEN Transport (LA),Taxis - Contract Hire,310,ALPHA (IOW) LTD
Revenue,Childrens Services,Children's & Education Services,Other Education and Community Budget,5105645342,17.07.2020,Home to School SEN Transport (LA),Taxis - Contract Hire,400,ALPHA (IOW) LTD
Revenue,Childrens Services,Children's & Education Services,Other Education and Community Budget,5105647707,17.07.2020,Home to College Post 16 Transport,Taxis - Contract Hire,728,ALPHA (IOW) LTD
Revenue,Childrens Services,Children's & Education Services,Other Education and Community Budget,5105647707,17.07.2020,Home to College Post 16 Transport,Taxis - Contract Hire,224,ALPHA (IOW) LTD
Revenue,Childrens Services,Children's & Education Services,Other Education and Community Budget,5105647707,17.07.2020,Home to College Post 16 Transport,Taxis - Contract Hire,520,ALPHA (IOW) LTD
Revenue,Childrens Services,Children's & Education Services,Other Education and Community Budget,5105647707,17.07.2020,Home to College Post 16 Transport,Taxis - Contract Hire,448,ALPHA (IOW) LTD
Revenue,Childrens Services,Children's & Education Services,Other Education and Community Budget,5105648903,29.07.2020,Home to School Mainstream Transport,Taxis - Contract Hire,56,ALPHA (IOW) LTD
Revenue,Childrens Services,Children's & Education Services,Other Education and Community Budget,5105648903,29.07.2020,Home to School Mainstream Transport,Taxis - Contract Hire,80,ALPHA (IOW) LTD
Revenue,Childrens Services,Children's & Education Services,Other Education and Community Budget,5105648903,29.07.2020,Home to School Mainstream Transport,Taxis - Contract Hire,168,ALPHA (IOW) LTD
Revenue,Childrens Services,Children's & Education Services,Other Education and Community Budget,5105648903,29.07.2020,Home to School Mainstream Transport,Taxis - Contract Hire,160,ALPHA (IOW) LTD
Revenue,Childrens Services,Children's & Education Services,Other Education and Community Budget,5105648309,22.07.2020,Home to School Mainstream Transport,Taxis - Contract Hire,80,ALPHA (IOW) LTD
Revenue,Childrens Services,Children's & Education Services,Other Education and Community Budget,5105648309,22.07.2020,Home to School Mainstream Transport,Taxis - Contract Hire,56,ALPHA (IOW) LTD
Revenue,Childrens Services,Children's & Education Services,Other Education and Community Budget,5105648309,22.07.2020,Home to School Mainstream Transport,Taxis - Contract Hire,168,ALPHA (IOW) LTD
Revenue,Childrens Services,Children's & Education Services,Other Education and Community Budget,5105648309,22.07.2020,Home to School Mainstream Transport,Taxis - Contract Hire,160,ALPHA (IOW) LTD
Revenue,Childrens Services,Children's & Education Services,Other Education and Community Budget,5105647709,17.07.2020,Home to School Mainstream Transport,Taxis - Contract Hire,300,ALPHA (IOW) LTD
Revenue,Childrens Services,Children's & Education Services,Other Education and Community Budget,5105647709,17.07.2020,Home to School Mainstream Transport,Taxis - Contract Hire,600,ALPHA (IOW) LTD
Revenue,Childrens Services,Children's & Education Services,Other Education and Community Budget,5105647708,31.07.2020,Home to School Mainstream Transport,Taxis - Contract Hire,80,ALPHA (IOW) LTD
Revenue,Childrens Services,Children's & Education Services,Other Education and Community Budget,5105647708,31.07.2020,Home to School Mainstream Transport,Taxis - Contract Hire,56,ALPHA (IOW) LTD
Revenue,Childrens Services,Children's & Education Services,Other Education and Community Budget,5105647708,31.07.2020,Home to School Mainstream Transport,Taxis - Contract Hire,280,ALPHA (IOW) LTD
Revenue,Childrens Services,Children's & Education Services,Other Education and Community Budget,5105647708,31.07.2020,Home to School Mainstream Transport,Taxis - Contract Hire,200,ALPHA (IOW) LTD
Revenue,Childrens Services,Children's & Education Services,Other Education and Community Budget,5105646578,03.07.2020,Home to School Mainstream Transport,Taxis - Contract Hire,280,ALPHA (IOW) LTD
Revenue,Childrens Services,Children's & Education Services,Other Education and Community Budget,5105646578,03.07.2020,Home to School Mainstream Transport,Taxis - Contract Hire,200,ALPHA (IOW) LTD
Revenue,Childrens Services,Children's & Education Services,Other Education and Community Budget,5105646578,03.07.2020,Home to School Mainstream Transport,Taxis - Contract Hire,80,ALPHA (IOW) LTD
Revenue,Childrens Services,Children's & Education Services,Other Education and Community Budget,5105646578,03.07.2020,Home to School Mainstream Transport,Taxis - Contract Hire,56,ALPHA (IOW) LTD
Revenue,Childrens Services,Children's & Education Services,Other Education and Community Budget,5105646578,03.07.2020,Home to School Mainstream Transport,Taxis - Contract Hire,240,ALPHA (IOW) LTD
Revenue,Childrens Services,Children's & Education Services,Other Education and Community Budget,5105647386,17.07.2020,Home to School Mainstream Transport,Taxis - Contract Hire,600,ALPHA (IOW) LTD
Revenue,Childrens Services,Children's & Education Services,Other Education and Community Budget,5105645342,17.07.2020,Home to School Mainstream Transport,Taxis - Contract Hire,250,ALPHA (IOW) LTD
Revenue,Childrens Services,Children's & Education Services,Other Education and Community Budget,5105645342,17.07.2020,Home to School Mainstream Transport,Taxis - Contract Hire,600,ALPHA (IOW) LTD
Revenue,Childrens Services,Children's & Education Services,Other Education and Community Budget,5105646336,31.07.2020,Home to School Mainstream Transport,Taxis - Contract Hire,250,ALPHA (IOW) LTD
Revenue,Childrens Services,Children's & Education Services,Other Education and Community Budget,5105646336,31.07.2020,Home to School Mainstream Transport,Taxis - Contract Hire,600,ALPHA (IOW) LTD
Revenue,Adult Services,Adult Social Care,Learning Disability Suppt-adults (18-64),5105646910,07.07.2020,Learning Disability Residential 18-64,Charges from Independent Providers,"3,836.84",ALPHAGRANGE LTD
Revenue,Neighbourhoods,Cultural and Related Services,Recreation and Sport,5105647631,17.07.2020,Extended Activities,Operational Equipment,300,AL'S BIKES
Revenue,Neighbourhoods,Central Services,Central Services to the Public,5105648749,24.07.2020,NB Covid-19,Operational Equipment,237.5,ALSOPRINT LTD
Revenue,Neighbourhoods,Central Services,Central Services to the Public,5105648722,24.07.2020,NB Covid-19,Operational Equipment,225,ALSOPRINT LTD
Revenue,Adult Services,Central Services,Central Services to the Public,5105648773,24.07.2020,AS Covid-19 (Housing),Accommodation Costs - Bed & Breakfast,175,"VICTORIA LODGE HOTEL, SHANKLIN"
Revenue,Adult Services,Central Services,Central Services to the Public,5105648774,24.07.2020,AS Covid-19 (Housing),Accommodation Costs - Bed & Breakfast,175,"VICTORIA LODGE HOTEL, SHANKLIN"
Revenue,Adult Services,Central Services,Central Services to the Public,5105649234,31.07.2020,AS Covid-19 (Housing),Accommodation Costs - Bed & Breakfast,175,"VICTORIA LODGE HOTEL, SHANKLIN"
Revenue,Adult Services,Central Services,Central Services to the Public,5105649235,31.07.2020,AS Covid-19 (Housing),Accommodation Costs - Bed & Breakfast,175,"VICTORIA LODGE HOTEL, SHANKLIN"
Revenue,Adult Services,Central Services,Central Services to the Public,5105648192,29.07.2020,AS Covid-19 (Housing),Accommodation Costs - Bed & Breakfast,175,"VICTORIA LODGE HOTEL, SHANKLIN"
Revenue,Adult Services,Central Services,Central Services to the Public,5105648197,29.07.2020,AS Covid-19 (Housing),Accommodation Costs - Bed & Breakfast,175,"VICTORIA LODGE HOTEL, SHANKLIN"
Revenue,Adult Services,Central Services,Central Services to the Public,5105647032,07.07.2020,AS Covid-19 (Housing),Accommodation Costs - Bed & Breakfast,175,"VICTORIA LODGE HOTEL, SHANKLIN"
Revenue,Neighbourhoods,Cultural and Related Services,Recreation and Sport,5105647119,10.07.2020,Play Development,Operational Equipment,313,AMP HIRE LTD
Revenue,Resources,Central Services,Support Services,5105647073,07.07.2020,Litigation Costs,Legal Fees - Other Parties,400,COLLEGE CHAMBERS BARRISTERS
Revenue,Resources,Central Services,Support Services,5105649254,31.07.2020,Litigation Costs,Legal Fees - Other Parties,400,COLLEGE CHAMBERS BARRISTERS
Revenue,Resources,Central Services,Support Services,5105647963,17.07.2020,Litigation Costs,Legal Fees - Other Parties,"2,200.00",COLLEGE CHAMBERS BARRISTERS
Revenue,Resources,Central Services,Support Services,5105647970,17.07.2020,Litigation Costs,Legal Fees - Other Parties,400,COLLEGE CHAMBERS BARRISTERS
Revenue,Resources,Central Services,Support Services,5105648419,22.07.2020,Litigation Costs,Legal Fees - Other Parties,400,COLLEGE CHAMBERS BARRISTERS
Revenue,Resources,Central Services,Support Services,5105646863,03.07.2020,Litigation Costs,Legal Fees - Other Parties,400,COLLEGE CHAMBERS BARRISTERS
Revenue,Adult Services,Adult Social Care,Support - Memory/Cognition-adults (18-64),5105646885,07.07.2020,Memory & Cognition Residential 18-64,Charges from Independent Providers,"1,602.93",ANA TREATMENT CENTRES LTD
Revenue,Adult Services,Balance Sheet,Balance Sheet,5105646911,07.07.2020,REDACTED PERSONAL DATA,Order Settlement to Bal Sht GL,"2,497.32",ANCONA CARE HOME
Revenue,Adult Services,Adult Social Care,Physical Support - older people (65+),5105646911,07.07.2020,Physical Support Residential 65+,Charges from Independent Providers,"2,028.32",ANCONA CARE HOME
Revenue,Adult Services,Adult Social Care,Physical Support - older people (65+),5105646911,07.07.2020,Physical Support Residential 65+,Charges from Independent Providers,"2,028.32",ANCONA CARE HOME
Revenue,Adult Services,Adult Social Care,Physical Support - older people (65+),5105646911,07.07.2020,Physical Support Residential 65+,Charges from Independent Providers,"2,497.32",ANCONA CARE HOME
Revenue,Assistant Chief Executive,Central Services,Support Services,5105647585,15.07.2020,Print Unit,Printing Costs,112.35,ANTALIS MCNAUGHTON
Revenue,Assistant Chief Executive,Central Services,Support Services,5105647585,15.07.2020,Print Unit,Printing Costs,54.2,ANTALIS MCNAUGHTON
Revenue,Assistant Chief Executive,Central Services,Support Services,5105647585,15.07.2020,Print Unit,Printing Costs,29.85,ANTALIS MCNAUGHTON
Revenue,Resources,Central Services,Support Services,5105646869,07.07.2020,Litigation Costs,Legal Fees - Other Parties,202.5,"ST PHILLIPS BARRISTERS, BIRMINGHAM"
Revenue,Adult Services,Adult Social Care,Assistive Equipment & Technology,5105648898,29.07.2020,Wightcare,Operational Equipment,240,ANYWHERE CARE LIMITED
Revenue,Neighbourhoods,Highways and Transport Services,Parking Services,5105647686,17.07.2020,Parking Attendants,Operational Equipment,"1,425.00",ANYWHERE CARE LIMITED
Revenue,Neighbourhoods,Highways and Transport Services,Parking Services,5105647686,17.07.2020,Parking Attendants,Operational Equipment,900,ANYWHERE CARE LIMITED
Revenue,Fire & Rescue,Fire & Rescue Services,Fire fighting and Rescue Operations,5105648036,29.07.2020,Fire Technical Support,Clothing & Laundry,16.61,ARCO LTD
Revenue,Neighbourhoods,Highways and Transport Services,Parking Services,5105648140,22.07.2020,Parking Attendants,Clothing & Laundry,51.48,ARCO LTD
Revenue,Neighbourhoods,Highways and Transport Services,Parking Services,5105648913,29.07.2020,Parking Attendants,Clothing & Laundry,27,ARCO LTD
Revenue,Neighbourhoods,Highways and Transport Services,Parking Services,5105648913,29.07.2020,Parking Attendants,Clothing & Laundry,175.5,ARCO LTD
Revenue,Public Health,Public Health,NHS Health Check Programme,5105649002,29.07.2020,NHS Health Check Programme P,Payment to Private Contractors,-97,ARGYLL HOUSE SURGERY
Revenue,Adult Services,Adult Social Care,Social Support - Support for Carer,5105648123,29.07.2020,Westminster House,Maintenance of Operational Equipment,269,ARJO UK LTD
Revenue,Adult Services,Adult Social Care,Social Support - Support for Carer,5105648129,29.07.2020,Westminster House,Maintenance of Operational Equipment,76,ARJO UK LTD
Revenue,Adult Services,Adult Social Care,Assistive Equipment & Technology,5105648461,24.07.2020,Community Equipment Store,Operational Equipment,251,ARJO UK LTD
Revenue,Adult Services,Adult Social Care,Learning Disab Supp (to be reallocated),5105648125,21.07.2020,Seagulls (Now SL),Minor Works,42,ARJO UK LTD
Revenue,Adult Services,Adult Social Care,Learning Disab Supp (to be reallocated),5105648134,21.07.2020,40 Venner Avenue (Now SL),Minor Works,42,ARJO UK LTD
Revenue,Adult Services,Adult Social Care,Social Support - Support for Carer,5105646968,07.07.2020,Carers Residential,Charges from Independent Providers,"2,497.32",ASHMERE DERBYSHIRE LIMITED
Revenue,Childrens Services,Children's & Education Services,Other Education and Community Budget,5105649299,31.07.2020,Commissioning ACL,Grants to External Bodies,"1,930.00",ASPIRE RYDE
Revenue,Childrens Services,Children's & Education Services,Special Schools & Alternative Provision,5105649271,31.07.2020,Island Learning Centre,Schools Examination Fees,438,ASSESSMENT & QUALIFICATION ALLIANCE
Revenue,Resources,Children's & Education Services,Other Education and Community Budget,5105648084,21.07.2020,Specialist Cross-Council Training,Training,"1,585.00",ASSOCIATION OF ELECTORAL ADMINISTRATORS
Revenue,Resources,Children's & Education Services,Other Education and Community Budget,5105648486,29.07.2020,Specialist Cross-Council Training,Training,70,ASTRID DAVIES CONSULTING LTD
Revenue,Neighbourhoods,Highways and Transport Services,"Airports, Harbours & Toll Facilities",5105647534,14.07.2020,Ferry Operation,Operational Equipment,124.5,ATLANTIS MARINE POWER LTD
Revenue,Neighbourhoods,Highways and Transport Services,"Airports, Harbours & Toll Facilities",5105647534,14.07.2020,Ferry Operation,Operational Equipment,17.95,ATLANTIS MARINE POWER LTD
Revenue,Neighbourhoods,Highways and Transport Services,"Airports, Harbours & Toll Facilities",5105647534,14.07.2020,Ferry Operation,Operational Equipment,197.1,ATLANTIS MARINE POWER LTD
Revenue,Neighbourhoods,Highways and Transport Services,"Airports, Harbours & Toll Facilities",5105647534,14.07.2020,Ferry Operation,Operational Equipment,85.28,ATLANTIS MARINE POWER LTD
Revenue,Neighbourhoods,Cultural and Related Services,Culture and Heritage,5105647338,10.07.2020,Medina Theatre,Property Services - Planned Maintenance,140.32,ASSA ABLOY ENTRANCE SYSTEMS LTD
Revenue,Neighbourhoods,Cultural and Related Services,Recreation and Sport,5105647340,10.07.2020,Medina Leisure Centre,Property Services - Planned Maintenance,51.02,ASSA ABLOY ENTRANCE SYSTEMS LTD
Revenue,Childrens Services,Children's & Education Services,Children Looked After,5105647336,10.07.2020,Beaulieu House,Minor Works,174.73,ASSA ABLOY ENTRANCE SYSTEMS LTD
Revenue,Childrens Services,Children's & Education Services,Children Looked After,5105647337,10.07.2020,Beaulieu House,Minor Works,276.78,ASSA ABLOY ENTRANCE SYSTEMS LTD
Revenue,Regeneration,Central Services,Support Services,5105647339,10.07.2020,"Seaclose Offices, Newport",Property Services - Planned Maintenance,228.76,ASSA ABLOY ENTRANCE SYSTEMS LTD
Revenue,Adult Services,Balance Sheet,Balance Sheet,5105646892,07.07.2020,REDACTED PERSONAL DATA,Order Settlement to Bal Sht GL,"2,497.32",AUTUMN HOUSE CARE LTD
Revenue,Adult Services,Balance Sheet,Balance Sheet,5105646892,07.07.2020,REDACTED PERSONAL DATA,Order Settlement to Bal Sht GL,908.88,AUTUMN HOUSE CARE LTD
Revenue,Adult Services,Adult Social Care,Support - Memory /Cognition-older people (65+),5105646892,07.07.2020,Memory & Cognition Residential 65+,Charges from Independent Providers,"2,497.32",AUTUMN HOUSE CARE LTD
Revenue,Adult Services,Adult Social Care,Support - Memory /Cognition-older people (65+),5105646892,07.07.2020,Memory & Cognition Residential 65+,Charges from Independent Providers,"2,497.32",AUTUMN HOUSE CARE LTD
Revenue,Adult Services,Adult Social Care,Support - Memory /Cognition-older people (65+),5105646892,07.07.2020,Memory & Cognition Residential 65+,Charges from Independent Providers,"2,124.08",AUTUMN HOUSE CARE LTD
Revenue,Adult Services,Adult Social Care,Support - Memory /Cognition-older people (65+),5105646892,07.07.2020,Memory & Cognition Residential 65+,Charges from Independent Providers,"2,497.32",AUTUMN HOUSE CARE LTD
Revenue,Adult Services,Adult Social Care,Support - Memory /Cognition-older people (65+),5105646892,07.07.2020,Memory & Cognition Residential 65+,Charges from Independent Providers,"2,497.32",AUTUMN HOUSE CARE LTD
Revenue,Adult Services,Adult Social Care,Support - Memory /Cognition-older people (65+),5105646892,07.07.2020,Memory & Cognition Residential 65+,Charges from Independent Providers,"2,800.00",AUTUMN HOUSE CARE LTD
Revenue,Adult Services,Adult Social Care,Support - Memory /Cognition-older people (65+),5105646892,07.07.2020,Memory & Cognition Residential 65+,Charges from Independent Providers,"2,497.32",AUTUMN HOUSE CARE LTD
Revenue,Adult Services,Adult Social Care,Support - Memory /Cognition-older people (65+),5105646892,07.07.2020,Memory & Cognition Residential 65+,Charges from Independent Providers,"2,497.32",AUTUMN HOUSE CARE LTD
Revenue,Adult Services,Adult Social Care,Support - Memory /Cognition-older people (65+),5105646892,07.07.2020,Memory & Cognition Residential 65+,Charges from Independent Providers,"2,229.75",AUTUMN HOUSE CARE LTD
Revenue,Adult Services,Balance Sheet,Balance Sheet,5105646892,07.07.2020,REDACTED PERSONAL DATA,Order Settlement to Bal Sht GL,"2,124.08",AUTUMN HOUSE CARE LTD
Revenue,Adult Services,Balance Sheet,Balance Sheet,5105646892,07.07.2020,REDACTED PERSONAL DATA,Order Settlement to Bal Sht GL,"2,124.08",AUTUMN HOUSE CARE LTD
Revenue,Adult Services,Adult Social Care,Physical Support - older people (65+),5105646892,07.07.2020,Physical Support Residential 65+,Charges from Independent Providers,"2,497.32",AUTUMN HOUSE CARE LTD
Revenue,Adult Services,Adult Social Care,Physical Support - older people (65+),5105646892,07.07.2020,Physical Support Residential 65+,Charges from Independent Providers,"2,497.32",AUTUMN HOUSE CARE LTD
Revenue,Adult Services,Adult Social Care,Physical Support - older people (65+),5105646892,07.07.2020,Physical Support Residential 65+,Charges from Independent Providers,"2,497.32",AUTUMN HOUSE CARE LTD
Revenue,Adult Services,Adult Social Care,Physical Support - older people (65+),5105646892,07.07.2020,Physical Support Residential 65+,Charges from Independent Providers,"2,497.32",AUTUMN HOUSE CARE LTD
Revenue,Adult Services,Adult Social Care,Physical Support - older people (65+),5105646892,07.07.2020,Physical Support Residential 65+,Charges from Independent Providers,"2,497.32",AUTUMN HOUSE CARE LTD
Revenue,Adult Services,Adult Social Care,Physical Support - older people (65+),5105646892,07.07.2020,Physical Support Residential 65+,Charges from Independent Providers,"2,497.32",AUTUMN HOUSE CARE LTD
Revenue,Adult Services,Adult Social Care,Physical Support - older people (65+),5105646892,07.07.2020,Physical Support Residential 65+,Charges from Independent Providers,"2,497.32",AUTUMN HOUSE CARE LTD
Revenue,Adult Services,Adult Social Care,Physical Support - older people (65+),5105646892,07.07.2020,Physical Support Residential 65+,Charges from Independent Providers,"2,497.32",AUTUMN HOUSE CARE LTD
Revenue,Adult Services,Adult Social Care,Physical Support - older people (65+),5105646892,07.07.2020,Physical Support Residential 65+,Charges from Independent Providers,"2,497.32",AUTUMN HOUSE CARE LTD
Revenue,Adult Services,Adult Social Care,Physical Support - older people (65+),5105646892,07.07.2020,Physical Support Residential 65+,Charges from Independent Providers,"2,124.08",AUTUMN HOUSE CARE LTD
Revenue,Adult Services,Adult Social Care,Physical Support - older people (65+),5105646892,07.07.2020,Physical Support Residential 65+,Charges from Independent Providers,"2,497.32",AUTUMN HOUSE CARE LTD
Revenue,Adult Services,Adult Social Care,Physical Support - older people (65+),5105646892,07.07.2020,Physical Support Residential 65+,Charges from Independent Providers,"2,124.08",AUTUMN HOUSE CARE LTD
Revenue,Adult Services,Adult Social Care,Physical Support - older people (65+),5105649025,31.07.2020,Physical Support Residential 65+,Charges from Independent Providers,"3,389.22",AUTUMN HOUSE CARE LTD
Revenue,Regeneration,Planning services,Economic Development,5105646304,07.07.2020,"30 High St, Newport",Rent of Buildings and Rooms,416.67,REDACTED PERSONAL DATA
Revenue,Resources,Central Services,Support Services,5105647028,07.07.2020,"Metabo (UK) Ltd, Nursling, Southampton",Professional Services,455,GVA GRIMLEY LTD
Revenue,Resources,Central Services,Support Services,5105647028,07.07.2020,Network Oxford,Professional Services,"1,170.00",GVA GRIMLEY LTD
Revenue,Childrens Services,Children's & Education Services,Children Looked After,5105647165,10.07.2020,In-house Fostering,Boarding Out Allowances,521.22,REDACTED PERSONAL DATA
Revenue,Childrens Services,Children's & Education Services,Children Looked After,5105646639,03.07.2020,In-house Fostering,Boarding Out Allowances,521.22,REDACTED PERSONAL DATA
Revenue,Childrens Services,Children's & Education Services,Children Looked After,5105647758,17.07.2020,In-house Fostering,Boarding Out Allowances,521.22,REDACTED PERSONAL DATA
Revenue,Childrens Services,Children's & Education Services,Children Looked After,5105648516,24.07.2020,In-house Fostering,Boarding Out Allowances,521.22,REDACTED PERSONAL DATA
Revenue,Childrens Services,Children's & Education Services,Children Looked After,5105649064,31.07.2020,In-house Fostering,Boarding Out Allowances,521.22,REDACTED PERSONAL DATA
Revenue,Resources,Central Services,Support Services,5105648387,22.07.2020,Staff Benefits,Payment to Private Contractors,25,REDACTED PERSONAL DATA
Revenue,Adult Services,Housing Services,Homelessness,5105648336,22.07.2020,Private Rented Sector Leasing Scheme,Accommodation Costs - Leaseholder Payments,866.67,REDACTED PERSONAL DATA
Revenue,Adult Services,Adult Social Care,Commissioning & Service Delivery,5105646971,07.07.2020,CHC Nursing Care,Charges from Independent Providers,"10,332.00",BAGSHOT PARK CARE CENTRE
Revenue,Resources,Central Services,Support Services,5105648908,29.07.2020,Creditor Payments Shared Service Centre,Stationery,23.7,SUPPLIES TEAM LTD
Revenue,Resources,Central Services,Corporate and Democratic Core,5105646571,14.07.2020,Democratic Representation & Management,Stationery,11.85,SUPPLIES TEAM LTD
Revenue,Adult Services,Adult Social Care,Central Codes (to be reallocated),5105648037,29.07.2020,Gouldings Resource Centre,Stationery,1.06,SUPPLIES TEAM LTD
Revenue,Adult Services,Adult Social Care,Central Codes (to be reallocated),5105648037,29.07.2020,Gouldings Resource Centre,Stationery,5,SUPPLIES TEAM LTD
Revenue,Adult Services,Adult Social Care,Central Codes (to be reallocated),5105648037,29.07.2020,Gouldings Resource Centre,Stationery,1.43,SUPPLIES TEAM LTD
Revenue,Adult Services,Adult Social Care,Central Codes (to be reallocated),5105648037,29.07.2020,Gouldings Resource Centre,Stationery,23.7,SUPPLIES TEAM LTD
Revenue,Adult Services,Adult Social Care,Central Codes (to be reallocated),5105648037,29.07.2020,Gouldings Resource Centre,Stationery,2.57,SUPPLIES TEAM LTD
Revenue,Adult Services,Adult Social Care,Central Codes (to be reallocated),5105648037,29.07.2020,Gouldings Resource Centre,Stationery,0.75,SUPPLIES TEAM LTD
Revenue,Adult Services,Adult Social Care,Central Codes (to be reallocated),5105648037,29.07.2020,Gouldings Resource Centre,Stationery,1.31,SUPPLIES TEAM LTD
Revenue,Resources,Housing Services,Housing Benefits Administration,5105648908,29.07.2020,Housing Benefit,Stationery,106.65,SUPPLIES TEAM LTD
Revenue,Resources,Central Services,Central Services to the Public,5105648304,22.07.2020,National Non Domestic Rates,Stationery,23.7,SUPPLIES TEAM LTD
Revenue,Childrens Services,Children's & Education Services,Other Education and Community Budget,5105640287,07.07.2020,SEND Independent Advice & Support,Stationery,5.67,SUPPLIES TEAM LTD
Revenue,Childrens Services,Children's & Education Services,Other Education and Community Budget,5105648999,29.07.2020,Schools Asset Management,Stationery,32.07,SUPPLIES TEAM LTD
Revenue,Childrens Services,Children's & Education Services,Other Education and Community Budget,5105648304,22.07.2020,Schools Asset Management,Stationery,8.1,SUPPLIES TEAM LTD
Revenue,Fire & Rescue,Fire & Rescue Services,Fire fighting and Rescue Operations,5105647666,17.07.2020,Business Support  - Fire,Stationery,11.42,SUPPLIES TEAM LTD
Revenue,Fire & Rescue,Fire & Rescue Services,Fire fighting and Rescue Operations,5105647666,17.07.2020,Business Support  - Fire,Stationery,0.86,SUPPLIES TEAM LTD
Revenue,Fire & Rescue,Fire & Rescue Services,Fire fighting and Rescue Operations,5105647666,17.07.2020,Business Support  - Fire,Stationery,0.37,SUPPLIES TEAM LTD
Revenue,Neighbourhoods,Cultural and Related Services,Recreation and Sport,5105646571,14.07.2020,Medina Leisure Centre,Stationery,11.85,SUPPLIES TEAM LTD
Revenue,Adult Services,Adult Social Care,Learning Disab Supp (to be reallocated),5105647421,17.07.2020,Saxonbury,Stationery,9.15,SUPPLIES TEAM LTD
Revenue,Neighbourhoods,Cultural and Related Services,Service Management and Support Services,5105648304,22.07.2020,Leisure Management & Admin,Stationery,47.4,SUPPLIES TEAM LTD
Revenue,Neighbourhoods,Cultural and Related Services,Service Management and Support Services,5105646571,14.07.2020,Leisure Management & Admin,Stationery,1.62,SUPPLIES TEAM LTD
Revenue,Neighbourhoods,Cultural and Related Services,Service Management and Support Services,5105646571,14.07.2020,Leisure Management & Admin,Stationery,35.55,SUPPLIES TEAM LTD
Revenue,Adult Services,Adult Social Care,Assistive Equipment & Technology,5105646490,03.07.2020,Community Equipment Store,Stationery,4.33,SUPPLIES TEAM LTD
Revenue,Fire & Rescue,Fire & Rescue Services,Fire fighting and Rescue Operations,5105646402,03.07.2020,Fire Technical Support,Stationery,28.68,SUPPLIES TEAM LTD
Revenue,Childrens Services,Children's & Education Services,Safeguarding Children/Young Peoples Svs,5105648908,29.07.2020,Children's office costs,Stationery,5.85,SUPPLIES TEAM LTD
Revenue,Childrens Services,Children's & Education Services,Safeguarding Children/Young Peoples Svs,5105648908,29.07.2020,Children's office costs,Stationery,94.8,SUPPLIES TEAM LTD
Revenue,Childrens Services,Children's & Education Services,Safeguarding Children/Young Peoples Svs,5105647009,07.07.2020,Children's office costs,Stationery,6.52,SUPPLIES TEAM LTD
Revenue,Childrens Services,Children's & Education Services,Safeguarding Children/Young Peoples Svs,5105646571,14.07.2020,Children's office costs,Stationery,11.85,SUPPLIES TEAM LTD
Revenue,Childrens Services,Children's & Education Services,Safeguarding Children/Young Peoples Svs,5105646571,14.07.2020,Children's office costs,Stationery,4.33,SUPPLIES TEAM LTD
Revenue,Childrens Services,Children's & Education Services,Safeguarding Children/Young Peoples Svs,5105646571,14.07.2020,Children's office costs,Stationery,6.36,SUPPLIES TEAM LTD
Revenue,Childrens Services,Children's & Education Services,Safeguarding Children/Young Peoples Svs,5105646571,14.07.2020,Children's office costs,Stationery,2.9,SUPPLIES TEAM LTD
Revenue,Childrens Services,Children's & Education Services,Safeguarding Children/Young Peoples Svs,5105646571,14.07.2020,Children's office costs,Stationery,5.77,SUPPLIES TEAM LTD
Revenue,Childrens Services,Children's & Education Services,Safeguarding Children/Young Peoples Svs,5105646571,14.07.2020,Children's office costs,Stationery,5.14,SUPPLIES TEAM LTD
Revenue,Childrens Services,Children's & Education Services,Safeguarding Children/Young Peoples Svs,5105646571,14.07.2020,Children's office costs,Stationery,1.31,SUPPLIES TEAM LTD
Revenue,Childrens Services,Children's & Education Services,Children Looked After,5105648024,21.07.2020,Beaulieu House,Stationery,1.98,SUPPLIES TEAM LTD
Revenue,Adult Services,Adult Social Care,Central Codes (to be reallocated),5105646569,03.07.2020,Community Reablement,Stationery,55.4,SUPPLIES TEAM LTD
Revenue,Adult Services,Adult Social Care,Central Codes (to be reallocated),5105646569,03.07.2020,Community Reablement,Stationery,26.32,SUPPLIES TEAM LTD
Revenue,Adult Services,Adult Social Care,Central Codes (to be reallocated),5105646569,03.07.2020,Community Reablement,Stationery,9.2,SUPPLIES TEAM LTD
Revenue,Adult Services,Adult Social Care,Central Codes (to be reallocated),5105646569,03.07.2020,Community Reablement,Stationery,5.3,SUPPLIES TEAM LTD
Revenue,Adult Services,Adult Social Care,Central Codes (to be reallocated),5105646569,03.07.2020,Community Reablement,Stationery,7.85,SUPPLIES TEAM LTD
Revenue,Adult Services,Adult Social Care,Central Codes (to be reallocated),5105646569,03.07.2020,Community Reablement,Stationery,3.68,SUPPLIES TEAM LTD
Revenue,Adult Services,Adult Social Care,Central Codes (to be reallocated),5105646569,03.07.2020,Community Reablement,Stationery,10.2,SUPPLIES TEAM LTD
Revenue,Adult Services,Adult Social Care,Central Codes (to be reallocated),5105646569,03.07.2020,Community Reablement,Stationery,2.25,SUPPLIES TEAM LTD
Revenue,Adult Services,Adult Social Care,Commissioning & Service Delivery,5105646383,07.07.2020,Group Manager Leaning Disability Homes,Stationery,28.68,SUPPLIES TEAM LTD
Revenue,Resources,Highways and Transport Services,Public Transport,5105648761,24.07.2020,Transport Fleet Administration,Stationery,32.28,SUPPLIES TEAM LTD
Revenue,Adult Services,Adult Social Care,Commissioning & Service Delivery,5105648908,29.07.2020,ASC County Hall office costs,Stationery,1.62,SUPPLIES TEAM LTD
Revenue,Adult Services,Adult Social Care,Commissioning & Service Delivery,5105648908,29.07.2020,ASC County Hall office costs,Stationery,2.55,SUPPLIES TEAM LTD
Revenue,Adult Services,Adult Social Care,Commissioning & Service Delivery,5105648908,29.07.2020,ASC County Hall office costs,Stationery,1.57,SUPPLIES TEAM LTD
Revenue,Adult Services,Adult Social Care,Commissioning & Service Delivery,5105648908,29.07.2020,ASC County Hall office costs,Stationery,7.16,SUPPLIES TEAM LTD
Revenue,Adult Services,Adult Social Care,Commissioning & Service Delivery,5105648908,29.07.2020,ASC County Hall office costs,Stationery,2.48,SUPPLIES TEAM LTD
Revenue,Adult Services,Adult Social Care,Commissioning & Service Delivery,5105648304,22.07.2020,ASC County Hall office costs,Stationery,5.1,SUPPLIES TEAM LTD
Revenue,Adult Services,Adult Social Care,Commissioning & Service Delivery,5105648304,22.07.2020,ASC County Hall office costs,Stationery,1.31,SUPPLIES TEAM LTD
Revenue,Adult Services,Adult Social Care,Commissioning & Service Delivery,5105648304,22.07.2020,ASC County Hall office costs,Stationery,4.96,SUPPLIES TEAM LTD
Revenue,Adult Services,Adult Social Care,Commissioning & Service Delivery,5105648304,22.07.2020,ASC County Hall office costs,Stationery,0.22,SUPPLIES TEAM LTD
Revenue,Adult Services,Adult Social Care,Commissioning & Service Delivery,5105648304,22.07.2020,ASC County Hall office costs,Stationery,3.24,SUPPLIES TEAM LTD
Revenue,Adult Services,Adult Social Care,Commissioning & Service Delivery,5105648304,22.07.2020,ASC County Hall office costs,Stationery,1.62,SUPPLIES TEAM LTD
Revenue,Adult Services,Adult Social Care,Commissioning & Service Delivery,5105648304,22.07.2020,ASC County Hall office costs,Stationery,0.5,SUPPLIES TEAM LTD
Revenue,Adult Services,Adult Social Care,Commissioning & Service Delivery,5105648304,22.07.2020,ASC County Hall office costs,Stationery,1.84,SUPPLIES TEAM LTD
Revenue,Adult Services,Adult Social Care,Commissioning & Service Delivery,5105648304,22.07.2020,ASC County Hall office costs,Stationery,1.06,SUPPLIES TEAM LTD
Revenue,Adult Services,Adult Social Care,Commissioning & Service Delivery,5105648304,22.07.2020,ASC County Hall office costs,Stationery,26.7,SUPPLIES TEAM LTD
Revenue,Adult Services,Adult Social Care,Commissioning & Service Delivery,5105648304,22.07.2020,ASC County Hall office costs,Stationery,1.23,SUPPLIES TEAM LTD
Revenue,Adult Services,Adult Social Care,Commissioning & Service Delivery,5105647121,08.07.2020,ASC County Hall office costs,Stationery,1.38,SUPPLIES TEAM LTD
Revenue,Adult Services,Adult Social Care,Commissioning & Service Delivery,5105647121,08.07.2020,ASC County Hall office costs,Stationery,2.48,SUPPLIES TEAM LTD
Revenue,Adult Services,Adult Social Care,Commissioning & Service Delivery,5105647121,08.07.2020,ASC County Hall office costs,Stationery,1.35,SUPPLIES TEAM LTD
Revenue,Adult Services,Adult Social Care,Commissioning & Service Delivery,5105647121,08.07.2020,ASC County Hall office costs,Stationery,1.8,SUPPLIES TEAM LTD
Revenue,Adult Services,Adult Social Care,Commissioning & Service Delivery,5105646571,14.07.2020,ASC County Hall office costs,Stationery,1.62,SUPPLIES TEAM LTD
Revenue,Adult Services,Adult Social Care,Commissioning & Service Delivery,5105646571,14.07.2020,ASC County Hall office costs,Stationery,1,SUPPLIES TEAM LTD
Revenue,Adult Services,Adult Social Care,Commissioning & Service Delivery,5105646571,14.07.2020,ASC County Hall office costs,Stationery,2.3,SUPPLIES TEAM LTD
Revenue,Adult Services,Adult Social Care,Commissioning & Service Delivery,5105646571,14.07.2020,ASC County Hall office costs,Stationery,4,SUPPLIES TEAM LTD
Revenue,Adult Services,Adult Social Care,Commissioning & Service Delivery,5105646571,14.07.2020,ASC County Hall office costs,Stationery,1.62,SUPPLIES TEAM LTD
Revenue,Adult Services,Adult Social Care,Commissioning & Service Delivery,5105646571,14.07.2020,ASC County Hall office costs,Stationery,2.39,SUPPLIES TEAM LTD
Revenue,Adult Services,Adult Social Care,Commissioning & Service Delivery,5105646571,14.07.2020,ASC County Hall office costs,Stationery,5.14,SUPPLIES TEAM LTD
Revenue,Adult Services,Adult Social Care,Social Care Activities,5105648908,29.07.2020,Hospital Team,Stationery,5.85,SUPPLIES TEAM LTD
Revenue,Adult Services,Adult Social Care,Social Care Activities,5105647667,17.07.2020,Hospital Team,Stationery,1.57,SUPPLIES TEAM LTD
Revenue,Adult Services,Adult Social Care,Social Care Activities,5105647667,17.07.2020,Hospital Team,Stationery,23.7,SUPPLIES TEAM LTD
Revenue,Adult Services,Adult Social Care,Social Care Activities,5105647667,17.07.2020,Hospital Team,Stationery,4.33,SUPPLIES TEAM LTD
Revenue,Adult Services,Adult Social Care,Social Care Activities,5105647667,17.07.2020,Hospital Team,Stationery,7.4,SUPPLIES TEAM LTD
Revenue,Adult Services,Adult Social Care,Social Care Activities,5105647667,17.07.2020,Hospital Team,Stationery,2.02,SUPPLIES TEAM LTD
Revenue,Adult Services,Adult Social Care,Social Care Activities,5105647667,17.07.2020,Hospital Team,Stationery,1.06,SUPPLIES TEAM LTD
Revenue,Adult Services,Adult Social Care,Social Care Activities,5105647121,08.07.2020,Hospital Team,Stationery,1.22,SUPPLIES TEAM LTD
Revenue,Adult Services,Adult Social Care,Social Care Activities,5105647121,08.07.2020,Hospital Team,Stationery,2.22,SUPPLIES TEAM LTD
Revenue,Adult Services,Adult Social Care,Social Care Activities,5105647121,08.07.2020,Hospital Team,Stationery,22,SUPPLIES TEAM LTD
Revenue,Adult Services,Adult Social Care,Social Care Activities,5105647121,08.07.2020,Hospital Team,Stationery,5.54,SUPPLIES TEAM LTD
Revenue,Adult Services,Adult Social Care,Social Care Activities,5105647121,08.07.2020,Hospital Team,Stationery,3.5,SUPPLIES TEAM LTD
Revenue,Adult Services,Adult Social Care,Social Care Activities,5105647121,08.07.2020,Hospital Team,Stationery,0.69,SUPPLIES TEAM LTD
Revenue,Adult Services,Adult Social Care,Social Care Activities,5105647121,08.07.2020,Hospital Team,Stationery,0.53,SUPPLIES TEAM LTD
Revenue,Adult Services,Adult Social Care,Social Care Activities,5105646571,14.07.2020,Hospital Team,Stationery,2.22,SUPPLIES TEAM LTD
Revenue,Adult Services,Adult Social Care,Social Care Activities,5105646571,14.07.2020,Hospital Team,Stationery,0.25,SUPPLIES TEAM LTD
Revenue,Adult Services,Adult Social Care,Social Care Activities,5105646571,14.07.2020,Hospital Team,Stationery,0.11,SUPPLIES TEAM LTD
Revenue,Regeneration,Central Services,Support Services,5105648806,24.07.2020,"County Hall,Newport",Stationery,4.24,SUPPLIES TEAM LTD
Revenue,Regeneration,Central Services,Support Services,5105646414,03.07.2020,"County Hall,Newport",Stationery,28.68,SUPPLIES TEAM LTD
Revenue,Childrens Services,Children's & Education Services,Special Schools & Alternative Provision,5105648905,29.07.2020,Island Learning Centre,Stationery,124.92,SUPPLIES TEAM LTD
Revenue,Childrens Services,Children's & Education Services,Special Schools & Alternative Provision,5105648305,29.07.2020,Island Learning Centre,Stationery,41.64,SUPPLIES TEAM LTD
Revenue,Childrens Services,Children's & Education Services,Special Schools & Alternative Provision,5105647699,17.07.2020,Island Learning Centre,Stationery,14.58,SUPPLIES TEAM LTD
Revenue,Childrens Services,Children's & Education Services,Special Schools & Alternative Provision,5105647699,17.07.2020,Island Learning Centre,Stationery,8,SUPPLIES TEAM LTD
Revenue,Childrens Services,Children's & Education Services,Special Schools & Alternative Provision,5105647699,17.07.2020,Island Learning Centre,Stationery,8.1,SUPPLIES TEAM LTD
Revenue,Childrens Services,Children's & Education Services,Special Schools & Alternative Provision,5105647699,17.07.2020,Island Learning Centre,Stationery,1.36,SUPPLIES TEAM LTD
Revenue,Childrens Services,Children's & Education Services,Special Schools & Alternative Provision,5105647699,17.07.2020,Island Learning Centre,Stationery,17.55,SUPPLIES TEAM LTD
Revenue,Childrens Services,Children's & Education Services,Special Schools & Alternative Provision,5105647699,17.07.2020,Island Learning Centre,Stationery,2.78,SUPPLIES TEAM LTD
Revenue,Childrens Services,Children's & Education Services,Special Schools & Alternative Provision,5105647699,17.07.2020,Island Learning Centre,Stationery,2,SUPPLIES TEAM LTD
Revenue,Childrens Services,Children's & Education Services,Other Education and Community Budget,5105648955,29.07.2020,Skills and Participation,Stationery,4.24,SUPPLIES TEAM LTD
Revenue,Childrens Services,Children's & Education Services,Other Education and Community Budget,5105647667,17.07.2020,Skills and Participation,Stationery,17.31,SUPPLIES TEAM LTD
Revenue,Neighbourhoods,Cultural and Related Services,Library Service,5105648297,24.07.2020,Public Libraries Central,Stationery,26.8,SUPPLIES TEAM LTD
Revenue,Neighbourhoods,Cultural and Related Services,Library Service,5105648297,24.07.2020,Public Libraries Central,Stationery,2.4,SUPPLIES TEAM LTD
Revenue,Neighbourhoods,Cultural and Related Services,Library Service,5105647966,24.07.2020,Public Libraries Central,Stationery,118.5,SUPPLIES TEAM LTD
Revenue,Neighbourhoods,Cultural and Related Services,Library Service,5105647668,24.07.2020,Public Libraries Central,Stationery,52.8,SUPPLIES TEAM LTD
Revenue,Neighbourhoods,Cultural and Related Services,Library Service,5105647668,24.07.2020,Public Libraries Central,Stationery,11.27,SUPPLIES TEAM LTD
Revenue,Neighbourhoods,Cultural and Related Services,Library Service,5105646366,03.07.2020,Public Libraries Central,Stationery,76,SUPPLIES TEAM LTD
Revenue,Neighbourhoods,Cultural and Related Services,Library Service,5105647696,24.07.2020,Prison Library Service,Stationery,10.05,SUPPLIES TEAM LTD
Revenue,Resources,Central Services,Corporate and Democratic Core,5105648908,29.07.2020,Committee and Scrutiny Team,Stationery,0.53,SUPPLIES TEAM LTD
Revenue,Resources,Central Services,Corporate and Democratic Core,5105647121,08.07.2020,Committee and Scrutiny Team,Stationery,4.96,SUPPLIES TEAM LTD
Revenue,Resources,Central Services,Corporate and Democratic Core,5105647121,08.07.2020,Committee and Scrutiny Team,Stationery,2.55,SUPPLIES TEAM LTD
Revenue,Resources,Central Services,Support Services,5105648304,22.07.2020,Revenues & Benefits Operational Support,Stationery,2.39,SUPPLIES TEAM LTD
Revenue,Resources,Central Services,Support Services,5105648304,22.07.2020,Revenues & Benefits Operational Support,Stationery,3.68,SUPPLIES TEAM LTD
Revenue,Resources,Central Services,Support Services,5105647008,07.07.2020,Revenues & Benefits Operational Support,Stationery,21.2,SUPPLIES TEAM LTD
Revenue,Resources,Highways and Transport Services,Off Street Parking,5105648908,29.07.2020,Parking Services,Stationery,23.7,SUPPLIES TEAM LTD
Revenue,Resources,Central Services,Support Services,5105648304,22.07.2020,Customer Accounts Shared Service Centre,Stationery,23.7,SUPPLIES TEAM LTD
Revenue,Resources,Central Services,Support Services,5105648304,22.07.2020,Customer Accounts Shared Service Centre,Stationery,11.85,SUPPLIES TEAM LTD
Revenue,Adult Services,Adult Social Care,Commissioning & Service Delivery,5105646571,14.07.2020,Director of Adult Social Services,Stationery,23.7,SUPPLIES TEAM LTD
Revenue,Neighbourhoods,Central Services,Central Services to the Public,5105648259,24.07.2020,Coroner,Stationery,-1.9,SUPPLIES TEAM LTD
Revenue,Neighbourhoods,Central Services,Central Services to the Public,5105648259,24.07.2020,Coroner,Stationery,-3.41,SUPPLIES TEAM LTD
Revenue,Neighbourhoods,Central Services,Central Services to the Public,5105648259,24.07.2020,Coroner,Stationery,-0.7,SUPPLIES TEAM LTD
Revenue,Neighbourhoods,Central Services,Central Services to the Public,5105648259,24.07.2020,Coroner,Stationery,-51,SUPPLIES TEAM LTD
Revenue,Neighbourhoods,Central Services,Central Services to the Public,5105647665,21.07.2020,Coroner,Stationery,35.55,SUPPLIES TEAM LTD
Revenue,Neighbourhoods,Central Services,Central Services to the Public,5105647665,21.07.2020,Coroner,Stationery,5.54,SUPPLIES TEAM LTD
Revenue,Neighbourhoods,Central Services,Central Services to the Public,5105647665,21.07.2020,Coroner,Stationery,1.79,SUPPLIES TEAM LTD
Revenue,Neighbourhoods,Central Services,Central Services to the Public,5105647665,21.07.2020,Coroner,Stationery,1.24,SUPPLIES TEAM LTD
Revenue,Neighbourhoods,Central Services,Central Services to the Public,5105647665,21.07.2020,Coroner,Stationery,2.71,SUPPLIES TEAM LTD
Revenue,Neighbourhoods,Central Services,Central Services to the Public,5105647665,21.07.2020,Coroner,Stationery,10.28,SUPPLIES TEAM LTD
Revenue,Neighbourhoods,Central Services,Central Services to the Public,5105647665,21.07.2020,Coroner,Stationery,8.8,SUPPLIES TEAM LTD
Revenue,Neighbourhoods,Central Services,Central Services to the Public,5105647665,21.07.2020,Coroner,Stationery,18.51,SUPPLIES TEAM LTD
Revenue,Childrens Services,Children's & Education Services,Youth Justice,5105647667,17.07.2020,Youth Offending Team,Stationery,47.4,SUPPLIES TEAM LTD
Revenue,Resources,Central Services,Central Services to the Public,5105648908,29.07.2020,Internal Enforcement Team,Stationery,23.7,SUPPLIES TEAM LTD
Revenue,Adult Services,Adult Social Care,Central Codes (to be reallocated),5105647664,17.07.2020,Adelaide Resource Centre,Stationery,5.24,SUPPLIES TEAM LTD
Revenue,Adult Services,Adult Social Care,Central Codes (to be reallocated),5105647664,17.07.2020,Adelaide Resource Centre,Stationery,2.22,SUPPLIES TEAM LTD
Revenue,Adult Services,Adult Social Care,Central Codes (to be reallocated),5105647664,17.07.2020,Adelaide Resource Centre,Stationery,2.43,SUPPLIES TEAM LTD
Revenue,Adult Services,Adult Social Care,Central Codes (to be reallocated),5105647664,17.07.2020,Adelaide Resource Centre,Stationery,4.08,SUPPLIES TEAM LTD
Revenue,Adult Services,Adult Social Care,Central Codes (to be reallocated),5105647664,17.07.2020,Adelaide Resource Centre,Stationery,3.45,SUPPLIES TEAM LTD
Revenue,Adult Services,Adult Social Care,Central Codes (to be reallocated),5105647664,17.07.2020,Adelaide Resource Centre,Stationery,3.86,SUPPLIES TEAM LTD
Revenue,Adult Services,Adult Social Care,Central Codes (to be reallocated),5105647664,17.07.2020,Adelaide Resource Centre,Stationery,5.71,SUPPLIES TEAM LTD
Revenue,Adult Services,Adult Social Care,Central Codes (to be reallocated),5105647664,17.07.2020,Adelaide Resource Centre,Stationery,0.44,SUPPLIES TEAM LTD
Revenue,Adult Services,Adult Social Care,Central Codes (to be reallocated),5105647664,17.07.2020,Adelaide Resource Centre,Stationery,0.81,SUPPLIES TEAM LTD
Revenue,Adult Services,Adult Social Care,Central Codes (to be reallocated),5105647664,17.07.2020,Adelaide Resource Centre,Stationery,71.1,SUPPLIES TEAM LTD
Revenue,Adult Services,Adult Social Care,Central Codes (to be reallocated),5105647664,17.07.2020,Adelaide Resource Centre,Stationery,15.3,SUPPLIES TEAM LTD
Revenue,Adult Services,Adult Social Care,Central Codes (to be reallocated),5105647664,17.07.2020,Adelaide Resource Centre,Stationery,1.72,SUPPLIES TEAM LTD
Revenue,Adult Services,Adult Social Care,Central Codes (to be reallocated),5105647664,17.07.2020,Adelaide Resource Centre,Stationery,2.55,SUPPLIES TEAM LTD
Revenue,Adult Services,Adult Social Care,Central Codes (to be reallocated),5105647664,17.07.2020,Adelaide Resource Centre,Stationery,7.36,SUPPLIES TEAM LTD
Revenue,Adult Services,Adult Social Care,Central Codes (to be reallocated),5105647664,17.07.2020,Adelaide Resource Centre,Stationery,1.23,SUPPLIES TEAM LTD
Revenue,Regeneration,Planning services,Management & Support Services,5105646549,01.07.2020,Planning Management,Stationery,8.8,SUPPLIES TEAM LTD
Revenue,Neighbourhoods,Environmental & Regulatory Services,"Cemetery, Cremation & Mortuary Services",5105647729,21.07.2020,Crematorium,Stationery,21.98,SUPPLIES TEAM LTD
Revenue,Neighbourhoods,Environmental & Regulatory Services,"Cemetery, Cremation & Mortuary Services",5105646839,10.07.2020,Crematorium,Stationery,2.12,SUPPLIES TEAM LTD
Revenue,Neighbourhoods,Environmental & Regulatory Services,"Cemetery, Cremation & Mortuary Services",5105647067,10.07.2020,Crematorium,Stationery,3.18,SUPPLIES TEAM LTD
Revenue,Neighbourhoods,Environmental & Regulatory Services,"Cemetery, Cremation & Mortuary Services",5105647069,10.07.2020,Crematorium,Stationery,0.63,SUPPLIES TEAM LTD
Revenue,Neighbourhoods,Environmental & Regulatory Services,"Cemetery, Cremation & Mortuary Services",5105646570,03.07.2020,Crematorium,Stationery,7.52,SUPPLIES TEAM LTD
Revenue,Neighbourhoods,Environmental & Regulatory Services,"Cemetery, Cremation & Mortuary Services",5105646570,03.07.2020,Crematorium,Stationery,1.79,SUPPLIES TEAM LTD
Revenue,Neighbourhoods,Environmental & Regulatory Services,"Cemetery, Cremation & Mortuary Services",5105646496,03.07.2020,Crematorium,Stationery,8.66,SUPPLIES TEAM LTD
Revenue,Regeneration,Central Services,Support Services,5105646571,14.07.2020,"Civic Centre,Sandown",Stationery,11.85,SUPPLIES TEAM LTD
Revenue,Adult Services,Adult Social Care,Commissioning & Service Delivery,5105647669,17.07.2020,FAC Team,Stationery,2.12,SUPPLIES TEAM LTD
Revenue,Adult Services,Adult Social Care,Physical Support - older people (65+),5105646977,07.07.2020,Physical Support Residential 65+,Charges from Independent Providers,"2,028.32",BARCHESTER HELLENS LTD
Revenue,Childrens Services,Children's & Education Services,Children Looked After,5105647617,17.07.2020,Local Authority Care Advocacy Contract,Grants to External Bodies,"9,875.00",BARNARDO'S
Revenue,Childrens Services,Children's & Education Services,Sure Start Children's Centres,5105647724,24.07.2020,Early Help Contracts,Payment to Private Contractors,"260,092.50",BARNARDO'S
Revenue,Resources,Central Services,Support Services,5105648422,22.07.2020,Litigation Costs,Legal Fees - Other Parties,125,BASCOMBE INTERNATIONAL
Revenue,Neighbourhoods,Cultural and Related Services,Recreation and Sport,5105648702,24.07.2020,Medina Leisure Centre,Consumable Cleaning Materials,34.2,LAKE CLEANING & CATERING SUPPLIES
Revenue,Adult Services,Adult Social Care,Learning Disab Supp (to be reallocated),5105644020,03.07.2020,Plean Dene,Operational Equipment,136.37,LAKE CLEANING & CATERING SUPPLIES
Revenue,Adult Services,Adult Social Care,Learning Disab Supp (to be reallocated),5105646851,07.07.2020,Plean Dene,Operational Equipment,26.32,LAKE CLEANING & CATERING SUPPLIES
Revenue,Adult Services,Adult Social Care,Learning Disab Supp (to be reallocated),5105647403,15.07.2020,Plean Dene,Operational Equipment,8.58,LAKE CLEANING & CATERING SUPPLIES
Revenue,Childrens Services,Children's & Education Services,Children Looked After,5105648150,21.07.2020,Beaulieu House,General Materials,54.01,LAKE CLEANING & CATERING SUPPLIES
Revenue,Childrens Services,Children's & Education Services,Children Looked After,5105647721,17.07.2020,Beaulieu House,General Materials,138.29,LAKE CLEANING & CATERING SUPPLIES
Revenue,Childrens Services,Children's & Education Services,Children Looked After,5105646415,03.07.2020,Beaulieu House,General Materials,91.82,LAKE CLEANING & CATERING SUPPLIES
Revenue,Childrens Services,Children's & Education Services,Children Looked After,5105646415,03.07.2020,Beaulieu House,General Materials,24.91,LAKE CLEANING & CATERING SUPPLIES
Revenue,Childrens Services,Children's & Education Services,Children Looked After,5105647027,07.07.2020,Beaulieu House,General Materials,222.66,LAKE CLEANING & CATERING SUPPLIES
Revenue,Childrens Services,Children's & Education Services,Children Looked After,5105648770,29.07.2020,Beaulieu House,General Materials,39.54,LAKE CLEANING & CATERING SUPPLIES
Revenue,Neighbourhoods,Cultural and Related Services,Library Service,5105648879,29.07.2020,Public Libraries Central,Office Equipment,92.5,LAKE CLEANING & CATERING SUPPLIES
Revenue,Neighbourhoods,Cultural and Related Services,Library Service,5105647405,10.07.2020,Public Libraries Central,Operational Equipment,486,LAKE CLEANING & CATERING SUPPLIES
Revenue,Adult Services,Central Services,Central Services to the Public,5105646851,07.07.2020,AS Covid-19 (Adults),Operational Equipment,130,LAKE CLEANING & CATERING SUPPLIES
Revenue,Adult Services,Central Services,Central Services to the Public,5105647399,14.07.2020,AS Covid-19 (Adults),Operational Equipment,70.74,LAKE CLEANING & CATERING SUPPLIES
Revenue,Adult Services,Central Services,Central Services to the Public,5105647401,10.07.2020,AS Covid-19 (Adults),Operational Equipment,29.4,LAKE CLEANING & CATERING SUPPLIES
Revenue,Adult Services,Central Services,Central Services to the Public,5105647107,15.07.2020,AS Covid-19 (Adults),Operational Equipment,83.55,LAKE CLEANING & CATERING SUPPLIES
Revenue,Adult Services,Central Services,Central Services to the Public,5105647108,31.07.2020,AS Covid-19 (Adults),Operational Equipment,62.4,LAKE CLEANING & CATERING SUPPLIES
Revenue,Adult Services,Central Services,Central Services to the Public,5105647109,14.07.2020,AS Covid-19 (Adults),Operational Equipment,31.2,LAKE CLEANING & CATERING SUPPLIES
Revenue,Neighbourhoods,Cultural and Related Services,Recreation and Sport,5105647663,17.07.2020,The Heights,Consumable Cleaning Materials,52.5,LAKE CLEANING & CATERING SUPPLIES
Revenue,Assistant Chief Executive,Central Services,Central Services to the Public,5105648102,21.07.2020,AC Covid-19,Operational Equipment,"195,000.00",BATES OFFICE SERVICES LIMITED
Revenue,Assistant Chief Executive,Central Services,Central Services to the Public,5105647941,17.07.2020,AC Covid-19,Operational Equipment,50.25,BATES OFFICE SERVICES LIMITED
Revenue,Assistant Chief Executive,Central Services,Central Services to the Public,5105646864,07.07.2020,AC Covid-19,Operational Equipment,"1,449.75",BATES OFFICE SERVICES LIMITED
Revenue,Childrens Services,Children's & Education Services,Children Looked After,5105647415,31.07.2020,Purchased Residential,Charges from Independent Providers,"3,850.00",BENECARE FOSTERING LTD
Revenue,Childrens Services,Children's & Education Services,Children Looked After,5105647444,14.07.2020,Purchased Residential,Charges from Independent Providers,"3,850.00",BENECARE FOSTERING LTD
Revenue,Childrens Services,Children's & Education Services,Children Looked After,5105647445,14.07.2020,Purchased Residential,Charges from Independent Providers,"3,850.00",BENECARE FOSTERING LTD
Revenue,Adult Services,Housing Services,Homelessness,5105647139,10.07.2020,B&B Properties,Accommodation Costs - Bed & Breakfast,"5,350.00",BERTRAM LODGE
Revenue,Adult Services,Adult Social Care,Central Codes (to be reallocated),5105648225,21.07.2020,Gouldings Resource Centre,Consumable Cleaning Materials,23.25,BETA PAK LTD
Revenue,Adult Services,Adult Social Care,Central Codes (to be reallocated),5105647616,15.07.2020,Gouldings Resource Centre,Consumable Cleaning Materials,25.36,BETA PAK LTD
Revenue,Adult Services,Adult Social Care,Central Codes (to be reallocated),5105647033,07.07.2020,Gouldings Resource Centre,Consumable Cleaning Materials,4.98,BETA PAK LTD
Revenue,Adult Services,Adult Social Care,Central Codes (to be reallocated),5105648091,21.07.2020,Gouldings Resource Centre,Consumable Cleaning Materials,17.95,BETA PAK LTD
Revenue,Adult Services,Adult Social Care,Central Codes (to be reallocated),5105648092,21.07.2020,Gouldings Resource Centre,Consumable Cleaning Materials,7.96,BETA PAK LTD
Revenue,Adult Services,Adult Social Care,Central Codes (to be reallocated),5105646453,03.07.2020,Gouldings Resource Centre,Consumable Cleaning Materials,22.88,BETA PAK LTD
Revenue,Adult Services,Adult Social Care,Central Codes (to be reallocated),5105646456,07.07.2020,Gouldings Resource Centre,Consumable Cleaning Materials,20.5,BETA PAK LTD
Revenue,Adult Services,Adult Social Care,Central Codes (to be reallocated),5105646573,03.07.2020,Gouldings Resource Centre,Consumable Cleaning Materials,119.7,BETA PAK LTD
Revenue,Adult Services,Adult Social Care,Central Codes (to be reallocated),5105646574,03.07.2020,Gouldings Resource Centre,Consumable Cleaning Materials,13.64,BETA PAK LTD
Revenue,Adult Services,Adult Social Care,Central Codes (to be reallocated),5105647017,07.07.2020,Gouldings Resource Centre,Consumable Cleaning Materials,76.6,BETA PAK LTD
Revenue,Adult Services,Adult Social Care,Central Codes (to be reallocated),5105648494,24.07.2020,Gouldings Resource Centre,Consumable Cleaning Materials,46.54,BETA PAK LTD
Revenue,Adult Services,Adult Social Care,Central Codes (to be reallocated),5105648735,24.07.2020,Gouldings Resource Centre,Consumable Cleaning Materials,9.88,BETA PAK LTD
Revenue,Adult Services,Adult Social Care,Central Codes (to be reallocated),5105648093,21.07.2020,Gouldings Resource Centre,Consumable Cleaning Materials,7.95,BETA PAK LTD
Revenue,Adult Services,Adult Social Care,Central Codes (to be reallocated),5105648094,21.07.2020,Gouldings Resource Centre,Consumable Cleaning Materials,3.98,BETA PAK LTD
Revenue,Adult Services,Adult Social Care,Central Codes (to be reallocated),5105648456,24.07.2020,Gouldings Resource Centre,Consumable Cleaning Materials,109.5,BETA PAK LTD
Revenue,Adult Services,Adult Social Care,Central Codes (to be reallocated),5105649249,31.07.2020,Gouldings Resource Centre,Professional Services,17.88,BETA PAK LTD
Revenue,Adult Services,Adult Social Care,Central Codes (to be reallocated),5105649250,31.07.2020,Gouldings Resource Centre,Professional Services,385,BETA PAK LTD
Revenue,Adult Services,Adult Social Care,Learning Disab Supp (to be reallocated),5105648492,24.07.2020,Saxonbury,Operational Equipment,59.44,BETA PAK LTD
Revenue,Adult Services,Adult Social Care,Learning Disab Supp (to be reallocated),5105647671,17.07.2020,Saxonbury,Operational Equipment,502.55,BETA PAK LTD
Revenue,Adult Services,Adult Social Care,Social Support - Support for Carer,5105647661,17.07.2020,Westminster House,Operational Equipment,23.58,BETA PAK LTD
Revenue,Adult Services,Adult Social Care,Social Support - Support for Carer,5105647356,10.07.2020,Westminster House,Operational Equipment,83.7,BETA PAK LTD
Revenue,Adult Services,Adult Social Care,Social Support - Support for Carer,5105647095,08.07.2020,Westminster House,Operational Equipment,88.34,BETA PAK LTD
Revenue,Adult Services,Adult Social Care,Social Support - Support for Carer,5105646447,03.07.2020,Westminster House,Operational Equipment,14.64,BETA PAK LTD
Revenue,Adult Services,Adult Social Care,Social Support - Support for Carer,5105646171,03.07.2020,Westminster House,Operational Equipment,15,BETA PAK LTD
Revenue,Adult Services,Adult Social Care,Social Support - Support for Carer,5105646192,03.07.2020,Westminster House,Operational Equipment,59.64,BETA PAK LTD
Revenue,Adult Services,Adult Social Care,Social Support - Support for Carer,5105645962,03.07.2020,Westminster House,Operational Equipment,36.92,BETA PAK LTD
Revenue,Adult Services,Adult Social Care,Social Support - Support for Carer,5105645963,03.07.2020,Westminster House,Operational Equipment,24.96,BETA PAK LTD
Revenue,Adult Services,Adult Social Care,Learning Disab Supp (to be reallocated),5105648490,24.07.2020,Plean Dene,Operational Equipment,3.84,BETA PAK LTD
Revenue,Adult Services,Adult Social Care,Learning Disab Supp (to be reallocated),5105646866,03.07.2020,Plean Dene,Operational Equipment,155.65,BETA PAK LTD
Revenue,Adult Services,Adult Social Care,Learning Disab Supp (to be reallocated),5105646866,03.07.2020,Plean Dene,Operational Equipment,49.96,BETA PAK LTD
Revenue,Adult Services,Adult Social Care,Central Codes (to be reallocated),5105647382,31.07.2020,Community Reablement,Operational Equipment,131.76,BETA PAK LTD
Revenue,Adult Services,Adult Social Care,Commissioning & Service Delivery,5105648439,24.07.2020,Group Manager Leaning Disability Homes,Operational Equipment,5,BETA PAK LTD
Revenue,Adult Services,Adult Social Care,Commissioning & Service Delivery,5105646867,10.07.2020,Group Manager Leaning Disability Homes,Operational Equipment,46.63,BETA PAK LTD
Revenue,Adult Services,Adult Social Care,Commissioning & Service Delivery,5105647381,24.07.2020,Group Manager Leaning Disability Homes,Operational Equipment,40,BETA PAK LTD
Revenue,Adult Services,Adult Social Care,Commissioning & Service Delivery,5105645960,07.07.2020,Group Manager Leaning Disability Homes,Operational Equipment,6.6,BETA PAK LTD
Revenue,Adult Services,Central Services,Central Services to the Public,5105647661,17.07.2020,AS Covid-19 (Adults),Operational Equipment,80,BETA PAK LTD
Revenue,Adult Services,Central Services,Central Services to the Public,5105647380,10.07.2020,AS Covid-19 (Adults),Consumable Cleaning Materials,201.52,BETA PAK LTD
Revenue,Adult Services,Central Services,Central Services to the Public,5105646171,03.07.2020,AS Covid-19 (Adults),Operational Equipment,131.72,BETA PAK LTD
Revenue,Adult Services,Adult Social Care,Central Codes (to be reallocated),5105648287,21.07.2020,Adelaide Resource Centre,Operational Equipment,94.91,BETA PAK LTD
Revenue,Adult Services,Adult Social Care,Central Codes (to be reallocated),5105648083,21.07.2020,Adelaide Resource Centre,Operational Equipment,45.15,BETA PAK LTD
Revenue,Adult Services,Adult Social Care,Central Codes (to be reallocated),5105647437,14.07.2020,Adelaide Resource Centre,Consumable Cleaning Materials,152.5,BETA PAK LTD
Revenue,Adult Services,Adult Social Care,Central Codes (to be reallocated),5105647518,14.07.2020,Adelaide Resource Centre,Consumable Cleaning Materials,125.2,BETA PAK LTD
Revenue,Adult Services,Adult Social Care,Central Codes (to be reallocated),5105647581,14.07.2020,Adelaide Resource Centre,Consumable Cleaning Materials,20.89,BETA PAK LTD
Revenue,Adult Services,Adult Social Care,Central Codes (to be reallocated),5105648894,29.07.2020,Adelaide Resource Centre,Consumable Cleaning Materials,19.37,BETA PAK LTD
Revenue,Adult Services,Adult Social Care,Central Codes (to be reallocated),5105649248,31.07.2020,Adelaide Resource Centre,Consumable Cleaning Materials,34.27,BETA PAK LTD
Revenue,Adult Services,Adult Social Care,Central Codes (to be reallocated),5105648438,24.07.2020,Adelaide Resource Centre,Consumable Cleaning Materials,230.37,BETA PAK LTD
Revenue,Adult Services,Adult Social Care,Central Codes (to be reallocated),5105648491,24.07.2020,Adelaide Resource Centre,Consumable Cleaning Materials,110.2,BETA PAK LTD
Revenue,Neighbourhoods,Cultural and Related Services,Culture and Heritage,5105649247,31.07.2020,Dinosaur Isle Museum (Sandown Geology),General Materials,17.24,BETA PAK LTD
Revenue,Neighbourhoods,Cultural and Related Services,Culture and Heritage,5105649247,31.07.2020,Dinosaur Isle Museum (Sandown Geology),General Materials,15,BETA PAK LTD
Revenue,Neighbourhoods,Cultural and Related Services,Culture and Heritage,5105649247,31.07.2020,Dinosaur Isle Museum (Sandown Geology),General Materials,12,BETA PAK LTD
Revenue,Regeneration,Planning services,Economic Development,5105647038,07.07.2020,Housing Development,Legal Fees - Other Parties,"4,750.00",BEVAN BRITTAN
Revenue,Regeneration,Planning services,Economic Development,5105647633,17.07.2020,Housing Development,Legal Fees - Other Parties,"3,796.00",BEVAN BRITTAN
Revenue,Adult Services,Adult Social Care,Central Codes (to be reallocated),5105647049,07.07.2020,Gouldings Resource Centre,Catering Purchases,327.13,3663 (BFS GROUP LTD)
Revenue,Adult Services,Adult Social Care,Central Codes (to be reallocated),5105648996,29.07.2020,Gouldings Resource Centre,Catering Purchases,-11.86,3663 (BFS GROUP LTD)
Revenue,Adult Services,Adult Social Care,Central Codes (to be reallocated),5105648910,29.07.2020,Gouldings Resource Centre,Catering Purchases,116.63,3663 (BFS GROUP LTD)
Revenue,Adult Services,Adult Social Care,Central Codes (to be reallocated),5105648910,29.07.2020,Gouldings Resource Centre,Catering Purchases,27.6,3663 (BFS GROUP LTD)
Revenue,Adult Services,Adult Social Care,Central Codes (to be reallocated),5105647600,15.07.2020,Gouldings Resource Centre,Catering Purchases,4.98,3663 (BFS GROUP LTD)
Revenue,Adult Services,Adult Social Care,Central Codes (to be reallocated),5105647600,15.07.2020,Gouldings Resource Centre,Catering Purchases,172.6,3663 (BFS GROUP LTD)
Revenue,Adult Services,Adult Social Care,Central Codes (to be reallocated),5105648400,22.07.2020,Gouldings Resource Centre,Catering Purchases,146.34,3663 (BFS GROUP LTD)
Revenue,Adult Services,Adult Social Care,Central Codes (to be reallocated),5105648400,22.07.2020,Gouldings Resource Centre,Catering Purchases,4.98,3663 (BFS GROUP LTD)
Revenue,Neighbourhoods,Cultural and Related Services,Library Service,5105648943,29.07.2020,Public Libraries Central,Stationery,114.94,BIBLIOTHECA LTD
Revenue,Adult Services,Adult Social Care,Learning Disab Supp (to be reallocated),5105644879,03.07.2020,31 Carter Avenue,"Refuse Collection, Disposal and Recycling Costs",59.96,BIFFA WASTE SERVICES LTD
Revenue,Neighbourhoods,Highways and Transport Services,"Airports, Harbours & Toll Facilities",5105644879,03.07.2020,Ferry Management,"Refuse Collection, Disposal and Recycling Costs",75.2,BIFFA WASTE SERVICES LTD
Revenue,Adult Services,Adult Social Care,Central Codes (to be reallocated),5105647701,17.07.2020,Gouldings Resource Centre,"Refuse Collection, Disposal and Recycling Costs",104.07,BIFFA WASTE SERVICES LTD
Revenue,Adult Services,Adult Social Care,Central Codes (to be reallocated),5105647702,17.07.2020,Gouldings Resource Centre,"Refuse Collection, Disposal and Recycling Costs",382.8,BIFFA WASTE SERVICES LTD
Revenue,Regeneration,Central Services,Support Services,5105644879,03.07.2020,Parklands,"Refuse Collection, Disposal and Recycling Costs",5.6,BIFFA WASTE SERVICES LTD
Revenue,Childrens Services,Children's & Education Services,Other Education and Community Budget,5105644879,03.07.2020,SEND Independent Advice & Support,"Refuse Collection, Disposal and Recycling Costs",39.64,BIFFA WASTE SERVICES LTD
Revenue,Neighbourhoods,Cultural and Related Services,Recreation and Sport,5105644879,03.07.2020,Seaclose Amusements,"Refuse Collection, Disposal and Recycling Costs",83.92,BIFFA WASTE SERVICES LTD
Revenue,Neighbourhoods,Cultural and Related Services,Recreation and Sport,5105644879,03.07.2020,Medina Leisure Centre,"Refuse Collection, Disposal and Recycling Costs",180.64,BIFFA WASTE SERVICES LTD
Revenue,Neighbourhoods,Highways and Transport Services,"Airports, Harbours & Toll Facilities",5105644879,03.07.2020,Ryde Harbour,"Refuse Collection, Disposal and Recycling Costs",8.96,BIFFA WASTE SERVICES LTD
Revenue,Adult Services,Adult Social Care,Learning Disab Supp (to be reallocated),5105644879,03.07.2020,Saxonbury,"Refuse Collection, Disposal and Recycling Costs",85.16,BIFFA WASTE SERVICES LTD
Revenue,Resources,Central Services,Support Services,5105644879,03.07.2020,60 Dodnor Lane Store,"Refuse Collection, Disposal and Recycling Costs",2.8,BIFFA WASTE SERVICES LTD
Revenue,Adult Services,Adult Social Care,Assistive Equipment & Technology,5105644879,03.07.2020,Community Equipment Store,"Refuse Collection, Disposal and Recycling Costs",344.14,BIFFA WASTE SERVICES LTD
Revenue,Childrens Services,Children's & Education Services,Children Looked After,5105644879,03.07.2020,Beaulieu House,"Refuse Collection, Disposal and Recycling Costs",181.12,BIFFA WASTE SERVICES LTD
Revenue,Adult Services,Adult Social Care,Social Care Activities,5105644879,03.07.2020,Mental Health Team,"Refuse Collection, Disposal and Recycling Costs",4.48,BIFFA WASTE SERVICES LTD
Revenue,Regeneration,Central Services,Support Services,5105644879,03.07.2020,"Westridge, Ryde","Refuse Collection, Disposal and Recycling Costs",75.98,BIFFA WASTE SERVICES LTD
Revenue,Adult Services,Adult Social Care,Learning Disab Supp (to be reallocated),5105644879,03.07.2020,Seagulls (Now SL),"Refuse Collection, Disposal and Recycling Costs",75.2,BIFFA WASTE SERVICES LTD
Revenue,Regeneration,Central Services,Support Services,5105644879,03.07.2020,"County Hall,Newport","Refuse Collection, Disposal and Recycling Costs",468.36,BIFFA WASTE SERVICES LTD
Revenue,Regeneration,Central Services,Support Services,5105644879,03.07.2020,"Jubilee Stores, Newport","Refuse Collection, Disposal and Recycling Costs",5.6,BIFFA WASTE SERVICES LTD
Revenue,Neighbourhoods,Cultural and Related Services,Open Spaces,5105644879,03.07.2020,Fort Victoria,"Refuse Collection, Disposal and Recycling Costs",23.86,BIFFA WASTE SERVICES LTD
Revenue,Neighbourhoods,Highways and Transport Services,"Airports, Harbours & Toll Facilities",5105644879,03.07.2020,Newport Harbour Account,"Refuse Collection, Disposal and Recycling Costs",106.24,BIFFA WASTE SERVICES LTD
Revenue,Fire & Rescue,Fire & Rescue Services,Fire fighting and Rescue Operations,5105644879,03.07.2020,Fire Operations,"Refuse Collection, Disposal and Recycling Costs",334.52,BIFFA WASTE SERVICES LTD
Revenue,Neighbourhoods,Cultural and Related Services,Library Service,5105644879,03.07.2020,Public Libraries Central,"Refuse Collection, Disposal and Recycling Costs",92.98,BIFFA WASTE SERVICES LTD
Revenue,Neighbourhoods,Cultural and Related Services,Culture and Heritage,5105644879,03.07.2020,Cothey Bottom Store RYDE,"Refuse Collection, Disposal and Recycling Costs",37.99,BIFFA WASTE SERVICES LTD
Revenue,Neighbourhoods,Cultural and Related Services,Recreation and Sport,5105644879,03.07.2020,Westridge Squash Courts,"Refuse Collection, Disposal and Recycling Costs",37.99,BIFFA WASTE SERVICES LTD
Revenue,Adult Services,Adult Social Care,Learning Disab Supp (to be reallocated),5105644879,03.07.2020,40 Venner Avenue (Now SL),"Refuse Collection, Disposal and Recycling Costs",172.56,BIFFA WASTE SERVICES LTD
Revenue,Adult Services,Adult Social Care,Learning Disab Supp (to be reallocated),5105644879,03.07.2020,40 Venner Avenue (Now SL),"Refuse Collection, Disposal and Recycling Costs",75.2,BIFFA WASTE SERVICES LTD
Revenue,Resources,Central Services,Support Services,5105644879,03.07.2020,Corporate Stores,"Refuse Collection, Disposal and Recycling Costs",237.88,BIFFA WASTE SERVICES LTD
Revenue,Childrens Services,Children's & Education Services,Management & Support Services,5105644879,03.07.2020,Specialist Service Business Admin,"Refuse Collection, Disposal and Recycling Costs",76.4,BIFFA WASTE SERVICES LTD
Revenue,Regeneration,Planning services,Management & Support Services,5105644879,03.07.2020,Planning Management,"Refuse Collection, Disposal and Recycling Costs",12.23,BIFFA WASTE SERVICES LTD
Revenue,Neighbourhoods,Environmental & Regulatory Services,"Cemetery, Cremation & Mortuary Services",5105644879,03.07.2020,Crematorium,"Refuse Collection, Disposal and Recycling Costs",160.46,BIFFA WASTE SERVICES LTD
Revenue,Neighbourhoods,Cultural and Related Services,Culture and Heritage,5105644879,03.07.2020,Dinosaur Isle Museum (Sandown Geology),"Refuse Collection, Disposal and Recycling Costs",13.44,BIFFA WASTE SERVICES LTD
Revenue,Neighbourhoods,Cultural and Related Services,Recreation and Sport,5105644879,03.07.2020,The Heights,"Refuse Collection, Disposal and Recycling Costs",11.2,BIFFA WASTE SERVICES LTD
Revenue,Regeneration,Central Services,Support Services,5105644879,03.07.2020,"Civic Centre,Sandown","Refuse Collection, Disposal and Recycling Costs",104.9,BIFFA WASTE SERVICES LTD
Revenue,Resources,Central Services,Support Services,5105648372,22.07.2020,Staff Benefits,Payment to Private Contractors,5,BLACKBERRY LANE PRE-SCHOOL
Revenue,Resources,Central Services,Support Services,5105646868,03.07.2020,ICT Contracts,Computer Software Licencing,795,BLAZIE ENGINEERING LTD
Revenue,Childrens Services,Children's & Education Services,Special Schools & Alternative Provision,5105648209,21.07.2020,Island Learning Centre,Bought in Prof Services - Curriculum (Schools),100,BODSTER EQUINE ASSISTED LEARN CIC
Revenue,Childrens Services,Children's & Education Services,Special Schools & Alternative Provision,5105648199,21.07.2020,Island Learning Centre,Bought in Prof Services - Curriculum (Schools),100,BODSTER EQUINE ASSISTED LEARN CIC
Revenue,Childrens Services,Children's & Education Services,Family Support Services,5105648118,21.07.2020,Short Breaks,Charges from Independent Providers,349.17,BODSTER EQUINE ASSISTED LEARN CIC
Revenue,Neighbourhoods,Cultural and Related Services,Library Service,5105647478,14.07.2020,Public Libraries Central,Purchase of Books,554.91,BOLINDA UK LTD
Revenue,Neighbourhoods,Cultural and Related Services,Library Service,5105647477,14.07.2020,Public Libraries Central,Consultants Fees,945.09,BOLINDA UK LTD
Revenue,Adult Services,Adult Social Care,Learning Disab Supp (to be reallocated),5105647023,07.07.2020,Plean Dene,Catering Purchases,158.16,BOOKER CASH & CARRY LTD
Revenue,Adult Services,Adult Social Care,Learning Disab Supp (to be reallocated),5105647024,07.07.2020,Plean Dene,Catering Purchases,5.16,BOOKER CASH & CARRY LTD
Revenue,Adult Services,Adult Social Care,Learning Disab Supp (to be reallocated),5105647074,07.07.2020,Plean Dene,Catering Purchases,20.26,BOOKER CASH & CARRY LTD
Revenue,Adult Services,Adult Social Care,Learning Disab Supp (to be reallocated),5105648010,21.07.2020,Plean Dene,Catering Purchases,17.98,BOOKER CASH & CARRY LTD
Revenue,Adult Services,Adult Social Care,Learning Disab Supp (to be reallocated),5105646844,03.07.2020,Plean Dene,Catering Purchases,9.78,BOOKER CASH & CARRY LTD
Revenue,Adult Services,Adult Social Care,Learning Disab Supp (to be reallocated),5105647383,10.07.2020,Plean Dene,Catering Purchases,3.97,BOOKER CASH & CARRY LTD
Revenue,Adult Services,Adult Social Care,Learning Disab Supp (to be reallocated),5105647432,14.07.2020,Plean Dene,Catering Purchases,4.17,BOOKER CASH & CARRY LTD
Revenue,Adult Services,Adult Social Care,Learning Disab Supp (to be reallocated),5105647672,17.07.2020,Plean Dene,Catering Purchases,11.59,BOOKER CASH & CARRY LTD
Revenue,Adult Services,Adult Social Care,Learning Disab Supp (to be reallocated),5105647731,17.07.2020,Plean Dene,Catering Purchases,21.87,BOOKER CASH & CARRY LTD
Revenue,Adult Services,Adult Social Care,Learning Disab Supp (to be reallocated),5105647479,14.07.2020,Plean Dene,Catering Purchases,160.53,BOOKER CASH & CARRY LTD
Revenue,Adult Services,Adult Social Care,Learning Disab Supp (to be reallocated),5105647480,14.07.2020,Plean Dene,Catering Purchases,13.48,BOOKER CASH & CARRY LTD
Revenue,Public Health,Public Health,Sexual Health,5400002715,31.07.2020,Contraception P,Payment to Private Contractors,43,BOOTS UK LTD (SANDOWN LARGE STORE)
Revenue,Public Health,Public Health,Sexual Health,5400002715,31.07.2020,Contraception P,Payment to Private Contractors,5.2,BOOTS UK LTD (SANDOWN LARGE STORE)
Revenue,Public Health,Public Health,Smoking & Tobacco,5400002713,31.07.2020,Stop Smoking Services & Interventions NP,Payment to Private Contractors,0.82,BOOTS UK LTD (NEWPORT)
Revenue,Public Health,Public Health,Sexual Health,5400002721,31.07.2020,Contraception P,Payment to Private Contractors,0.3,BOOTS UK LTD
Revenue,Adult Services,Housing Services,Homelessness,5105648357,22.07.2020,Private Rented Sector Leasing Scheme,Accommodation Costs - Leaseholder Payments,746.81,BRAMBLE LETTINGS
Revenue,Adult Services,Housing Services,Homelessness,5105648357,22.07.2020,Private Rented Sector Leasing Scheme,Accommodation Costs - Leaseholder Payments,746.81,BRAMBLE LETTINGS
Revenue,Adult Services,Housing Services,Homelessness,5105648357,22.07.2020,Private Rented Sector Leasing Scheme,Accommodation Costs - Leaseholder Payments,746.81,BRAMBLE LETTINGS
Revenue,Adult Services,Housing Services,Homelessness,5105648357,22.07.2020,Private Rented Sector Leasing Scheme,Accommodation Costs - Leaseholder Payments,746.81,BRAMBLE LETTINGS
Revenue,Adult Services,Housing Services,Homelessness,5105648357,22.07.2020,Private Rented Sector Leasing Scheme,Accommodation Costs - Leaseholder Payments,746.81,BRAMBLE LETTINGS
Revenue,Adult Services,Housing Services,Homelessness,5105648357,22.07.2020,Private Rented Sector Leasing Scheme,Accommodation Costs - Leaseholder Payments,588.38,BRAMBLE LETTINGS
Revenue,Adult Services,Housing Services,Homelessness,5105648357,22.07.2020,Private Rented Sector Leasing Scheme,Accommodation Costs - Leaseholder Payments,588.38,BRAMBLE LETTINGS
Revenue,Adult Services,Housing Services,Homelessness,5105648357,22.07.2020,Private Rented Sector Leasing Scheme,Accommodation Costs - Leaseholder Payments,588.38,BRAMBLE LETTINGS
Revenue,Adult Services,Housing Services,Homelessness,5105648357,22.07.2020,Private Rented Sector Leasing Scheme,Accommodation Costs - Leaseholder Payments,588.38,BRAMBLE LETTINGS
Revenue,Adult Services,Housing Services,Homelessness,5105648357,22.07.2020,Private Rented Sector Leasing Scheme,Accommodation Costs - Leaseholder Payments,588.38,BRAMBLE LETTINGS
Revenue,Adult Services,Housing Services,Homelessness,5105648357,22.07.2020,Private Rented Sector Leasing Scheme,Accommodation Costs - Leaseholder Payments,746.81,BRAMBLE LETTINGS
Revenue,Adult Services,Housing Services,Homelessness,5105648357,22.07.2020,Private Rented Sector Leasing Scheme,Accommodation Costs - Leaseholder Payments,588.38,BRAMBLE LETTINGS
Revenue,Adult Services,Housing Services,Homelessness,5105648357,22.07.2020,Private Rented Sector Leasing Scheme,Accommodation Costs - Leaseholder Payments,746.81,BRAMBLE LETTINGS
Revenue,Adult Services,Housing Services,Homelessness,5105648357,22.07.2020,Private Rented Sector Leasing Scheme,Accommodation Costs - Leaseholder Payments,769.43,BRAMBLE LETTINGS
Revenue,Adult Services,Housing Services,Homelessness,5105648357,22.07.2020,Private Rented Sector Leasing Scheme,Accommodation Costs - Leaseholder Payments,746.81,BRAMBLE LETTINGS
Revenue,Adult Services,Housing Services,Homelessness,5105648357,22.07.2020,Private Rented Sector Leasing Scheme,Accommodation Costs - Leaseholder Payments,746.81,BRAMBLE LETTINGS
Revenue,Adult Services,Housing Services,Homelessness,5105648357,22.07.2020,Private Rented Sector Leasing Scheme,Accommodation Costs - Leaseholder Payments,746.81,BRAMBLE LETTINGS
Revenue,Adult Services,Housing Services,Homelessness,5105648357,22.07.2020,Private Rented Sector Leasing Scheme,Accommodation Costs - Leaseholder Payments,746.81,BRAMBLE LETTINGS
Revenue,Adult Services,Housing Services,Homelessness,5105648357,22.07.2020,Private Rented Sector Leasing Scheme,Accommodation Costs - Leaseholder Payments,746.81,BRAMBLE LETTINGS
Revenue,Adult Services,Housing Services,Homelessness,5105648357,22.07.2020,Private Rented Sector Leasing Scheme,Accommodation Costs - Leaseholder Payments,746.81,BRAMBLE LETTINGS
Revenue,Adult Services,Housing Services,Homelessness,5105648357,22.07.2020,Private Rented Sector Leasing Scheme,Accommodation Costs - Leaseholder Payments,746.81,BRAMBLE LETTINGS
Revenue,Adult Services,Housing Services,Homelessness,5105648357,22.07.2020,Private Rented Sector Leasing Scheme,Accommodation Costs - Leaseholder Payments,746.81,BRAMBLE LETTINGS
Revenue,Adult Services,Housing Services,Homelessness,5105648357,22.07.2020,Private Rented Sector Leasing Scheme,Accommodation Costs - Leaseholder Payments,281.66,BRAMBLE LETTINGS
Revenue,Adult Services,Housing Services,Homelessness,5105648357,22.07.2020,Private Rented Sector Leasing Scheme,Accommodation Costs - Leaseholder Payments,216.66,BRAMBLE LETTINGS
Capital,Place,Capital,Capital,5105647487,14.07.2020,Parks and Gardens Capital,Payment to Contractors - Capital,60,BRIGHSTONE LANDSCAPING LTD
Revenue,Neighbourhoods,Cultural and Related Services,Recreation and Sport,5105648927,29.07.2020,Slipways & Steps (Beaches),Payment to Private Contractors,95,BRIGHSTONE LANDSCAPING LTD
Revenue,Neighbourhoods,Cultural and Related Services,Recreation and Sport,5105647487,14.07.2020,Slipways & Steps (Beaches),Payment to Private Contractors,295,BRIGHSTONE LANDSCAPING LTD
Revenue,Neighbourhoods,Cultural and Related Services,Recreation and Sport,5105647487,14.07.2020,Slipways & Steps (Beaches),Payment to Private Contractors,485,BRIGHSTONE LANDSCAPING LTD
Revenue,Neighbourhoods,Highways and Transport Services,"Airports, Harbours & Toll Facilities",5105648919,29.07.2020,Ryde Harbour,Payment to Private Contractors,55,BRIGHSTONE LANDSCAPING LTD
Revenue,Neighbourhoods,Environmental & Regulatory Services,(Street) Cleansing (not highways),5105646831,03.07.2020,Beach Cleaning,Beach Cleansing Contractors,"2,952.00",BRIGHSTONE LANDSCAPING LTD
Revenue,Neighbourhoods,Environmental & Regulatory Services,(Street) Cleansing (not highways),5105648688,24.07.2020,Beach Cleaning,Beach Cleansing Contractors,"7,859.00",BRIGHSTONE LANDSCAPING LTD
Revenue,Neighbourhoods,Environmental & Regulatory Services,(Street) Cleansing (not highways),5105648689,24.07.2020,Beach Cleaning,Beach Cleansing Contractors,"2,952.00",BRIGHSTONE LANDSCAPING LTD
Revenue,Neighbourhoods,Environmental & Regulatory Services,(Street) Cleansing (not highways),5105647487,14.07.2020,Beach Cleaning,Payment to Private Contractors,70,BRIGHSTONE LANDSCAPING LTD
Revenue,Neighbourhoods,Environmental & Regulatory Services,(Street) Cleansing (not highways),5105648919,29.07.2020,Beach Cleaning,Payment to Private Contractors,555,BRIGHSTONE LANDSCAPING LTD
Revenue,Neighbourhoods,Cultural and Related Services,Open Spaces,5105647487,14.07.2020,Public Shelters - Ryde,Payment to Private Contractors,70,BRIGHSTONE LANDSCAPING LTD
Revenue,Neighbourhoods,Central Services,Central Services to the Public,5105648919,29.07.2020,NB Covid-19,Payment to Private Contractors,250,BRIGHSTONE LANDSCAPING LTD
Revenue,Neighbourhoods,Environmental & Regulatory Services,Coast Protection,5105647714,17.07.2020,Coast Protection,Payment to Private Contractors,375,BRIGHSTONE LANDSCAPING LTD
Revenue,Neighbourhoods,Environmental & Regulatory Services,Coast Protection,5105647488,14.07.2020,Coast Protection,Payment to Private Contractors,50,BRIGHSTONE LANDSCAPING LTD
Revenue,Neighbourhoods,Environmental & Regulatory Services,Coast Protection,5105646352,08.07.2020,Coast Protection,Payment to Private Contractors,560,BRIGHSTONE LANDSCAPING LTD
Revenue,Neighbourhoods,Environmental & Regulatory Services,Coast Protection,5105647064,07.07.2020,Coast Protection,Payment to Private Contractors,200,BRIGHSTONE LANDSCAPING LTD
Revenue,Neighbourhoods,Environmental & Regulatory Services,Coast Protection,5105646834,03.07.2020,Coast Protection,Payment to Private Contractors,45,BRIGHSTONE LANDSCAPING LTD
Revenue,Neighbourhoods,Environmental & Regulatory Services,Coast Protection,5105646835,03.07.2020,Coast Protection,Payment to Private Contractors,195,BRIGHSTONE LANDSCAPING LTD
Revenue,Neighbourhoods,Environmental & Regulatory Services,Coast Protection,5105648447,24.07.2020,Coast Protection,Payment to Private Contractors,95,BRIGHSTONE LANDSCAPING LTD
Revenue,Neighbourhoods,Environmental & Regulatory Services,Coast Protection,5105648928,29.07.2020,Coast Protection,Payment to Private Contractors,95,BRIGHSTONE LANDSCAPING LTD
Revenue,Neighbourhoods,Cultural and Related Services,Recreation and Sport,5105648919,29.07.2020,Misc dinghy parks,Payment to Private Contractors,360,BRIGHSTONE LANDSCAPING LTD
Revenue,Resources,Central Services,Support Services,5105648396,22.07.2020,Staff Benefits,Payment to Private Contractors,15,KCT CHILDCARE LIMITED
Revenue,Adult Services,Adult Social Care,Learning Disability Suppt-adults (18-64),5105646879,07.07.2020,Learning Disability Residential 18-64,Charges from Independent Providers,"7,069.16",BROADHAM CARE LTD
Revenue,Corporate Items,Balance Sheet,Balance Sheet,5105647491,14.07.2020,Insurance Suspense - Claims Outstanding,Order Settlement to Bal Sht GL,"1,846.00",BROWNE JACOBSON
Revenue,Neighbourhoods,Cultural and Related Services,Recreation and Sport,5105648459,24.07.2020,Play Development,Operational Equipment,39,BROXAP LTD
Revenue,Neighbourhoods,Cultural and Related Services,Recreation and Sport,5105648459,24.07.2020,Play Development,Operational Equipment,17.6,BROXAP LTD
Revenue,Neighbourhoods,Cultural and Related Services,Open Spaces,5105647451,14.07.2020,Other Grounds Maintenance,Operational Equipment,74,BROXAP LTD
Capital,Corporate Items,Balance Sheet,Balance Sheet,5105646926,07.07.2020,Balance Sheet,Order Settlement to Bal Sht GL,92.12,BUCKLAND CARE LTD
Revenue,Adult Services,Adult Social Care,Physical Support - adults (18-64),5105646926,07.07.2020,Physical Support Residential 18-64,Charges from Independent Providers,"2,497.32",BUCKLAND CARE LTD
Revenue,Adult Services,Adult Social Care,Support - Memory /Cognition-older people (65+),5105646926,07.07.2020,Memory & Cognition Residential 65+,Charges from Independent Providers,"2,497.32",BUCKLAND CARE LTD
Revenue,Adult Services,Adult Social Care,Support - Memory /Cognition-older people (65+),5105646926,07.07.2020,Memory & Cognition Residential 65+,Charges from Independent Providers,"2,124.08",BUCKLAND CARE LTD
Revenue,Adult Services,Adult Social Care,Support - Memory /Cognition-older people (65+),5105646926,07.07.2020,Memory & Cognition Residential 65+,Charges from Independent Providers,"2,497.32",BUCKLAND CARE LTD
Revenue,Adult Services,Adult Social Care,Support - Memory /Cognition-older people (65+),5105647525,14.07.2020,Memory & Cognition Residential 65+,Charges from Independent Providers,"2,427.52",BUCKLAND CARE LTD
Revenue,Adult Services,Adult Social Care,Support - Memory /Cognition-older people (65+),5105646850,03.07.2020,Memory & Cognition Residential 65+,Charges from Independent Providers,"2,408.13",BUCKLAND CARE LTD
Revenue,Adult Services,Central Services,Emergency Planning,5105647525,14.07.2020,NHS C19 Residential,Charges from Independent Providers,"4,080.16",BUCKLAND CARE LTD
Revenue,Adult Services,Central Services,Emergency Planning,5105647089,08.07.2020,NHS C19 Residential,Charges from Independent Providers,"4,080.16",BUCKLAND CARE LTD
Revenue,Adult Services,Central Services,Emergency Planning,5105647370,10.07.2020,NHS C19 Residential,Charges from Independent Providers,"4,080.16",BUCKLAND CARE LTD
Revenue,Adult Services,Adult Social Care,Learning Disability Support-older people,5105646926,07.07.2020,Learning Disability Residential 65+,Charges from Independent Providers,"2,497.32",BUCKLAND CARE LTD
Revenue,Adult Services,Adult Social Care,Social Support - Support for Carer,5105647743,17.07.2020,Carers Residential,Regular Respite Care,"4,994.64",BUCKLAND CARE LTD
Revenue,Adult Services,Adult Social Care,Physical Support - older people (65+),5105646926,07.07.2020,Physical Support Residential 65+,Charges from Independent Providers,"2,497.32",BUCKLAND CARE LTD
Revenue,Adult Services,Adult Social Care,Physical Support - older people (65+),5105646926,07.07.2020,Physical Support Residential 65+,Charges from Independent Providers,"2,497.32",BUCKLAND CARE LTD
Revenue,Adult Services,Adult Social Care,Physical Support - older people (65+),5105646926,07.07.2020,Physical Support Residential 65+,Charges from Independent Providers,"2,497.32",BUCKLAND CARE LTD
Revenue,Adult Services,Adult Social Care,Physical Support - older people (65+),5105646926,07.07.2020,Physical Support Residential 65+,Charges from Independent Providers,"2,497.32",BUCKLAND CARE LTD
Revenue,Adult Services,Adult Social Care,Physical Support - older people (65+),5105646926,07.07.2020,Physical Support Residential 65+,Charges from Independent Providers,"2,497.32",BUCKLAND CARE LTD
Revenue,Adult Services,Adult Social Care,Physical Support - older people (65+),5105649279,31.07.2020,Physical Support Residential 65+,Charges from Independent Providers,"2,943.27",BUCKLAND CARE LTD
Revenue,Adult Services,Adult Social Care,Physical Support - older people (65+),5105646926,07.07.2020,Physical Support Residential 65+,Charges from Independent Providers,"2,497.32",BUCKLAND CARE LTD
Revenue,Adult Services,Adult Social Care,Physical Support - older people (65+),5105646926,07.07.2020,Physical Support Residential 65+,Charges from Independent Providers,"2,497.32",BUCKLAND CARE LTD
Revenue,Adult Services,Adult Social Care,Physical Support - older people (65+),5105646926,07.07.2020,Physical Support Residential 65+,Charges from Independent Providers,"2,124.08",BUCKLAND CARE LTD
Revenue,Adult Services,Adult Social Care,Physical Support - older people (65+),5105646926,07.07.2020,Physical Support Residential 65+,Charges from Independent Providers,"2,497.32",BUCKLAND CARE LTD
Revenue,Adult Services,Adult Social Care,Physical Support - older people (65+),5105646926,07.07.2020,Physical Support Residential 65+,Charges from Independent Providers,"2,028.32",BUCKLAND CARE LTD
Revenue,Adult Services,Adult Social Care,Physical Support - older people (65+),5105646926,07.07.2020,Physical Support Residential 65+,Charges from Independent Providers,"2,028.32",BUCKLAND CARE LTD
Revenue,Adult Services,Adult Social Care,Physical Support - older people (65+),5105646926,07.07.2020,Physical Support Residential 65+,Charges from Independent Providers,"2,497.32",BUCKLAND CARE LTD
Revenue,Adult Services,Adult Social Care,Physical Support - older people (65+),5105646926,07.07.2020,Physical Support Residential 65+,Charges from Independent Providers,"2,497.32",BUCKLAND CARE LTD
Revenue,Adult Services,Adult Social Care,Physical Support - older people (65+),5105646926,07.07.2020,Physical Support Residential 65+,Charges from Independent Providers,"2,497.32",BUCKLAND CARE LTD
Revenue,Adult Services,Adult Social Care,Physical Support - older people (65+),5105646926,07.07.2020,Physical Support Residential 65+,Charges from Independent Providers,"2,497.32",BUCKLAND CARE LTD
Revenue,Adult Services,Adult Social Care,Physical Support - older people (65+),5105646926,07.07.2020,Physical Support Residential 65+,Charges from Independent Providers,"2,497.32",BUCKLAND CARE LTD
Revenue,Adult Services,Adult Social Care,Physical Support - older people (65+),5105646926,07.07.2020,Physical Support Residential 65+,Charges from Independent Providers,"2,497.32",BUCKLAND CARE LTD
Revenue,Adult Services,Adult Social Care,Physical Support - older people (65+),5105647525,14.07.2020,Physical Support Residential 65+,Charges from Independent Providers,"4,248.16",BUCKLAND CARE LTD
Revenue,Adult Services,Central Services,Emergency Planning,5105647638,17.07.2020,NHS C19 Nursing,Charges from Independent Providers,"5,500.04",BUCKLAND CARE LTD
Revenue,Adult Services,Central Services,Emergency Planning,5105647369,10.07.2020,NHS C19 Nursing,Charges from Independent Providers,"5,500.04",BUCKLAND CARE LTD
Revenue,Adult Services,Adult Social Care,Learning Disability Suppt-adults (18-64),5105646625,03.07.2020,Learning Disability Nursing 18-64,Charges from Independent Providers,"5,306.89",BUCKLAND CARE LTD
Revenue,Adult Services,Adult Social Care,Support - Memory /Cognition-older people (65+),5105646916,07.07.2020,Memory & Cognition Residential 65+,Charges from Independent Providers,"2,497.32",BUCKLAND CARE LTD
Revenue,Adult Services,Adult Social Care,Learning Disability Suppt-adults (18-64),5105646916,07.07.2020,Learning Disability Nursing 18-64,Charges from Independent Providers,"2,803.64",BUCKLAND CARE LTD
Revenue,Adult Services,Adult Social Care,Commissioning & Service Delivery,5105646916,07.07.2020,"Funded Nursing Care, Registered Nursing Care Contribution",Charges from Independent Providers,735.84,BUCKLAND CARE LTD
Revenue,Adult Services,Adult Social Care,Commissioning & Service Delivery,5105646916,07.07.2020,"Funded Nursing Care, Registered Nursing Care Contribution",Charges from Independent Providers,735.84,BUCKLAND CARE LTD
Revenue,Adult Services,Adult Social Care,Commissioning & Service Delivery,5105646916,07.07.2020,"Funded Nursing Care, Registered Nursing Care Contribution",Charges from Independent Providers,735.84,BUCKLAND CARE LTD
Revenue,Adult Services,Adult Social Care,Commissioning & Service Delivery,5105646916,07.07.2020,"Funded Nursing Care, Registered Nursing Care Contribution",Charges from Independent Providers,735.84,BUCKLAND CARE LTD
Revenue,Adult Services,Adult Social Care,Commissioning & Service Delivery,5105646916,07.07.2020,"Funded Nursing Care, Registered Nursing Care Contribution",Charges from Independent Providers,735.84,BUCKLAND CARE LTD
Revenue,Adult Services,Adult Social Care,Commissioning & Service Delivery,5105647041,07.07.2020,FNC IWC funded clients,Charges from Independent Providers,"1,445.40",BUCKLAND CARE LTD
Revenue,Adult Services,Adult Social Care,Commissioning & Service Delivery,5105646625,03.07.2020,FNC IWC funded clients,Charges from Independent Providers,"1,392.84",BUCKLAND CARE LTD
Revenue,Adult Services,Adult Social Care,Commissioning & Service Delivery,5105647369,10.07.2020,FNC IWC funded clients,Charges from Independent Providers,840.96,BUCKLAND CARE LTD
Revenue,Adult Services,Adult Social Care,Commissioning & Service Delivery,5105647440,14.07.2020,FNC IWC funded clients,Charges from Independent Providers,341.64,BUCKLAND CARE LTD
Revenue,Adult Services,Adult Social Care,Commissioning & Service Delivery,5105646916,07.07.2020,FNC IWC funded clients,Regular Respite Care,662.48,BUCKLAND CARE LTD
Revenue,Adult Services,Adult Social Care,Commissioning & Service Delivery,5105646625,03.07.2020,CHC Interim Funding (FWP),Charges from Independent Providers,"4,677.17",BUCKLAND CARE LTD
Revenue,Adult Services,Adult Social Care,Commissioning & Service Delivery,5105646625,03.07.2020,CHC Interim Funding (FWP),Charges from Independent Providers,"5,941.27",BUCKLAND CARE LTD
Revenue,Adult Services,Adult Social Care,Commissioning & Service Delivery,5105649050,31.07.2020,FNC IWC funded clients,Charges from Independent Providers,735.84,BUCKLAND CARE LTD
Revenue,Adult Services,Adult Social Care,Commissioning & Service Delivery,5105646916,07.07.2020,FNC IWC funded clients,Charges from Independent Providers,735.84,BUCKLAND CARE LTD
Revenue,Adult Services,Adult Social Care,Commissioning & Service Delivery,5105646916,07.07.2020,FNC IWC funded clients,Charges from Independent Providers,735.84,BUCKLAND CARE LTD
Revenue,Adult Services,Adult Social Care,Commissioning & Service Delivery,5105646916,07.07.2020,FNC IWC funded clients,Charges from Independent Providers,157.68,BUCKLAND CARE LTD
Revenue,Adult Services,Adult Social Care,Commissioning & Service Delivery,5105646916,07.07.2020,FNC IWC funded clients,Charges from Independent Providers,735.84,BUCKLAND CARE LTD
Revenue,Adult Services,Adult Social Care,Commissioning & Service Delivery,5105646916,07.07.2020,FNC IWC funded clients,Charges from Independent Providers,735.84,BUCKLAND CARE LTD
Revenue,Adult Services,Adult Social Care,Commissioning & Service Delivery,5105646916,07.07.2020,FNC IWC funded clients,Charges from Independent Providers,735.84,BUCKLAND CARE LTD
Revenue,Adult Services,Adult Social Care,Commissioning & Service Delivery,5105646916,07.07.2020,FNC IWC funded clients,Charges from Independent Providers,735.84,BUCKLAND CARE LTD
Revenue,Adult Services,Adult Social Care,Commissioning & Service Delivery,5105646916,07.07.2020,FNC IWC funded clients,Charges from Independent Providers,735.84,BUCKLAND CARE LTD
Revenue,Adult Services,Adult Social Care,Commissioning & Service Delivery,5105646916,07.07.2020,FNC IWC funded clients,Charges from Independent Providers,735.84,BUCKLAND CARE LTD
Revenue,Adult Services,Adult Social Care,Physical Support - older people (65+),5105647440,14.07.2020,Physical Support Nursing 65+,Charges from Independent Providers,"1,301.69",BUCKLAND CARE LTD
Revenue,Adult Services,Adult Social Care,Physical Support - older people (65+),5105647369,10.07.2020,Physical Support Nursing 65+,Charges from Independent Providers,"3,204.16",BUCKLAND CARE LTD
Revenue,Adult Services,Adult Social Care,Physical Support - older people (65+),5105647041,07.07.2020,Physical Support Nursing 65+,Charges from Independent Providers,"5,507.15",BUCKLAND CARE LTD
Revenue,Adult Services,Adult Social Care,Commissioning & Service Delivery,5105648501,24.07.2020,CHC Nursing Care,Charges from Independent Providers,"5,056.40",BUCKLAND CARE LTD
Revenue,Adult Services,Adult Social Care,Commissioning & Service Delivery,5105646916,07.07.2020,CHC Nursing Care,Charges from Independent Providers,"3,539.48",BUCKLAND CARE LTD
Revenue,Adult Services,Adult Social Care,Commissioning & Service Delivery,5105646916,07.07.2020,CHC Nursing Care,Charges from Independent Providers,"3,539.48",BUCKLAND CARE LTD
Revenue,Adult Services,Adult Social Care,Commissioning & Service Delivery,5105646916,07.07.2020,CHC Nursing Care,Charges from Independent Providers,"3,539.48",BUCKLAND CARE LTD
Revenue,Adult Services,Adult Social Care,Commissioning & Service Delivery,5105646916,07.07.2020,CHC Nursing Care,Charges from Independent Providers,"3,539.48",BUCKLAND CARE LTD
Revenue,Adult Services,Adult Social Care,Commissioning & Service Delivery,5105646916,07.07.2020,CHC Nursing Care,Charges from Independent Providers,"3,539.48",BUCKLAND CARE LTD
Revenue,Adult Services,Adult Social Care,Commissioning & Service Delivery,5105646916,07.07.2020,CHC Nursing Care,Charges from Independent Providers,"3,539.48",BUCKLAND CARE LTD
Revenue,Adult Services,Adult Social Care,Commissioning & Service Delivery,5105646916,07.07.2020,CHC Nursing Care,Charges from Independent Providers,"11,424.00",BUCKLAND CARE LTD
Revenue,Adult Services,Adult Social Care,Commissioning & Service Delivery,5105646916,07.07.2020,CHC Nursing Care,Charges from Independent Providers,"3,539.48",BUCKLAND CARE LTD
Revenue,Adult Services,Adult Social Care,Commissioning & Service Delivery,5105646916,07.07.2020,CHC Nursing Care,Charges from Independent Providers,"3,539.48",BUCKLAND CARE LTD
Revenue,Adult Services,Adult Social Care,Commissioning & Service Delivery,5105646916,07.07.2020,CHC Nursing Care,Charges from Independent Providers,"3,539.48",BUCKLAND CARE LTD
Revenue,Adult Services,Adult Social Care,Commissioning & Service Delivery,5105648095,21.07.2020,CHC Nursing Care,Charges from Independent Providers,"2,654.61",BUCKLAND CARE LTD
Revenue,Adult Services,Adult Social Care,Commissioning & Service Delivery,5105646625,03.07.2020,CHC Nursing Care,Charges from Independent Providers,"6,194.09",BUCKLAND CARE LTD
Revenue,Adult Services,Adult Social Care,Commissioning & Service Delivery,5105647151,10.07.2020,CHC Nursing Care,Charges from Independent Providers,505.64,BUCKLAND CARE LTD
Revenue,Adult Services,Adult Social Care,Physical Support - adults (18-64),5105646916,07.07.2020,Physical Support Nursing 18-64,Charges from Independent Providers,"2,803.64",BUCKLAND CARE LTD
Revenue,Adult Services,Adult Social Care,Physical Support - older people (65+),5105646916,07.07.2020,Physical Support Nursing 65+,Charges from Independent Providers,"2,803.64",BUCKLAND CARE LTD
Revenue,Adult Services,Adult Social Care,Physical Support - older people (65+),5105646916,07.07.2020,Physical Support Nursing 65+,Charges from Independent Providers,600.78,BUCKLAND CARE LTD
Revenue,Adult Services,Adult Social Care,Physical Support - older people (65+),5105646916,07.07.2020,Physical Support Nursing 65+,Charges from Independent Providers,"2,803.64",BUCKLAND CARE LTD
Revenue,Adult Services,Adult Social Care,Physical Support - older people (65+),5105646916,07.07.2020,Physical Support Nursing 65+,Charges from Independent Providers,"2,497.32",BUCKLAND CARE LTD
Revenue,Adult Services,Adult Social Care,Physical Support - older people (65+),5105646916,07.07.2020,Physical Support Nursing 65+,Charges from Independent Providers,"2,803.64",BUCKLAND CARE LTD
Revenue,Adult Services,Adult Social Care,Physical Support - older people (65+),5105646916,07.07.2020,Physical Support Nursing 65+,Charges from Independent Providers,"2,803.64",BUCKLAND CARE LTD
Revenue,Adult Services,Adult Social Care,Support - Memory /Cognition-older people (65+),5105646916,07.07.2020,Memory & Cognition Nursing 65+,Charges from Independent Providers,"2,803.64",BUCKLAND CARE LTD
Revenue,Adult Services,Adult Social Care,Support - Memory /Cognition-older people (65+),5105646916,07.07.2020,Memory & Cognition Nursing 65+,Charges from Independent Providers,"3,235.12",BUCKLAND CARE LTD
Revenue,Adult Services,Adult Social Care,Support - Memory /Cognition-older people (65+),5105646916,07.07.2020,Memory & Cognition Nursing 65+,Regular Respite Care,"2,803.64",BUCKLAND CARE LTD
Revenue,Adult Services,Adult Social Care,Support - Memory /Cognition-older people (65+),5105649050,31.07.2020,Memory & Cognition Nursing 65+,Charges from Independent Providers,"2,803.64",BUCKLAND CARE LTD
Revenue,Adult Services,Adult Social Care,Physical Support - older people (65+),5105646916,07.07.2020,Physical Support Residential 65+,Charges from Independent Providers,"2,497.32",BUCKLAND CARE LTD
Revenue,Adult Services,Adult Social Care,Physical Support - older people (65+),5105646939,07.07.2020,Physical Support Nursing 65+,Charges from Independent Providers,"3,800.16",BUPA CARE HOME (BNH) LTD
Revenue,Neighbourhoods,Environmental & Regulatory Services,Regulatory Services,5105648795,24.07.2020,Environmental Health - Environmental Regulation & Protection,Professional Services,110.6,BUREAU VERITAS UK LTD
Revenue,Childrens Services,Children's & Education Services,Children Looked After,5105649082,31.07.2020,Special Guardianship Order Costs,Support Children,161.49,REDACTED PERSONAL DATA
Revenue,Childrens Services,Children's & Education Services,Children Looked After,5105647184,10.07.2020,Special Guardianship Order Costs,Support Children,161.49,REDACTED PERSONAL DATA
Revenue,Childrens Services,Children's & Education Services,Children Looked After,5105646658,03.07.2020,Special Guardianship Order Costs,Support Children,161.49,REDACTED PERSONAL DATA
Revenue,Childrens Services,Children's & Education Services,Children Looked After,5105647777,17.07.2020,Special Guardianship Order Costs,Support Children,161.49,REDACTED PERSONAL DATA
Revenue,Childrens Services,Children's & Education Services,Children Looked After,5105648535,24.07.2020,Special Guardianship Order Costs,Support Children,161.49,REDACTED PERSONAL DATA
Revenue,Childrens Services,Children's & Education Services,Children Looked After,5105647214,10.07.2020,Children placed with Family&Friends,Boarding Out Allowances,244.47,REDACTED PERSONAL DATA
Revenue,Childrens Services,Children's & Education Services,Children Looked After,5105646689,03.07.2020,Children placed with Family&Friends,Boarding Out Allowances,244.47,REDACTED PERSONAL DATA
Revenue,Childrens Services,Children's & Education Services,Children Looked After,5105648566,24.07.2020,Children placed with Family&Friends,Boarding Out Allowances,244.47,REDACTED PERSONAL DATA
Revenue,Childrens Services,Children's & Education Services,Children Looked After,5105647808,17.07.2020,Children placed with Family&Friends,Boarding Out Allowances,244.47,REDACTED PERSONAL DATA
Revenue,Childrens Services,Children's & Education Services,Children Looked After,5105649113,31.07.2020,Children placed with Family&Friends,Boarding Out Allowances,244.47,REDACTED PERSONAL DATA
Revenue,Childrens Services,Children's & Education Services,Children Looked After,5105646681,03.07.2020,Adoption Costs,Support Children,161.49,REDACTED PERSONAL DATA
Revenue,Childrens Services,Children's & Education Services,Children Looked After,5105646681,03.07.2020,Adoption Costs,Support Children,168.09,REDACTED PERSONAL DATA
Revenue,Childrens Services,Children's & Education Services,Children Looked After,5105648558,24.07.2020,Adoption Costs,Support Children,161.49,REDACTED PERSONAL DATA
Revenue,Childrens Services,Children's & Education Services,Children Looked After,5105648558,24.07.2020,Adoption Costs,Support Children,168.09,REDACTED PERSONAL DATA
Revenue,Childrens Services,Children's & Education Services,Children Looked After,5105647206,10.07.2020,Adoption Costs,Support Children,161.49,REDACTED PERSONAL DATA
Revenue,Childrens Services,Children's & Education Services,Children Looked After,5105647206,10.07.2020,Adoption Costs,Support Children,168.09,REDACTED PERSONAL DATA
Revenue,Childrens Services,Children's & Education Services,Children Looked After,5105649105,31.07.2020,Adoption Costs,Support Children,161.49,REDACTED PERSONAL DATA
Revenue,Childrens Services,Children's & Education Services,Children Looked After,5105649105,31.07.2020,Adoption Costs,Support Children,168.09,REDACTED PERSONAL DATA
Revenue,Childrens Services,Children's & Education Services,Children Looked After,5105647800,17.07.2020,Adoption Costs,Support Children,161.49,REDACTED PERSONAL DATA
Revenue,Childrens Services,Children's & Education Services,Children Looked After,5105647800,17.07.2020,Adoption Costs,Support Children,168.09,REDACTED PERSONAL DATA
Revenue,Resources,Central Services,Support Services,5105648393,22.07.2020,Staff Benefits,Payment to Private Contractors,5,REDACTED PERSONAL DATA
Revenue,Childrens Services,Children's & Education Services,Children Looked After,5105649091,31.07.2020,Special Guardianship Order Costs,Support Children,125.39,REDACTED PERSONAL DATA
Revenue,Childrens Services,Children's & Education Services,Children Looked After,5105646668,03.07.2020,Special Guardianship Order Costs,Support Children,125.39,REDACTED PERSONAL DATA
Revenue,Childrens Services,Children's & Education Services,Children Looked After,5105647786,17.07.2020,Special Guardianship Order Costs,Support Children,125.39,REDACTED PERSONAL DATA
Revenue,Childrens Services,Children's & Education Services,Children Looked After,5105647193,10.07.2020,Special Guardianship Order Costs,Support Children,125.39,REDACTED PERSONAL DATA
Revenue,Childrens Services,Children's & Education Services,Children Looked After,5105648544,24.07.2020,Special Guardianship Order Costs,Support Children,125.39,REDACTED PERSONAL DATA
Revenue,Childrens Services,Children's & Education Services,Children Looked After,5105647212,10.07.2020,In-house Fostering,Boarding Out Allowances,332.69,REDACTED PERSONAL DATA
Revenue,Childrens Services,Children's & Education Services,Children Looked After,5105647212,10.07.2020,In-house Fostering,Boarding Out Allowances,286.47,REDACTED PERSONAL DATA
Revenue,Childrens Services,Children's & Education Services,Children Looked After,5105647212,10.07.2020,In-house Fostering,Boarding Out Allowances,244.47,REDACTED PERSONAL DATA
Revenue,Childrens Services,Children's & Education Services,Children Looked After,5105647212,10.07.2020,In-house Fostering,Boarding Out Allowances,244.47,REDACTED PERSONAL DATA
Revenue,Childrens Services,Children's & Education Services,Children Looked After,5105646687,03.07.2020,In-house Fostering,Boarding Out Allowances,332.69,REDACTED PERSONAL DATA
Revenue,Childrens Services,Children's & Education Services,Children Looked After,5105646687,03.07.2020,In-house Fostering,Boarding Out Allowances,286.47,REDACTED PERSONAL DATA
Revenue,Childrens Services,Children's & Education Services,Children Looked After,5105646687,03.07.2020,In-house Fostering,Boarding Out Allowances,244.47,REDACTED PERSONAL DATA
Revenue,Childrens Services,Children's & Education Services,Children Looked After,5105646687,03.07.2020,In-house Fostering,Boarding Out Allowances,244.47,REDACTED PERSONAL DATA
Revenue,Childrens Services,Children's & Education Services,Children Looked After,5105647806,17.07.2020,In-house Fostering,Boarding Out Allowances,332.69,REDACTED PERSONAL DATA
Revenue,Childrens Services,Children's & Education Services,Children Looked After,5105647806,17.07.2020,In-house Fostering,Boarding Out Allowances,286.47,REDACTED PERSONAL DATA
Revenue,Childrens Services,Children's & Education Services,Children Looked After,5105647806,17.07.2020,In-house Fostering,Boarding Out Allowances,244.47,REDACTED PERSONAL DATA
Revenue,Childrens Services,Children's & Education Services,Children Looked After,5105647806,17.07.2020,In-house Fostering,Boarding Out Allowances,244.47,REDACTED PERSONAL DATA
Revenue,Childrens Services,Children's & Education Services,Children Looked After,5105648564,24.07.2020,In-house Fostering,Boarding Out Allowances,332.69,REDACTED PERSONAL DATA
Revenue,Childrens Services,Children's & Education Services,Children Looked After,5105648564,24.07.2020,In-house Fostering,Boarding Out Allowances,286.47,REDACTED PERSONAL DATA
Revenue,Childrens Services,Children's & Education Services,Children Looked After,5105648564,24.07.2020,In-house Fostering,Boarding Out Allowances,244.47,REDACTED PERSONAL DATA
Revenue,Childrens Services,Children's & Education Services,Children Looked After,5105648564,24.07.2020,In-house Fostering,Boarding Out Allowances,244.47,REDACTED PERSONAL DATA
Revenue,Childrens Services,Children's & Education Services,Children Looked After,5105649111,31.07.2020,In-house Fostering,Boarding Out Allowances,332.69,REDACTED PERSONAL DATA
Revenue,Childrens Services,Children's & Education Services,Children Looked After,5105649111,31.07.2020,In-house Fostering,Boarding Out Allowances,286.47,REDACTED PERSONAL DATA
Revenue,Childrens Services,Children's & Education Services,Children Looked After,5105649111,31.07.2020,In-house Fostering,Boarding Out Allowances,244.47,REDACTED PERSONAL DATA
Revenue,Childrens Services,Children's & Education Services,Children Looked After,5105649111,31.07.2020,In-house Fostering,Boarding Out Allowances,244.47,REDACTED PERSONAL DATA
Revenue,Childrens Services,Children's & Education Services,Children Looked After,5105649126,31.07.2020,Special Guardianship Order Costs,Support Children,218.65,REDACTED PERSONAL DATA
Revenue,Childrens Services,Children's & Education Services,Children Looked After,5105646702,03.07.2020,Special Guardianship Order Costs,Support Children,218.65,REDACTED PERSONAL DATA
Revenue,Childrens Services,Children's & Education Services,Children Looked After,5105647821,17.07.2020,Special Guardianship Order Costs,Support Children,218.65,REDACTED PERSONAL DATA
Revenue,Childrens Services,Children's & Education Services,Children Looked After,5105647227,10.07.2020,Special Guardianship Order Costs,Support Children,218.65,REDACTED PERSONAL DATA
Revenue,Childrens Services,Children's & Education Services,Children Looked After,5105648579,24.07.2020,Special Guardianship Order Costs,Support Children,218.65,REDACTED PERSONAL DATA
Revenue,Childrens Services,Children's & Education Services,Children Looked After,5105647172,10.07.2020,In-house Fostering,Boarding Out Allowances,332.69,REDACTED PERSONAL DATA
Revenue,Childrens Services,Children's & Education Services,Children Looked After,5105646646,03.07.2020,In-house Fostering,Boarding Out Allowances,332.69,REDACTED PERSONAL DATA
Revenue,Childrens Services,Children's & Education Services,Children Looked After,5105647765,17.07.2020,In-house Fostering,Boarding Out Allowances,332.69,REDACTED PERSONAL DATA
Revenue,Childrens Services,Children's & Education Services,Children Looked After,5105648523,24.07.2020,In-house Fostering,Boarding Out Allowances,332.69,REDACTED PERSONAL DATA
Revenue,Childrens Services,Children's & Education Services,Children Looked After,5105649070,31.07.2020,In-house Fostering,Boarding Out Allowances,332.69,REDACTED PERSONAL DATA
Revenue,Childrens Services,Children's & Education Services,Children Looked After,5105647178,10.07.2020,In-house Fostering,Boarding Out Allowances,316.19,REDACTED PERSONAL DATA
Revenue,Childrens Services,Children's & Education Services,Children Looked After,5105646652,03.07.2020,In-house Fostering,Boarding Out Allowances,316.19,REDACTED PERSONAL DATA
Revenue,Childrens Services,Children's & Education Services,Children Looked After,5105647771,17.07.2020,In-house Fostering,Boarding Out Allowances,316.19,REDACTED PERSONAL DATA
Revenue,Childrens Services,Children's & Education Services,Children Looked After,5105648529,24.07.2020,In-house Fostering,Boarding Out Allowances,316.19,REDACTED PERSONAL DATA
Revenue,Childrens Services,Children's & Education Services,Children Looked After,5105649076,31.07.2020,In-house Fostering,Boarding Out Allowances,316.19,REDACTED PERSONAL DATA
Revenue,Childrens Services,Children's & Education Services,Children Looked After,5105647167,10.07.2020,In-house Fostering,Boarding Out Allowances,332.69,REDACTED PERSONAL DATA
Revenue,Childrens Services,Children's & Education Services,Children Looked After,5105646641,03.07.2020,In-house Fostering,Boarding Out Allowances,332.69,REDACTED PERSONAL DATA
Revenue,Childrens Services,Children's & Education Services,Children Looked After,5105647760,17.07.2020,In-house Fostering,Boarding Out Allowances,332.69,REDACTED PERSONAL DATA
Revenue,Childrens Services,Children's & Education Services,Children Looked After,5105648518,24.07.2020,In-house Fostering,Boarding Out Allowances,332.69,REDACTED PERSONAL DATA
Revenue,Childrens Services,Children's & Education Services,Children Looked After,5105649184,31.07.2020,Special Guardianship Order Costs,Support Children,193.73,REDACTED PERSONAL DATA
Revenue,Childrens Services,Children's & Education Services,Children Looked After,5105646760,03.07.2020,Special Guardianship Order Costs,Support Children,193.73,REDACTED PERSONAL DATA
Revenue,Childrens Services,Children's & Education Services,Children Looked After,5105647286,10.07.2020,Special Guardianship Order Costs,Support Children,193.73,REDACTED PERSONAL DATA
Revenue,Childrens Services,Children's & Education Services,Children Looked After,5105647879,17.07.2020,Special Guardianship Order Costs,Support Children,193.73,REDACTED PERSONAL DATA
Revenue,Childrens Services,Children's & Education Services,Children Looked After,5105648637,24.07.2020,Special Guardianship Order Costs,Support Children,193.73,REDACTED PERSONAL DATA
Revenue,Childrens Services,Children's & Education Services,Children Looked After,5105649100,31.07.2020,Special Guardianship Order Costs,Support Children,200.83,REDACTED PERSONAL DATA
Revenue,Childrens Services,Children's & Education Services,Children Looked After,5105646677,03.07.2020,Special Guardianship Order Costs,Support Children,200.83,REDACTED PERSONAL DATA
Revenue,Childrens Services,Children's & Education Services,Children Looked After,5105647795,17.07.2020,Special Guardianship Order Costs,Support Children,200.83,REDACTED PERSONAL DATA
Revenue,Childrens Services,Children's & Education Services,Children Looked After,5105647202,10.07.2020,Special Guardianship Order Costs,Support Children,200.83,REDACTED PERSONAL DATA
Revenue,Childrens Services,Children's & Education Services,Children Looked After,5105648553,24.07.2020,Special Guardianship Order Costs,Support Children,200.83,REDACTED PERSONAL DATA
Revenue,Childrens Services,Children's & Education Services,Children Looked After,5105646656,03.07.2020,Adoption Costs,Support Children,168.39,REDACTED PERSONAL DATA
Revenue,Childrens Services,Children's & Education Services,Children Looked After,5105647182,10.07.2020,Adoption Costs,Support Children,168.39,REDACTED PERSONAL DATA
Revenue,Childrens Services,Children's & Education Services,Children Looked After,5105648533,24.07.2020,Adoption Costs,Support Children,168.39,REDACTED PERSONAL DATA
Revenue,Childrens Services,Children's & Education Services,Children Looked After,5105649080,31.07.2020,Adoption Costs,Support Children,168.39,REDACTED PERSONAL DATA
Revenue,Childrens Services,Children's & Education Services,Children Looked After,5105647775,17.07.2020,Adoption Costs,Support Children,168.39,REDACTED PERSONAL DATA
Revenue,Adult Services,Adult Social Care,Assistive Equipment & Technology,5105644260,08.07.2020,Wightcare,Operational Equipment,945,CAIR (UK) LTD
Revenue,Neighbourhoods,Cultural and Related Services,Open Spaces,5105649244,31.07.2020,Rights of Way Operations,Gas,14.71,CALOR GAS LIMITED
Revenue,Childrens Services,Children's & Education Services,Children Looked After,5105648916,29.07.2020,NHS Funded Placements,Charges from Independent Providers,48.23,CAMBIAN ASPERGER SYNDROME SERVICES LTD
Revenue,Childrens Services,Children's & Education Services,Children Looked After,5105648917,29.07.2020,NHS Funded Placements,Charges from Independent Providers,490.92,CAMBIAN ASPERGER SYNDROME SERVICES LTD
Revenue,Childrens Services,Children's & Education Services,Management & Support Services,5105648917,29.07.2020,Pre 16 Independ. & Non-Maint. Special Schls & Independ. Specialist Provision,Charges from Independent Providers,"3,402.89",CAMBIAN ASPERGER SYNDROME SERVICES LTD
Revenue,Childrens Services,Children's & Education Services,Management & Support Services,5105648916,29.07.2020,Pre 16 Independ. & Non-Maint. Special Schls & Independ. Specialist Provision,Charges from Independent Providers,334.32,CAMBIAN ASPERGER SYNDROME SERVICES LTD
Revenue,Childrens Services,Children's & Education Services,Post-16 Provision,5105644593,22.07.2020,Post 16 Independ. & Non-Maint. Special Schls & Independ. Specialist Provision,Charges from Independent Providers,"-19,780.79",CAMBIAN ASPERGER SYNDROME SERVICES LTD
Revenue,Childrens Services,Children's & Education Services,Post-16 Provision,5105646391,22.07.2020,Post 16 Independ. & Non-Maint. Special Schls & Independ. Specialist Provision,Charges from Independent Providers,"11,541.77",CAMBIAN ASPERGER SYNDROME SERVICES LTD
Revenue,Childrens Services,Children's & Education Services,Post-16 Provision,5105646380,22.07.2020,Post 16 Independ. & Non-Maint. Special Schls & Independ. Specialist Provision,Charges from Independent Providers,"6,675.03",CAMBIAN ASPERGER SYNDROME SERVICES LTD
Revenue,Childrens Services,Children's & Education Services,Children Looked After,5105648917,29.07.2020,Purchased Residential,Charges from Independent Providers,"12,097.23",CAMBIAN ASPERGER SYNDROME SERVICES LTD
Revenue,Childrens Services,Children's & Education Services,Children Looked After,5105648916,29.07.2020,Purchased Residential,Charges from Independent Providers,"1,188.53",CAMBIAN ASPERGER SYNDROME SERVICES LTD
Revenue,Adult Services,Adult Social Care,Mental Health Support - adults (18-64),5105644593,22.07.2020,Mental Health Residential 18-64,Charges from Independent Providers,"-7,658.23",CAMBIAN ASPERGER SYNDROME SERVICES LTD
Revenue,Adult Services,Adult Social Care,Mental Health Support - adults (18-64),5105646391,22.07.2020,Mental Health Residential 18-64,Charges from Independent Providers,"27,063.45",CAMBIAN ASPERGER SYNDROME SERVICES LTD
Revenue,Adult Services,Adult Social Care,Mental Health Support - adults (18-64),5105646380,22.07.2020,Mental Health Residential 18-64,Charges from Independent Providers,"5,356.38",CAMBIAN ASPERGER SYNDROME SERVICES LTD
Revenue,Adult Services,Adult Social Care,Mental Health Support - adults (18-64),5105646391,22.07.2020,Mental Health Residential 18-64,Charges from Independent Providers,"1,193.98",CAMBIAN ASPERGER SYNDROME SERVICES LTD
Revenue,Childrens Services,Children's & Education Services,Management & Support Services,5105647713,17.07.2020,Pre 16 Independ. & Non-Maint. Special Schls & Independ. Specialist Provision,Charges from Independent Providers,"3,542.99",CAMBIAN CHILDCARE LTD
Revenue,Childrens Services,Children's & Education Services,Children Looked After,5105647712,17.07.2020,Purchased Residential,Charges from Independent Providers,"17,492.99",CAMBIAN CHILDCARE LTD
Revenue,Resources,Central Services,Support Services,5105648754,24.07.2020,Litigation Costs,Legal Fees - Other Parties,500,COLLEGE CHAMBERS BARRISTERS
Revenue,Resources,Central Services,Support Services,5105647456,14.07.2020,Litigation Costs,Legal Fees - Other Parties,500,COLLEGE CHAMBERS BARRISTERS
Revenue,Neighbourhoods,Highways and Transport Services,Management and Support Services,5105646860,03.07.2020,Highways PFI Project,Legal Fees - Other Parties,"1,200.00",REDACTED PERSONAL DATA
Revenue,Resources,Central Services,Support Services,5105646860,03.07.2020,Litigation Costs,Legal Fees - Other Parties,"1,200.00",REDACTED PERSONAL DATA
Revenue,Adult Services,Central Services,Central Services to the Public,5105647136,10.07.2020,AS Covid-19 (Adults),Agency staff,"9,900.00",CCM NEW HORIZONS LTD
Revenue,Resources,Central Services,Support Services,5105647110,08.07.2020,ICT Contracts,Computer Maintenance,"1,650.00",CELERITY LTD
Revenue,Resources,Central Services,Support Services,5105647130,08.07.2020,ICT Contracts,Computer Software Licencing,"-1,890.00",CENTERPRISE INTERNATIONAL LTD
Revenue,Resources,Central Services,Support Services,5105647131,08.07.2020,ICT Contracts,Computer Software Licencing,"1,890.00",CENTERPRISE INTERNATIONAL LTD
Revenue,Resources,Central Services,Support Services,5105647132,08.07.2020,ICT Contracts,Computer Software Licencing,"-5,670.00",CENTERPRISE INTERNATIONAL LTD
Revenue,Resources,Central Services,Support Services,5105647134,08.07.2020,ICT Contracts,Computer Software Licencing,"-1,890.00",CENTERPRISE INTERNATIONAL LTD
Revenue,Resources,Central Services,Support Services,5105647135,08.07.2020,ICT Contracts,Computer Software Licencing,"1,890.00",CENTERPRISE INTERNATIONAL LTD
Revenue,Resources,Central Services,Support Services,5105640283,03.07.2020,ICT Contracts,Computer Software Licencing,"1,890.00",CENTERPRISE INTERNATIONAL LTD
Revenue,Resources,Central Services,Support Services,5105640284,08.07.2020,ICT Contracts,Computer Software Licencing,"5,670.00",CENTERPRISE INTERNATIONAL LTD
Revenue,Resources,Central Services,Support Services,5105646348,03.07.2020,ICT Contracts,Computer Software Licencing,"1,890.00",CENTERPRISE INTERNATIONAL LTD
Capital,Place,Capital,Capital,5105646855,03.07.2020,Coastal Capital Schemes,External Design and Supervision Fees,800,CH2M HILL UNITED KINGDOM LTD
Revenue,Neighbourhoods,Cultural and Related Services,Open Spaces,5105647613,15.07.2020,Client Management Unit - Grounds Maintenance,Vehicle Maintenance Costs,11.5,CHAMELEON CODEWING LTD
Revenue,Neighbourhoods,Highways and Transport Services,Management and Support Services,5105647613,15.07.2020,Highways PFI Project,Vehicle Maintenance Costs,11.5,CHAMELEON CODEWING LTD
Revenue,Neighbourhoods,Cultural and Related Services,Open Spaces,5105647613,15.07.2020,Rights of Way Operations,Vehicle Maintenance Costs,11.5,CHAMELEON CODEWING LTD
Revenue,Neighbourhoods,Environmental & Regulatory Services,Service Management and Support Services,5105647613,15.07.2020,Environment officers,Vehicle Maintenance Costs,11.5,CHAMELEON CODEWING LTD
Revenue,Adult Services,Adult Social Care,Central Codes (to be reallocated),5105647613,15.07.2020,Community Reablement,Vehicle Maintenance Costs,11.5,CHAMELEON CODEWING LTD
Revenue,Adult Services,Adult Social Care,Central Codes (to be reallocated),5105647613,15.07.2020,Community Reablement,Vehicle Maintenance Costs,11.5,CHAMELEON CODEWING LTD
Revenue,Resources,Highways and Transport Services,Public Transport,5105647613,15.07.2020,Transport Fleet Administration,Vehicle Maintenance Costs,11.5,CHAMELEON CODEWING LTD
Revenue,Resources,Highways and Transport Services,Public Transport,5105647613,15.07.2020,Transport Fleet Administration,Vehicle Maintenance Costs,11.5,CHAMELEON CODEWING LTD
Revenue,Resources,Highways and Transport Services,Public Transport,5105647613,15.07.2020,Transport Fleet Administration,Vehicle Maintenance Costs,11.5,CHAMELEON CODEWING LTD
Revenue,Resources,Highways and Transport Services,Public Transport,5105647613,15.07.2020,Transport Fleet Administration,Vehicle Maintenance Costs,11.5,CHAMELEON CODEWING LTD
Revenue,Resources,Highways and Transport Services,Public Transport,5105647613,15.07.2020,Transport Fleet Administration,Vehicle Maintenance Costs,11.5,CHAMELEON CODEWING LTD
Revenue,Neighbourhoods,Cultural and Related Services,Recreation and Sport,5105647613,15.07.2020,Commercial Sales Team,Vehicle Maintenance Costs,11.5,CHAMELEON CODEWING LTD
Revenue,Neighbourhoods,Highways and Transport Services,"Airports, Harbours & Toll Facilities",5105647613,15.07.2020,Newport Harbour Account,Vehicle Maintenance Costs,11.5,CHAMELEON CODEWING LTD
Revenue,Adult Services,Adult Social Care,Central Codes (to be reallocated),5105647613,15.07.2020,Onwards Care & Independence,Vehicle Maintenance Costs,11.5,CHAMELEON CODEWING LTD
Revenue,Neighbourhoods,Highways and Transport Services,Parking Services,5105647613,15.07.2020,Off-Street Parking Operations,Vehicle Maintenance Costs,11.5,CHAMELEON CODEWING LTD
Revenue,Neighbourhoods,Highways and Transport Services,Parking Services,5105647613,15.07.2020,Off-Street Parking Operations,Vehicle Maintenance Costs,11.5,CHAMELEON CODEWING LTD
Revenue,Adult Services,Housing Services,Homelessness,5105649236,31.07.2020,B&B Properties,Accommodation Costs - Bed & Breakfast,780,CHANNEL VIEW HOTEL
Revenue,Adult Services,Housing Services,Homelessness,5105649033,29.07.2020,B&B Properties,Accommodation Costs - Bed & Breakfast,"2,250.00",CHANNEL VIEW HOTEL
Revenue,Adult Services,Housing Services,Homelessness,5105647563,14.07.2020,B&B Properties,Accommodation Costs - Bed & Breakfast,990,CHANNEL VIEW HOTEL
Revenue,Adult Services,Housing Services,Homelessness,5105647564,14.07.2020,B&B Properties,Accommodation Costs - Bed & Breakfast,"1,410.00",CHANNEL VIEW HOTEL
Revenue,Neighbourhoods,Highways and Transport Services,"Airports, Harbours & Toll Facilities",5105648404,22.07.2020,Ferry Operation,Operational Equipment,26.26,CHANT LOCK & SECURITY SERVICE
Revenue,Neighbourhoods,Cultural and Related Services,Recreation and Sport,5105647103,08.07.2020,Beach Safety & Inspection / Beach Awards,General Materials,91.26,CHANT LOCK & SECURITY SERVICE
Revenue,Childrens Services,Children's & Education Services,Special Schools & Alternative Provision,5105649324,31.07.2020,Island Learning Centre,Delegated Minor Maintenance,109.46,CHANT LOCK & SECURITY SERVICE
Revenue,Childrens Services,Children's & Education Services,Special Schools & Alternative Provision,5105649325,31.07.2020,Island Learning Centre,Delegated Minor Maintenance,208.15,CHANT LOCK & SECURITY SERVICE
Revenue,Neighbourhoods,Cultural and Related Services,Open Spaces,5105647584,15.07.2020,Countryside Management,Operational Equipment,114,CHANT LOCK & SECURITY SERVICE
Revenue,Adult Services,Adult Social Care,Mental Health Support - adults (18-64),5105648960,29.07.2020,Mental Health Other ST Support 18-64,Charges from Independent Providers,132,CHANT LOCK & SECURITY SERVICE
Revenue,Adult Services,Adult Social Care,Central Codes (to be reallocated),5105647079,07.07.2020,Gouldings Resource Centre,Catering Purchases,59.9,CHAPEL NURSERIES
Revenue,Adult Services,Adult Social Care,Central Codes (to be reallocated),5105648970,29.07.2020,Gouldings Resource Centre,Catering Purchases,86.2,CHAPEL NURSERIES
Revenue,Adult Services,Adult Social Care,Central Codes (to be reallocated),5105648899,29.07.2020,Gouldings Resource Centre,Catering Purchases,97.9,CHAPEL NURSERIES
Revenue,Adult Services,Adult Social Care,Central Codes (to be reallocated),5105648087,21.07.2020,Gouldings Resource Centre,Catering Purchases,66.7,CHAPEL NURSERIES
Revenue,Adult Services,Adult Social Care,Central Codes (to be reallocated),5105647450,14.07.2020,Gouldings Resource Centre,Catering Purchases,107.7,CHAPEL NURSERIES
Revenue,Adult Services,Adult Social Care,Central Codes (to be reallocated),5105647449,14.07.2020,Gouldings Resource Centre,Catering Purchases,79.3,CHAPEL NURSERIES
Revenue,Fire & Rescue,Fire & Rescue Services,Fire fighting and Rescue Operations,5105646514,27.07.2020,Fire Technical Support,Maintenance of Operational Equipment,985.23,CHAPS MSA DEUTSCHLAND GMBH
Revenue,Fire & Rescue,Fire & Rescue Services,Fire fighting and Rescue Operations,5105646514,27.07.2020,Fire Technical Support,Maintenance of Operational Equipment,40.77,CHAPS MSA DEUTSCHLAND GMBH
Revenue,Childrens Services,Children's & Education Services,Children Looked After,5105647365,10.07.2020,Support for Looked After Children,Professional Services,15,CHATTERBOX NURSERY LTD
Revenue,Resources,Central Services,Support Services,5105648379,22.07.2020,Staff Benefits,Payment to Private Contractors,124,CHATTERBOX NURSERY LTD
Revenue,Adult Services,Adult Social Care,Support - Memory /Cognition-older people (65+),5105646955,07.07.2020,Memory & Cognition Residential 65+,Charges from Independent Providers,"3,000.20",CHD CARE LTD
Revenue,Adult Services,Adult Social Care,Support - Memory /Cognition-older people (65+),5105646955,07.07.2020,Memory & Cognition Residential 65+,Charges from Independent Providers,405.16,CHD CARE LTD
Revenue,Resources,Central Services,Support Services,5105648368,22.07.2020,Staff Benefits,Payment to Private Contractors,5,CHEEKY CHIMPS CHILDCARE
Revenue,Childrens Services,Children's & Education Services,Children Looked After,5105646790,03.07.2020,Children placed with Family&Friends,Boarding Out Allowances,244.47,REDACTED PERSONAL DATA
Revenue,Childrens Services,Children's & Education Services,Children Looked After,5105647312,10.07.2020,Children placed with Family&Friends,Boarding Out Allowances,244.47,REDACTED PERSONAL DATA
Revenue,Childrens Services,Children's & Education Services,Children Looked After,5105649211,31.07.2020,Children placed with Family&Friends,Boarding Out Allowances,244.47,REDACTED PERSONAL DATA
Revenue,Childrens Services,Children's & Education Services,Children Looked After,5105647906,17.07.2020,Children placed with Family&Friends,Boarding Out Allowances,244.47,REDACTED PERSONAL DATA
Revenue,Childrens Services,Children's & Education Services,Children Looked After,5105648666,24.07.2020,Children placed with Family&Friends,Boarding Out Allowances,244.47,REDACTED PERSONAL DATA
Revenue,Adult Services,Central Services,Emergency Planning,5105647737,17.07.2020,NHS C19 Residential,Charges from Independent Providers,"4,080.16",CHERRY TREES I.W. LTD
Revenue,Adult Services,Adult Social Care,Physical Support - older people (65+),5105646891,07.07.2020,Physical Support Residential 65+,Charges from Independent Providers,"2,028.32",CHERRY TREES I.W. LTD
Revenue,Adult Services,Adult Social Care,Physical Support - older people (65+),5105646891,07.07.2020,Physical Support Residential 65+,Charges from Independent Providers,"2,124.08",CHERRY TREES I.W. LTD
Revenue,Adult Services,Adult Social Care,Physical Support - older people (65+),5105646891,07.07.2020,Physical Support Residential 65+,Charges from Independent Providers,"2,028.32",CHERRY TREES I.W. LTD
Revenue,Adult Services,Adult Social Care,Physical Support - older people (65+),5105646891,07.07.2020,Physical Support Residential 65+,Charges from Independent Providers,"2,028.32",CHERRY TREES I.W. LTD
Revenue,Adult Services,Adult Social Care,Physical Support - older people (65+),5105647524,17.07.2020,Physical Support Residential 65+,Charges from Independent Providers,"3,717.14",CHERRY TREES I.W. LTD
Revenue,Resources,Central Services,Support Services,5105648370,22.07.2020,Staff Benefits,Payment to Private Contractors,72,CHILLERTON & ROOKLEY CP SCHOOL
Revenue,Resources,Central Services,Support Services,5105648370,22.07.2020,Staff Benefits,Payment to Private Contractors,10,CHILLERTON & ROOKLEY CP SCHOOL
Revenue,Adult Services,Adult Social Care,Commissioning & Service Delivery,5105646970,07.07.2020,CHC Residential Care,Charges from Independent Providers,"11,537.68",CHOICE CARE (WOODLANDS)
Revenue,Adult Services,Adult Social Care,Learning Disability Suppt-adults (18-64),5105646957,07.07.2020,Learning Disability Residential 18-64,Charges from Independent Providers,"7,076.44",CHOICE LTD
Revenue,Childrens Services,Children's & Education Services,Other Education and Community Budget,5105647080,07.07.2020,Adult Community Learning,Licences,9.25,CITY AND GUILDS
Revenue,Adult Services,Housing Services,Homelessness,5105646551,01.07.2020,Housing Needs Team,Computer Software & Consumables,"37,259.00",CIVICA UK LTD
Revenue,Neighbourhoods,Cultural and Related Services,Library Service,5105647519,14.07.2020,Public Libraries Central,Computer Maintenance,"21,500.00",CIVICA UK LTD
Revenue,Neighbourhoods,Cultural and Related Services,Library Service,5105646362,15.07.2020,Public Libraries Central,Professional Subscriptions,"1,318.81",CIVICA UK LTD
Revenue,Neighbourhoods,Cultural and Related Services,Library Service,5105647379,14.07.2020,Public Libraries Central,Computer Maintenance,621.74,CIVICA UK LTD
Revenue,Childrens Services,Children's & Education Services,Children Looked After,5105648016,21.07.2020,Leaving Care Costs,Charges from Independent Providers,"3,169.54",CM SUPPORTED LIVING SERVICES
Revenue,Childrens Services,Children's & Education Services,Children Looked After,5105647529,14.07.2020,Leaving Care Costs,Support Children,375,COASTAL PROPERTY
Revenue,Adult Services,Adult Social Care,Support - Memory /Cognition-older people (65+),5105646953,07.07.2020,Memory & Cognition Residential 65+,Charges from Independent Providers,"2,698.36",REDACTED PERSONAL DATA
Revenue,Resources,Adult Social Care,Information & Early Intervention,5105647577,15.07.2020,Voluntary & Community Sector,Payments to Voluntary and Other Associations,"19,500.00",COMMUNITY ACTION ISLE OF WIGHT
Revenue,Chief Executive,Adult Social Care,Social Support - Asylum Seeker Support,5105646810,03.07.2020,Syrian Refugees,Grants to External Bodies,"25,315.00",COMMUNITY ACTION ISLE OF WIGHT
Capital,Adult Services,Capital,Capital,5105648892,29.07.2020,S106 Capital Projects,Capital Grants,"6,349.30",COMMUNITY ACTION ISLE OF WIGHT
Capital,Adult Services,Capital,Capital,5105645946,01.07.2020,S106 Capital Projects,External Design and Supervision Fees,"1,857.20",COMMUNITY ACTION ISLE OF WIGHT
Capital,Adult Services,Capital,Capital,5105649270,31.07.2020,S106 Capital Projects,External Design and Supervision Fees,25.38,COMMUNITY ACTION ISLE OF WIGHT
Capital,Adult Services,Capital,Capital,5105648148,21.07.2020,S106 Capital Projects,External Design and Supervision Fees,"1,871.60",COMMUNITY ACTION ISLE OF WIGHT
Revenue,Adult Services,Adult Social Care,Learning Disability Suppt-adults (18-64),5105646976,07.07.2020,Learning Disability Residential 18-64,Charges from Independent Providers,"10,643.36",COMMUNITY HOMES IN INTENSIVE CARE
Revenue,Resources,Highways and Transport Services,Off Street Parking,5105648420,22.07.2020,Parking Services,Licences,106.08,SPUR INFORMATION SOLUTIONS LTD
Revenue,Childrens Services,Children's & Education Services,Management & Support Services,5105647505,17.07.2020,Special Discretionary Grants,Schools Learn Res - Specialised Edu Equip,510,CONNEVANS LTD
Revenue,Assistant Chief Executive,Central Services,Central Services to the Public,5105647392,21.07.2020,AC Covid-19,Operational Equipment,275,CONTEGO SAFETY SOLUTIONS LTD
Revenue,Assistant Chief Executive,Central Services,Central Services to the Public,5105647128,08.07.2020,AC Covid-19,Operational Equipment,"5,750.00",CONTEGO SAFETY SOLUTIONS LTD
Revenue,Assistant Chief Executive,Central Services,Central Services to the Public,5105647128,08.07.2020,AC Covid-19,Operational Equipment,"5,750.00",CONTEGO SAFETY SOLUTIONS LTD
Revenue,Adult Services,Adult Social Care,Central Codes (to be reallocated),5105648145,21.07.2020,Gouldings Resource Centre,Clothing & Laundry,26.75,CONTEGO SAFETY SOLUTIONS LTD
Revenue,Adult Services,Adult Social Care,Central Codes (to be reallocated),5105648145,21.07.2020,Gouldings Resource Centre,Clothing & Laundry,101.4,CONTEGO SAFETY SOLUTIONS LTD
Revenue,Adult Services,Adult Social Care,Central Codes (to be reallocated),5105648145,21.07.2020,Gouldings Resource Centre,Clothing & Laundry,26.75,CONTEGO SAFETY SOLUTIONS LTD
Revenue,Adult Services,Adult Social Care,Central Codes (to be reallocated),5105648145,21.07.2020,Gouldings Resource Centre,Clothing & Laundry,101.4,CONTEGO SAFETY SOLUTIONS LTD
Revenue,Adult Services,Adult Social Care,Central Codes (to be reallocated),5105648145,21.07.2020,Gouldings Resource Centre,Clothing & Laundry,101.4,CONTEGO SAFETY SOLUTIONS LTD
Revenue,Adult Services,Adult Social Care,Central Codes (to be reallocated),5105648145,21.07.2020,Gouldings Resource Centre,Clothing & Laundry,26.75,CONTEGO SAFETY SOLUTIONS LTD
Revenue,Childrens Services,Children's & Education Services,Children Looked After,5105649295,31.07.2020,Beaulieu House,Clothing & Laundry,"1,038.15",CONTEGO SAFETY SOLUTIONS LTD
Revenue,Adult Services,Adult Social Care,Central Codes (to be reallocated),5105649296,31.07.2020,Community Reablement,Clothing & Laundry,21.4,CONTEGO SAFETY SOLUTIONS LTD
Revenue,Adult Services,Adult Social Care,Central Codes (to be reallocated),5105649296,31.07.2020,Community Reablement,Clothing & Laundry,16.05,CONTEGO SAFETY SOLUTIONS LTD
Revenue,Adult Services,Adult Social Care,Central Codes (to be reallocated),5105649296,31.07.2020,Community Reablement,Clothing & Laundry,50.7,CONTEGO SAFETY SOLUTIONS LTD
Revenue,Adult Services,Adult Social Care,Central Codes (to be reallocated),5105649296,31.07.2020,Community Reablement,Clothing & Laundry,10.7,CONTEGO SAFETY SOLUTIONS LTD
Revenue,Adult Services,Adult Social Care,Central Codes (to be reallocated),5105649296,31.07.2020,Community Reablement,Clothing & Laundry,28.05,CONTEGO SAFETY SOLUTIONS LTD
Revenue,Adult Services,Adult Social Care,Central Codes (to be reallocated),5105649296,31.07.2020,Community Reablement,Clothing & Laundry,50.7,CONTEGO SAFETY SOLUTIONS LTD
Revenue,Adult Services,Adult Social Care,Central Codes (to be reallocated),5105649296,31.07.2020,Community Reablement,Clothing & Laundry,50.7,CONTEGO SAFETY SOLUTIONS LTD
Revenue,Adult Services,Adult Social Care,Central Codes (to be reallocated),5105649296,31.07.2020,Community Reablement,Clothing & Laundry,10.7,CONTEGO SAFETY SOLUTIONS LTD
Revenue,Adult Services,Adult Social Care,Central Codes (to be reallocated),5105647962,17.07.2020,Community Reablement,Clothing & Laundry,22.5,CONTEGO SAFETY SOLUTIONS LTD
Revenue,Adult Services,Adult Social Care,Central Codes (to be reallocated),5105646833,03.07.2020,Community Reablement,Clothing & Laundry,74.8,CONTEGO SAFETY SOLUTIONS LTD
Revenue,Adult Services,Adult Social Care,Central Codes (to be reallocated),5105647962,17.07.2020,Community Reablement,Clothing & Laundry,13.95,CONTEGO SAFETY SOLUTIONS LTD
Revenue,Adult Services,Adult Social Care,Central Codes (to be reallocated),5105647962,17.07.2020,Community Reablement,Clothing & Laundry,14.5,CONTEGO SAFETY SOLUTIONS LTD
Revenue,Adult Services,Adult Social Care,Central Codes (to be reallocated),5105647962,17.07.2020,Community Reablement,Clothing & Laundry,14.5,CONTEGO SAFETY SOLUTIONS LTD
Revenue,Adult Services,Adult Social Care,Central Codes (to be reallocated),5105647962,17.07.2020,Community Reablement,Clothing & Laundry,14.5,CONTEGO SAFETY SOLUTIONS LTD
Revenue,Adult Services,Adult Social Care,Central Codes (to be reallocated),5105647962,17.07.2020,Community Reablement,Clothing & Laundry,14.5,CONTEGO SAFETY SOLUTIONS LTD
Revenue,Adult Services,Adult Social Care,Central Codes (to be reallocated),5105647962,17.07.2020,Community Reablement,Clothing & Laundry,14.5,CONTEGO SAFETY SOLUTIONS LTD
Revenue,Adult Services,Adult Social Care,Central Codes (to be reallocated),5105647962,17.07.2020,Community Reablement,Clothing & Laundry,22.5,CONTEGO SAFETY SOLUTIONS LTD
Revenue,Adult Services,Adult Social Care,Central Codes (to be reallocated),5105647962,17.07.2020,Community Reablement,Clothing & Laundry,22.5,CONTEGO SAFETY SOLUTIONS LTD
Revenue,Adult Services,Adult Social Care,Central Codes (to be reallocated),5105647962,17.07.2020,Community Reablement,Clothing & Laundry,13.95,CONTEGO SAFETY SOLUTIONS LTD
Revenue,Adult Services,Adult Social Care,Central Codes (to be reallocated),5105647962,17.07.2020,Community Reablement,Clothing & Laundry,13.95,CONTEGO SAFETY SOLUTIONS LTD
Revenue,Adult Services,Adult Social Care,Central Codes (to be reallocated),5105647962,17.07.2020,Community Reablement,Clothing & Laundry,13.95,CONTEGO SAFETY SOLUTIONS LTD
Revenue,Adult Services,Adult Social Care,Central Codes (to be reallocated),5105647962,17.07.2020,Community Reablement,Clothing & Laundry,13.95,CONTEGO SAFETY SOLUTIONS LTD
Revenue,Adult Services,Adult Social Care,Central Codes (to be reallocated),5105648415,22.07.2020,Adelaide Resource Centre,Clothing & Laundry,25.95,CONTEGO SAFETY SOLUTIONS LTD
Revenue,Neighbourhoods,Environmental & Regulatory Services,Regulatory Services,5105648198,21.07.2020,Environmental Health - Environmental Regulation & Protection,Professional Services,981,CO-OPERATIVE FUNERALCARE LTD
Revenue,Adult Services,Adult Social Care,Sensory Support - older people (65+),5105646919,07.07.2020,Sensory Support Residential 65+,Charges from Independent Providers,"2,028.32",CORNELIA MANOR
Revenue,Adult Services,Adult Social Care,Support - Memory /Cognition-older people (65+),5105646919,07.07.2020,Memory & Cognition Residential 65+,Charges from Independent Providers,"2,124.08",CORNELIA MANOR
Revenue,Adult Services,Adult Social Care,Support - Memory /Cognition-older people (65+),5105646919,07.07.2020,Memory & Cognition Residential 65+,Charges from Independent Providers,"2,124.08",CORNELIA MANOR
Revenue,Adult Services,Adult Social Care,Support - Memory /Cognition-older people (65+),5105646919,07.07.2020,Memory & Cognition Residential 65+,Charges from Independent Providers,"2,497.32",CORNELIA MANOR
Revenue,Adult Services,Adult Social Care,Support - Memory /Cognition-older people (65+),5105646919,07.07.2020,Memory & Cognition Residential 65+,Charges from Independent Providers,"2,124.08",CORNELIA MANOR
Revenue,Adult Services,Adult Social Care,Support - Memory /Cognition-older people (65+),5105646919,07.07.2020,Memory & Cognition Residential 65+,Charges from Independent Providers,"1,469.72",CORNELIA MANOR
Revenue,Adult Services,Adult Social Care,Mental Health Support-older people (65+),5105646919,07.07.2020,Mental Health Residential 65+,Charges from Independent Providers,"2,028.32",CORNELIA MANOR
Revenue,Adult Services,Adult Social Care,Physical Support - older people (65+),5105646919,07.07.2020,Physical Support Residential 65+,Charges from Independent Providers,"2,497.32",CORNELIA MANOR
Revenue,Adult Services,Adult Social Care,Physical Support - older people (65+),5105646919,07.07.2020,Physical Support Residential 65+,Charges from Independent Providers,"2,497.32",CORNELIA MANOR
Revenue,Adult Services,Adult Social Care,Physical Support - older people (65+),5105646919,07.07.2020,Physical Support Residential 65+,Charges from Independent Providers,"2,497.32",CORNELIA MANOR
Revenue,Adult Services,Adult Social Care,Physical Support - older people (65+),5105646919,07.07.2020,Physical Support Residential 65+,Charges from Independent Providers,"2,497.32",CORNELIA MANOR
Revenue,Adult Services,Adult Social Care,Physical Support - older people (65+),5105646919,07.07.2020,Physical Support Residential 65+,Charges from Independent Providers,"2,497.32",CORNELIA MANOR
Revenue,Adult Services,Adult Social Care,Physical Support - older people (65+),5105646919,07.07.2020,Physical Support Residential 65+,Charges from Independent Providers,"2,124.08",CORNELIA MANOR
Revenue,Adult Services,Adult Social Care,Physical Support - older people (65+),5105646919,07.07.2020,Physical Support Residential 65+,Charges from Independent Providers,"2,028.32",CORNELIA MANOR
Revenue,Adult Services,Adult Social Care,Physical Support - older people (65+),5105646919,07.07.2020,Physical Support Residential 65+,Charges from Independent Providers,"2,497.32",CORNELIA MANOR
Revenue,Childrens Services,Children's & Education Services,Children Looked After,5105647002,17.07.2020,Leaving Care Costs,Charges from Independent Providers,"9,502.86",CORNERSTONE ACCOMODATION LTD
Revenue,Childrens Services,Children's & Education Services,Children Looked After,5105646482,08.07.2020,Leaving Care Costs,Charges from Independent Providers,"19,995.60",CORNERSTONE ACCOMODATION LTD
Revenue,Resources,Central Services,Support Services,5105648421,22.07.2020,Litigation Costs,Legal Fees - Other Parties,75,COURT ENFORCEMENT SERVICES LTD
Revenue,Neighbourhoods,Highways and Transport Services,"Airports, Harbours & Toll Facilities",5105645809,07.07.2020,Ferry Operation,Payment to Private Contractors,"-6,791.40",COWES HARBOUR COMMISSION
Revenue,Neighbourhoods,Highways and Transport Services,"Airports, Harbours & Toll Facilities",5105645812,07.07.2020,Ferry Operation,Payment to Private Contractors,"11,269.03",COWES HARBOUR COMMISSION
Revenue,Neighbourhoods,Highways and Transport Services,"Airports, Harbours & Toll Facilities",5105646166,07.07.2020,Ferry Operation,Payment to Private Contractors,"9,590.67",COWES HARBOUR COMMISSION
Revenue,Neighbourhoods,Highways and Transport Services,"Airports, Harbours & Toll Facilities",5105645809,07.07.2020,Ferry Operation,Payment to Private Contractors,"-6,482.70",COWES HARBOUR COMMISSION
Revenue,Neighbourhoods,Highways and Transport Services,"Airports, Harbours & Toll Facilities",5105647691,17.07.2020,Newport Harbour Account,Payment to Private Contractors,89.25,COWES HARBOUR COMMISSION
Revenue,Childrens Services,Children's & Education Services,Management & Support Services,5105647417,15.07.2020,Pre 16 Independ. & Non-Maint. Special Schls & Independ. Specialist Provision,Charges from Independent Providers,"23,243.52",COXLEASE SCHOOL PRIORY
Revenue,Childrens Services,Children's & Education Services,Management & Support Services,5105647398,15.07.2020,Pre 16 Independ. & Non-Maint. Special Schls & Independ. Specialist Provision,Charges from Independent Providers,"50,032.33",COXLEASE SCHOOL PRIORY
Revenue,Childrens Services,Children's & Education Services,Post-16 Provision,5105647353,15.07.2020,Post 16 Independ. & Non-Maint. Special Schls & Independ. Specialist Provision,Charges from Independent Providers,"57,824.67",COXLEASE SCHOOL PRIORY
Revenue,Childrens Services,Children's & Education Services,Post-16 Provision,5105647394,15.07.2020,Post 16 Independ. & Non-Maint. Special Schls & Independ. Specialist Provision,Charges from Independent Providers,"50,032.33",COXLEASE SCHOOL PRIORY
Revenue,Childrens Services,Children's & Education Services,Children Looked After,5105647417,15.07.2020,Purchased Residential,Charges from Independent Providers,"43,128.60",COXLEASE SCHOOL PRIORY
Revenue,Neighbourhoods,Cultural and Related Services,Recreation and Sport,5105646581,03.07.2020,Slipways & Steps (Beaches),Rent of Buildings and Rooms,350,CROWN ESTATE COMMISSIONERS
Revenue,Adult Services,Central Services,Emergency Planning,5105648984,29.07.2020,NHS C19 Nursing,Charges from Independent Providers,"7,500.00",CSN CARE GROUP LIMITED
Revenue,Adult Services,Central Services,Emergency Planning,5105648218,21.07.2020,NHS C19 Nursing,Charges from Independent Providers,"7,500.00",CSN CARE GROUP LIMITED
Revenue,Adult Services,Central Services,Emergency Planning,5105647530,14.07.2020,NHS C19 Nursing,Charges from Independent Providers,"7,500.00",CSN CARE GROUP LIMITED
